{"text_format":"1","workbook":"xlsx","n_sheets":7,"sheets":["Benutzerhinweise","Zielvereinbarung","Bewertung durch Anwender","Konformitätsprüfung","Gültigkeitsliste","BNB-System","Hilfstabelle"],"not_rendered":{"charts":0,"images":0,"macros":1,"external_links":0,"defined_names":7,"comments":0,"pivot_tables":0},"unopened":[],"bounds":{"document_bytes":16777216,"sheet_cells":100000,"rows_first":2000,"rows_last":500,"rows_between":2000,"halvings":0,"cell_chars":16384,"cell_head_chars":4096},"cells_cut":0,"cells_raw":0,"read":"whole","date_system":"1900"}

{"sheet":"Benutzerhinweise","index":0,"n_rows":50,"n_cols":5,"rows_kept":50,"cut":false,"hidden":false,"merged":[[5,2,5,3],[7,2,7,3]]}
[]
[]
[]
[]
[null,null,"Arbeitshilfe zum BNB_UN Version 2017"]
[]
[]
[null,null,"EINFÜHRUNG"]
[]
[]
[]
[]
[]
[]
[]
[]
[]
[]
[]
[]
[]
[]
[]
[]
[]
[]
[]
[]
[]
[]
[]
[]
[]
[]
[]
[null,null,"   Änderungen:"]
[null,null,"2018-03-08"]
[]
[null,null,"Änderungen:"]
[null,null,"2018-03-08"," 2.2.2","Teilkriterium 4. \"Technische Ausstattung\": Punktzahl von 18 auf 10 Punkte korrigiert."]
[null,null,null," 3.1.5","Teilkriterium 3. \"Sichtverbindungen\": Punktzahl von 25 auf 35 Punkte korrigiert "]
[null,null,null," 4.1.3","Teilkriterium 3.6 \"Zugänglichkeit\" nachgetragen."]
[]
[null,null,"2019-04-09"," 3.1.3","Teilkriterium 2: Redaktionelle Änderungen der Begrifflichkeit \"personenbezogene Lüftungsrate\" zu \"Außenluftvolumenstrom\""]
[]
[null,null,"2019-10-23"," 1.2.1","Korrektur der zu erreichenden Gesamtpunktzahl auf max. 100"]
[null,null,null," 3.1.5","Korrektur der zu erreichenden Gesamtpunktzahl auf max. 100"]
[null,null,null," 3.1.9","Korrektur der zu erreichenden Gesamtpunktzahl auf max. 100"]
[null,null,null," 3.2.4","Korrektur der zu erreichenden Gesamtpunktzahl auf max. 100"]
[null,null,null," 4.1.6","Korrektur der zu erreichenden Gesamtpunktzahl auf max. 100; zusätzlich Korrektur der Punktzuordnung der Teilkriterien"]

{"sheet":"Zielvereinbarung","index":1,"n_rows":248,"n_cols":15,"rows_kept":248,"cut":false,"hidden":false,"merged":[[0,2,0,3],[3,15,4,15],[3,13,4,13],[3,14,4,14],[6,1,6,2],[3,1,4,2],[3,3,4,3],[3,5,3,6],[3,7,4,7],[3,4,4,4],[3,12,4,12],[3,8,4,8],[3,9,4,9],[3,10,4,10],[3,11,4,11]]}
[null,{"$f":"'BNB-System'!B1","v":"Projekt:"},"Projektbezeichnung",null,"Datum:",null,"2019-10-23"]
[null,{"$f":"'BNB-System'!B2","v":"Bewertungssystem Nachhaltiges Bauen (BNB)"}]
[null,{"$f":"'BNB-System'!B3","v":"Systemvariante Unterrichtsgebäude, Modul Neubau (BNB_UN) - Version 2017"}]
[null,"Nachhaltigkeitskriterien",null,"maximale Punktzahl","Gewichtung\nGesamt-bewertung","Zielwert \n der Ziel-vereinbarung",null,"Kommentar","erforderliche Leistungen, Maßnahmen, Methoden","erforderliche Dokumente/ Nachweise","Termin","Zuständigkeit",null,"Zielwert","Gesamt-bewertung gemäß \nEnd-bewertung"]
[null,null,null,null,null,"Soll","Punkt-\nzahl"]
[]
[null,"Gesamterfüllungsgrad",null,null,null,null,{"$f":"IF(SUM(O13:O204)>100%,100%,SUM(O13:O204))","v":0}]
[null,null,null,null,null,null,null,null,null,null,null,null,"qwertz"]
[]
[null,{"$f":"'BNB-System'!E6","v":"Ökologische Qualität"},null,null,{"$f":"'BNB-System'!J6","v":0.22500000000000001},null,{"$f":"G13*(E13/100)+G14*(E14/100)+G15*(E15/100)+G16*(E16/100)+G17*(E17/100)+G18*(E18/100)+G19*(E19/100)+G21*(E21/100)+G25*(E25/100)+G26*(E26/100)","v":0},null,null,null,null,null,null,{"$f":"'BNB-System'!K6","v":1800}]
[]
[null,null,"Wirkungen auf die globale und lokale  Umwelt"]
[null,{"$f":"'BNB-System'!E9","v":" 1.1.1"},{"$f":"'BNB-System'!F9","v":"Treibhauspotenzial (GWP)"},{"$f":"'BNB-System'!G9","v":100},{"$f":"'BNB-System'!J9","v":3.7499999999999999E-2},"o",null,null,null,null,null,null,null,{"$f":"'BNB-System'!K9","v":300},{"$f":"IF(ISNUMBER(E13*G13/100),E13*G13/100,0)","v":0}]
[null,{"$f":"'BNB-System'!E10","v":" 1.1.2"},{"$f":"'BNB-System'!F10","v":"Ozonschichtabbaupotenzial (ODP)"},{"$f":"'BNB-System'!G10","v":100},{"$f":"'BNB-System'!J10","v":1.2499999999999999E-2},"x",null,null,null,null,null,null,null,{"$f":"'BNB-System'!K10","v":100},{"$f":"IF(ISNUMBER(E14*G14/100),E14*G14/100,0)","v":0}]
[null,{"$f":"'BNB-System'!E11","v":" 1.1.3"},{"$f":"'BNB-System'!F11","v":"Ozonbildungspotenzial (POCP)"},{"$f":"'BNB-System'!G11","v":100},{"$f":"'BNB-System'!J11","v":1.2499999999999999E-2},null,null,null,null,null,null,null,null,{"$f":"'BNB-System'!K11","v":100},0]
[null,{"$f":"'BNB-System'!E12","v":" 1.1.4"},{"$f":"'BNB-System'!F12","v":"Versauerungspotenzial (AP)"},{"$f":"'BNB-System'!G12","v":100},{"$f":"'BNB-System'!J12","v":1.2499999999999999E-2},null,null,null,null,null,null,null,null,{"$f":"'BNB-System'!K12","v":100},0]
[null,{"$f":"'BNB-System'!E13","v":" 1.1.5"},{"$f":"'BNB-System'!F13","v":"Überdüngungspotenzial (EP)"},{"$f":"'BNB-System'!G13","v":100},{"$f":"'BNB-System'!J13","v":1.2499999999999999E-2},null,null,null,null,null,null,null,null,{"$f":"'BNB-System'!K13","v":100},0]
[null,{"$f":"'BNB-System'!E14","v":" 1.1.6"},{"$f":"'BNB-System'!F14","v":"Risiken für die lokale Umwelt"},{"$f":"'BNB-System'!G14","v":100},{"$f":"'BNB-System'!J14","v":3.7499999999999999E-2},null,null,null,null,null,null,null,null,{"$f":"'BNB-System'!K14","v":300},0]
[null,{"$f":"'BNB-System'!E15","v":" 1.1.7"},{"$f":"'BNB-System'!F15","v":"Nachhaltige Materialgewinnung / Biodiversität"},{"$f":"'BNB-System'!G15","v":100},{"$f":"'BNB-System'!J15","v":1.2499999999999999E-2},null,null,null,null,null,null,null,null,{"$f":"'BNB-System'!K15","v":100},0]
[null,null,{"$f":"'BNB-System'!F16","v":"Ressourceninanspruchnahme"}]
[null,{"$f":"'BNB-System'!E17","v":" 1.2.1"},{"$f":"'BNB-System'!F17","v":"Primärenergiebedarf"},{"$f":"'BNB-System'!G17","v":100},{"$f":"'BNB-System'!J17","v":3.7499999999999999E-2},null,{"$f":"IF(SUM(G22:G24)>100,100,SUM(G22:G24))","v":0},null,null,null,null,null,null,{"$f":"'BNB-System'!K17","v":300},0]
[null,null,{"$f":"'BNB-System'!F18","v":"Primärenergiebedarf nicht erneuerbar (PEne)"},{"$f":"'BNB-System'!G18","v":60}]
[null,null,{"$f":"'BNB-System'!F19","v":"Gesamtenergiebedarf (PEges)"},{"$f":"'BNB-System'!G19","v":40}]
[null,null,{"$f":"'BNB-System'!F20","v":"Anteil erneuerbarer Primärenergie (PEe)"},{"$f":"'BNB-System'!G20","v":20}]
[null,{"$f":"'BNB-System'!E21","v":" 1.2.3"},{"$f":"'BNB-System'!F21","v":"Trinkwasserbedarf und Abwasseraufkommen"},{"$f":"'BNB-System'!G21","v":100},{"$f":"'BNB-System'!J21","v":2.4999999999999998E-2},null,null,null,null,null,null,null,null,{"$f":"'BNB-System'!K21","v":200},{"$f":"IF(ISNUMBER(E25*G25/100),E25*G25/100,0)","v":0}]
[null,{"$f":"'BNB-System'!E22","v":" 1.2.4"},{"$f":"'BNB-System'!F22","v":"Flächeninanspruchnahme"},{"$f":"'BNB-System'!G22","v":100},{"$f":"'BNB-System'!J22","v":2.4999999999999998E-2},null,null,null,null,null,null,null,null,{"$f":"'BNB-System'!K22","v":200},0]
[]
[null,{"$f":"'BNB-System'!E24","v":"Ökonomische Qualität"},null,null,{"$f":"'BNB-System'!J24","v":0.22500000000000001},null,{"$f":"G31*(E31/100)+G33*(E33/100)","v":0},null,null,null,null,null,null,{"$f":"'BNB-System'!K24","v":500}]
[]
[null,null,{"$f":"'BNB-System'!F26","v":"Lebenszykluskosten"}]
[null,{"$f":"'BNB-System'!E27","v":" 2.1.1"},{"$f":"'BNB-System'!F27","v":"Gebäudebezogene Kosten im Lebenszyklus"},{"$f":"'BNB-System'!G27","v":100},{"$f":"'BNB-System'!J27","v":0.13500000000000001},null,null,null,null,null,null,null,null,{"$f":"'BNB-System'!K27","v":300},{"$f":"IF(ISNUMBER(E31*G31/100),E31*G31/100,0)","v":0}]
[null,null,{"$f":"'BNB-System'!F28","v":"Wertentwicklung"}]
[null,{"$f":"'BNB-System'!E29","v":" 2.2.2"},{"$f":"'BNB-System'!F29","v":"Anpassungsfähigkeit"},{"$f":"'BNB-System'!G29","v":100},{"$f":"'BNB-System'!J29","v":9.0000000000000011E-2},"o",{"$f":"IF(SUM(G34:G39)>100,100,SUM(G34:G39))","v":0},null,null,null,null,null,null,{"$f":"'BNB-System'!K29","v":200},{"$f":"IF(ISNUMBER(E33*G33/100),E33*G33/100,0)","v":0}]
[null,null,{"$f":"'BNB-System'!F30","v":"Lichte Raumhöhe"},{"$f":"'BNB-System'!G30","v":15}]
[null,null,{"$f":"'BNB-System'!F31","v":"Gebäudetiefe"},{"$f":"'BNB-System'!G31","v":15}]
[null,null,{"$f":"'BNB-System'!F32","v":"Vertikale Erschlließung"},{"$f":"'BNB-System'!G32","v":15}]
[null,null,{"$f":"'BNB-System'!F33","v":"Grundrisse"},{"$f":"'BNB-System'!G33","v":25}]
[null,null,{"$f":"'BNB-System'!F34","v":"Konstruktion"},{"$f":"'BNB-System'!G34","v":20}]
[null,null,{"$f":"'BNB-System'!F35","v":"Technische Ausstattung"},{"$f":"'BNB-System'!G35","v":10}]
[]
[null,{"$f":"'BNB-System'!E37","v":"Soziokulturelle und funktionale Qualität"},null,null,{"$f":"'BNB-System'!J37","v":0.22500000000000001},null,{"$f":"G44*(E44/100)+G55*(E55/100)+G58*(E58/100)+G68*(E68/100)+G76*(E76/100)+G86*(E86/100)+G91*(E91/100)+G92*(E92/100)+G98*(E98/100)+G99*(E99/100)+G104*(E104/100)+G109*(E109/100)+G117*(E117/100)","v":0},null,null,null,null,null,null,{"$f":"'BNB-System'!K37","v":2700}]
[]
[null,null,{"$f":"'BNB-System'!F39","v":"Gesundheit, Behaglichkeit und Nutzerzufriedenheit"}]
[null,{"$f":"'BNB-System'!E40","v":" 3.1.1"},{"$f":"'BNB-System'!F40","v":"Thermischer Komfort"},{"$f":"'BNB-System'!G40","v":100},{"$f":"'BNB-System'!J40","v":2.4999999999999998E-2},null,{"$f":"IF(SUM(G45:G54)>100,100,SUM(G45:G54))","v":0},null,null,null,null,null,null,{"$f":"'BNB-System'!K40","v":300},{"$f":"IF(ISNUMBER(E44*G44/100),E44*G44/100,0)","v":0}]
[null,null,{"$f":"'BNB-System'!F41","v":"Winter"}]
[null,null,{"$f":"'BNB-System'!F42","v":"Operative Temperatur"},{"$f":"'BNB-System'!G42","v":10}]
[null,null,{"$f":"'BNB-System'!F43","v":" Zugluft"},{"$f":"'BNB-System'!G43","v":10}]
[null,null,{"$f":"'BNB-System'!F44","v":"Stahlungstemperaturasymmetrie und Fußbodentemperatur"},{"$f":"'BNB-System'!G44","v":10}]
[null,null,{"$f":"'BNB-System'!F45","v":"Relative Luftfeuchte"},{"$f":"'BNB-System'!G45","v":10}]
[null,null,{"$f":"'BNB-System'!F46","v":"Sommer"}]
[null,null,{"$f":"'BNB-System'!F47","v":"Operative Temperatur"},{"$f":"'BNB-System'!G47","v":30}]
[null,null,{"$f":"'BNB-System'!F48","v":" Zugluft"},{"$f":"'BNB-System'!G48","v":10}]
[null,null,{"$f":"'BNB-System'!F49","v":"Stahlungstemperaturasymmetrie und Fußbodentemperatur"},{"$f":"'BNB-System'!G49","v":10}]
[null,null,{"$f":"'BNB-System'!F50","v":"Relative Luftfeuchte"},{"$f":"'BNB-System'!G50","v":10}]
[null,{"$f":"'BNB-System'!E51","v":" 3.1.3"},{"$f":"'BNB-System'!F51","v":"Innenraumlufthygiene"},{"$f":"'BNB-System'!G51","v":100},{"$f":"'BNB-System'!J51","v":2.4999999999999998E-2},null,{"$f":"IF(SUM(G56:G57)>100,100,SUM(G56:G57))","v":0},null,null,null,null,null,null,{"$f":"'BNB-System'!K51","v":300},{"$f":"IF(ISNUMBER(E55*G55/100),E55*G55/100,0)","v":0}]
[null,null,{"$f":"'BNB-System'!F52","v":"Flüchtige organische Stoffe (VOC) und Formaldehyd"},{"$f":"'BNB-System'!G52","v":50}]
[null,null,{"$f":"'BNB-System'!F53","v":"Außenluftvolumenstrom"},{"$f":"'BNB-System'!G53","v":50}]
[null,{"$f":"'BNB-System'!E54","v":" 3.1.4"},{"$f":"'BNB-System'!F54","v":"Akustischer Komfort"},{"$f":"'BNB-System'!G54","v":100},{"$f":"'BNB-System'!J54","v":1.6666666666666666E-2},null,{"$f":"IF(SUM(G60:G67)>100,100,SUM(G60:G67))","v":0},null,null,null,null,null,null,{"$f":"'BNB-System'!K54","v":200},{"$f":"IF(ISNUMBER(E58*G58/100),E58*G58/100,0)","v":0}]
[null,null,{"$f":"'BNB-System'!F55","v":"Räume Gruppe A"}]
[null,null,{"$f":"'BNB-System'!F56","v":"Musik"},{"$f":"'BNB-System'!G56","v":100}]
[null,null,{"$f":"'BNB-System'!F57","v":"Sprache/ Vortrag"},{"$f":"'BNB-System'!G57","v":100}]
[null,null,{"$f":"'BNB-System'!F58","v":"Unterricht/ Kommunikation"},{"$f":"'BNB-System'!G58","v":100}]
[null,null,{"$f":"'BNB-System'!F59","v":"Sport"},{"$f":"'BNB-System'!G59","v":100}]
[null,null,{"$f":"'BNB-System'!F60","v":"Räume Gruppe B"}]
[null,null,{"$f":"'BNB-System'!F61","v":"Einzel- und Mehrpersonenbüros bis 100 m3"},{"$f":"'BNB-System'!G61","v":100}]
[null,null,{"$f":"'BNB-System'!F62","v":"Mehrpersonenbüros über 100 m3"},{"$f":"'BNB-System'!G62","v":100}]
[null,null,{"$f":"'BNB-System'!F63","v":"Weitere Räume"},{"$f":"'BNB-System'!G63","v":100}]
[null,{"$f":"'BNB-System'!E64","v":" 3.1.5"},{"$f":"'BNB-System'!F64","v":"Visueller Komfort"},{"$f":"'BNB-System'!G64","v":100},{"$f":"'BNB-System'!J64","v":1.6666666666666666E-2},null,{"$f":"IF(SUM(G69:G75)>100,100,SUM(G69:G75))","v":0},null,null,null,null,null,null,{"$f":"'BNB-System'!K64","v":200},{"$f":"IF(ISNUMBER(E68*G68/100),E68*G68/100,0)","v":0}]
[null,null,{"$f":"'BNB-System'!F65","v":"Tageslichtverfügbarkeit Gesamtgebäude"},{"$f":"'BNB-System'!G65","v":15}]
[null,null,{"$f":"'BNB-System'!F66","v":"Tageslichtverfügbarkeit Unterrichtsräume und weitere ständige Arbeitsplätze"},{"$f":"'BNB-System'!G66","v":15}]
[null,null,{"$f":"'BNB-System'!F67","v":"Nachweis der Sichtverbindung nach außen"},{"$f":"'BNB-System'!G67","v":35}]
[null,null,{"$f":"'BNB-System'!F68","v":"Blendfreiheit Tageslicht"},{"$f":"'BNB-System'!G68","v":10}]
[null,null,{"$f":"'BNB-System'!F69","v":"Blendfreiheit  Kunstlicht"},{"$f":"'BNB-System'!G69","v":5}]
[null,null,{"$f":"'BNB-System'!F70","v":"Lichtverteilung"},{"$f":"'BNB-System'!G70","v":20}]
[null,null,{"$f":"'BNB-System'!F71","v":"Farbwiedergabe"},{"$f":"'BNB-System'!G71","v":10}]
[null,{"$f":"'BNB-System'!E72","v":" 3.1.6"},{"$f":"'BNB-System'!F72","v":"Einflussnahmemöglichkeiten durch Nutzer"},{"$f":"'BNB-System'!G72","v":100},{"$f":"'BNB-System'!J72","v":1.6666666666666666E-2},null,{"$f":"IF(SUM(G77:G85)>100,100,SUM(G77:G85))","v":0},null,null,null,null,null,null,{"$f":"'BNB-System'!K72","v":200},{"$f":"IF(ISNUMBER(E76*G76/100),E76*G76/100,0)","v":0}]
[null,null,{"$f":"'BNB-System'!F73","v":"Lüftung"},{"$f":"'BNB-System'!G73","v":10}]
[null,null,{"$f":"'BNB-System'!F74","v":"Sonnenschutz"},{"$f":"'BNB-System'!G74","v":10}]
[null,null,{"$f":"'BNB-System'!F75","v":"Blendschutz"},{"$f":"'BNB-System'!G75","v":10}]
[null,null,{"$f":"'BNB-System'!F76","v":"Temperaturen während der Heizperiode"},{"$f":"'BNB-System'!G76","v":10}]
[null,null,{"$f":"'BNB-System'!F77","v":"Temperaturen außerhalb der Heizperiode"},{"$f":"'BNB-System'!G77","v":15}]
[null,null,{"$f":"'BNB-System'!F78","v":"Steuerung von Tageslicht"},{"$f":"'BNB-System'!G78","v":10}]
[null,null,{"$f":"'BNB-System'!F79","v":"Steuerung von  Kunstlicht"},{"$f":"'BNB-System'!G79","v":10}]
[null,null,{"$f":"'BNB-System'!F80","v":"Bedienfreundlichkeit"},{"$f":"'BNB-System'!G80","v":10}]
[null,null,{"$f":"'BNB-System'!F81","v":"Funktionskonzept der Haustechnik"},{"$f":"'BNB-System'!G81","v":15}]
[null,{"$f":"'BNB-System'!E82","v":" 3.1.7"},{"$f":"'BNB-System'!F82","v":"Aufenthaltsmerkmale im Außenraum"},{"$f":"'BNB-System'!G82","v":100},{"$f":"'BNB-System'!J82","v":1.6666666666666666E-2},null,{"$f":"IF(SUM(G87:G90)>100,100,SUM(G87:G90))","v":0},null,null,null,null,null,null,{"$f":"'BNB-System'!K82","v":200},{"$f":"IF(ISNUMBER(E86*G86/100),E86*G86/100,0)","v":0}]
[null,null,{"$f":"'BNB-System'!F83","v":"Anzahl und Vielfalt Sitzgelegenheiten"},{"$f":"'BNB-System'!G83","v":30}]
[null,null,{"$f":"'BNB-System'!F84","v":"Anzahlund Vielfalt der Spiel- und Sportmöglichkeiten"},{"$f":"'BNB-System'!G84","v":15}]
[null,null,{"$f":"'BNB-System'!F85","v":"Zuordnung von Freibereichen zu Innenräumen"},{"$f":"'BNB-System'!G85","v":20}]
[null,null,{"$f":"'BNB-System'!F86","v":"Ausstattungsmerkmale"},{"$f":"'BNB-System'!G86","v":39}]
[null,{"$f":"'BNB-System'!E87","v":" 3.1.8"},{"$f":"'BNB-System'!F87","v":"Sicherheit"},{"$f":"'BNB-System'!G87","v":100},{"$f":"'BNB-System'!J87","v":8.3333333333333332E-3},null,null,null,null,null,null,null,null,{"$f":"'BNB-System'!K87","v":100},{"$f":"IF(ISNUMBER(E91*G91/100),E91*G91/100,0)","v":0}]
[null,{"$f":"'BNB-System'!E88","v":" 3.1.9"},{"$f":"'BNB-System'!F88","v":"Innenraumqualität"},{"$f":"'BNB-System'!G88","v":100},{"$f":"'BNB-System'!J88","v":2.4999999999999998E-2},null,{"$f":"IF(SUM(G93:G96)>100,100,SUM(G93:G96))","v":0},null,null,null,null,null,null,{"$f":"'BNB-System'!K88","v":300},{"$f":"IF(ISNUMBER(E92*G92/100),E92*G92/100,0)","v":0}]
[null,null,{"$f":"'BNB-System'!F89","v":"Aufenthaltsqualitäten der Erschließungsflächen"},{"$f":"'BNB-System'!G89","v":45}]
[null,null,{"$f":"'BNB-System'!F90","v":"Innere Sitzbeziehung"},{"$f":"'BNB-System'!G90","v":15}]
[null,null,{"$f":"'BNB-System'!F91","v":"Flexibilität der Raumnutzung"},{"$f":"'BNB-System'!G91","v":30}]
[null,null,{"$f":"'BNB-System'!F92","v":"Aufbewahrungsmöglichkeiten"},{"$f":"'BNB-System'!G92","v":40}]
[null,null,{"$f":"'BNB-System'!F93","v":"Funktionalität"}]
[null,{"$f":"'BNB-System'!E94","v":" 3.2.1"},{"$f":"'BNB-System'!F94","v":"Barrierefreiheit"},{"$f":"'BNB-System'!G94","v":100},{"$f":"'BNB-System'!J94","v":1.6666666666666666E-2},null,null,null,null,null,null,null,null,{"$f":"'BNB-System'!K94","v":200},{"$f":"IF(ISNUMBER(E98*G98/100),E98*G98/100,0)","v":0}]
[null,{"$f":"'BNB-System'!E95","v":" 3.2.4"},{"$f":"'BNB-System'!F95","v":"Zugänglichkeit"},{"$f":"'BNB-System'!G95","v":100},{"$f":"'BNB-System'!J95","v":1.6666666666666666E-2},null,{"$f":"IF(SUM(G100:G103)>100,100,SUM(G100:G103))","v":0},null,null,null,null,null,null,{"$f":"'BNB-System'!K95","v":200},0]
[null,null,{"$f":"'BNB-System'!F96","v":"Grundsätzliche öffentliche Zugänglichkeit des Gebäudes"},{"$f":"'BNB-System'!G96","v":20}]
[null,null,{"$f":"'BNB-System'!F97","v":"Qualitative Merkmale der öffentlichen Zugänglichkeit des Gebäudes"},{"$f":"'BNB-System'!G97","v":50}]
[null,null,{"$f":"'BNB-System'!F98","v":"Nutzungsmerkmale der Zugänglichkeit"},{"$f":"'BNB-System'!G98","v":50}]
[null,null,{"$f":"'BNB-System'!F99","v":"Qualitative Aspekte der öffentlichen Zugänglichkeit der Freiflächen"},{"$f":"'BNB-System'!G99","v":20}]
[null,{"$f":"'BNB-System'!E100","v":" 3.2.5"},{"$f":"'BNB-System'!F100","v":"Mobilitätsinfrastruktur"},{"$f":"'BNB-System'!G100","v":100},{"$f":"'BNB-System'!J100","v":8.3333333333333332E-3},null,{"$f":"IF(SUM(G105:G107)>100,100,SUM(G105:G107))","v":0},null,null,null,null,null,null,{"$f":"'BNB-System'!K100","v":100},{"$f":"IF(ISNUMBER(E104*G104/100),E104*G104/100,0)","v":0}]
[null,null,{"$f":"'BNB-System'!F101","v":"Anzahl der Fahrradstellplätze"},{"$f":"'BNB-System'!G101","v":40}]
[null,null,{"$f":"'BNB-System'!F102","v":"Anzahl der Lademöglichkeiten und Carsharing-Stellplätze"},{"$f":"'BNB-System'!G102","v":20}]
[null,null,{"$f":"'BNB-System'!F103","v":"Qualitative Anforderungen an Fahrradstellplätze"},{"$f":"'BNB-System'!G103","v":60}]
[null,null,{"$f":"'BNB-System'!F104","v":"Sicherung der Gestaltungsqualität"}]
[null,{"$f":"'BNB-System'!E105","v":" 3.3.1"},{"$f":"'BNB-System'!F105","v":"Gestalterische und städtebauliche Qualität"},{"$f":"'BNB-System'!G105","v":100},{"$f":"'BNB-System'!J105","v":2.4999999999999998E-2},null,{"$f":"IF(AND(G110>0,G114<=G115),SUM(G110:G113),IF(AND(G110>0,G115<=G114),SUM(G110:G113),IF(G114>0,G114,IF(G115>0,G115,G116))))","v":0},null,null,null,null,null,null,{"$f":"'BNB-System'!K105","v":300},{"$f":"IF(ISNUMBER(E109*G109/100),E109*G109/100,0)","v":0}]
[null,null,{"$f":"'BNB-System'!F106","v":"Durchführung von Planungswettbewerben"},{"$f":"'BNB-System'!G106","v":20}]
[null,null,{"$f":"'BNB-System'!F107","v":"Wettbewerbsverfahren"},{"$f":"'BNB-System'!G107","v":40}]
[null,null,{"$f":"'BNB-System'!F108","v":"Ausführung des Entwurfs eines der Preisträger"},{"$f":"'BNB-System'!G108","v":30}]
[null,null,{"$f":"'BNB-System'!F109","v":"Beauftragung des Planungsteams"},{"$f":"'BNB-System'!G109","v":10}]
[null,null,{"$f":"'BNB-System'!F110","v":"Auszeichnung mit einem Architekturpreis"},{"$f":"'BNB-System'!G110","v":60}]
[null,null,{"$f":"'BNB-System'!F111","v":"Unabhängiges Expertengremium"},{"$f":"'BNB-System'!G111","v":40}]
[null,null,{"$f":"'BNB-System'!F112","v":"Sonderfall Mindestanforderung"},{"$f":"'BNB-System'!G112","v":10}]
[null,{"$f":"'BNB-System'!E113","v":" 3.3.2"},{"$f":"'BNB-System'!F113","v":"Kunst am Bau "},{"$f":"'BNB-System'!G113","v":100},{"$f":"'BNB-System'!J113","v":8.3333333333333332E-3},null,{"$f":"IF(SUM(G118:G121)>100,100,SUM(G118:G121))","v":0},null,null,null,null,null,null,{"$f":"'BNB-System'!K113","v":100},{"$f":"IF(ISNUMBER(E117*G117/100),E117*G117/100,0)","v":0}]
[null,null,{"$f":"'BNB-System'!F114","v":"Mindestanforderung"},{"$f":"'BNB-System'!G114","v":10}]
[null,null,{"$f":"'BNB-System'!F115","v":"Bereitstellung von Mitteln im Rahmen der Bauaufgabe"},{"$f":"'BNB-System'!G115","v":30}]
[null,null,{"$f":"'BNB-System'!F116","v":"Umsetzung des Leitfadens Kunst am Bau"},{"$f":"'BNB-System'!G116","v":40}]
[null,null,{"$f":"'BNB-System'!F117","v":"Öffentlichkeitsarbeit, Rezeption  der Kunst am Bau"},{"$f":"'BNB-System'!G117","v":20}]
[]
[null,{"$f":"'BNB-System'!E119","v":"Technische Qualität"},null,null,{"$f":"'BNB-System'!J119","v":0.22500000000000001},null,{"$f":"G126*(E126/100)+G131*(E131/100)+G138*(E138/100)+G149*(E149/100)+G150*(E150/100)+G151*(E151/100)","v":0},null,null,null,null,null,null,{"$f":"'BNB-System'!K119","v":1000}]
[]
[null,null,{"$f":"'BNB-System'!F121","v":"technische Ausführung"}]
[null,{"$f":"'BNB-System'!E122","v":" 4.1.1"},{"$f":"'BNB-System'!F122","v":"Schallschutz "},{"$f":"'BNB-System'!G122","v":100},{"$f":"'BNB-System'!J122","v":4.5000000000000005E-2},null,{"$f":"IF(SUM(G127:G130)>100,100,SUM(G127:G130))","v":0},null,null,null,null,null,null,{"$f":"'BNB-System'!K122","v":200},{"$f":"IF(ISNUMBER(E126*G126/100),E126*G126/100,0)","v":0}]
[null,null,{"$f":"'BNB-System'!F123","v":"Luftschallschutz gegenüber Außenlärm"},{"$f":"'BNB-System'!G123","v":20}]
[null,null,{"$f":"'BNB-System'!F124","v":"Luftschallschutz "},{"$f":"'BNB-System'!G124","v":30}]
[null,null,{"$f":"'BNB-System'!F125","v":"Trittschallschutz "},{"$f":"'BNB-System'!G125","v":30}]
[null,null,{"$f":"'BNB-System'!F126","v":"Schallschutz gegenüber haustechnischen Anlagen"},{"$f":"'BNB-System'!G126","v":20}]
[null,{"$f":"'BNB-System'!E127","v":" 4.1.2"},{"$f":"'BNB-System'!F127","v":"Wärme- und Tauwasserschutz "},{"$f":"'BNB-System'!G127","v":100},{"$f":"'BNB-System'!J127","v":4.5000000000000005E-2},null,{"$f":"IF(SUM(G132:G137)>100,100,SUM(G132:G137))","v":0},null,null,null,null,null,null,{"$f":"'BNB-System'!K127","v":200},{"$f":"IF(ISNUMBER(E131*G131/100),E131*G131/100,0)","v":0}]
[null,null,{"$f":"'BNB-System'!F128","v":"Mittlere Wärmeduchgangskoeffizienten"},{"$f":"'BNB-System'!G128","v":30}]
[null,null,{"$f":"'BNB-System'!F129","v":"Wärmebrückenzuschlag"},{"$f":"'BNB-System'!G129","v":15}]
[null,null,{"$f":"'BNB-System'!F130","v":"Klassen der Luftdurchlässigkeit (Fugendurchlässigkeit)"},{"$f":"'BNB-System'!G130","v":15}]
[null,null,{"$f":"'BNB-System'!F131","v":"Tauwasserbildung"},{"$f":"'BNB-System'!G131","v":10}]
[null,null,{"$f":"'BNB-System'!F132","v":"Luftwechsel"},{"$f":"'BNB-System'!G132","v":15}]
[null,null,{"$f":"'BNB-System'!F133","v":"Sonneneintragswert"},{"$f":"'BNB-System'!G133","v":15}]
[null,{"$f":"'BNB-System'!E134","v":" 4.1.3"},{"$f":"'BNB-System'!F134","v":"Reinigungs- und Instandhaltungsfreundlichkeit"},{"$f":"'BNB-System'!G134","v":100},{"$f":"'BNB-System'!J134","v":4.5000000000000005E-2},null,{"$f":"IF(SUM(G139:G148)>100,100,SUM(G139:G148))","v":0},null,null,null,null,null,null,{"$f":"'BNB-System'!K134","v":200},{"$f":"IF(ISNUMBER(E138*G138/100),E138*G138/100,0)","v":0}]
[null,null,{"$f":"'BNB-System'!F135","v":"Tragkonstruktion"},{"$f":"'BNB-System'!G135","v":15}]
[null,null,{"$f":"'BNB-System'!F136","v":"Zugänglichkeit der Außenanlagen"},{"$f":"'BNB-System'!G136","v":12}]
[null,null,{"$f":"'BNB-System'!F137","v":"Außenbauteile"},{"$f":"'BNB-System'!G137","v":9}]
[null,null,{"$f":"'BNB-System'!F138","v":"Bodenbelag"},{"$f":"'BNB-System'!G138","v":9}]
[null,null,{"$f":"'BNB-System'!F139","v":"Schmutzfangzone"},{"$f":"'BNB-System'!G139","v":9}]
[null,null,{"$f":"'BNB-System'!F140","v":"Fußbodenleisten"},{"$f":"'BNB-System'!G140","v":9}]
[null,null,{"$f":"'BNB-System'!F141","v":"Hindernisfreie Grundrissgestaltung"},{"$f":"'BNB-System'!G141","v":9}]
[null,null,{"$f":"'BNB-System'!F142","v":"Einbauten"},{"$f":"'BNB-System'!G142","v":10}]
[null,null,{"$f":"'BNB-System'!F143","v":"Zugänglichkeit der Innenglasflächen "},{"$f":"'BNB-System'!G143","v":9}]
[null,null,{"$f":"'BNB-System'!F144","v":"Wände"},{"$f":"'BNB-System'!G144","v":9}]
[null,{"$f":"'BNB-System'!E145","v":" 4.1.4"},{"$f":"'BNB-System'!F145","v":"Rückbau, Trennung und Verwertung"},{"$f":"'BNB-System'!G145","v":100},{"$f":"'BNB-System'!J145","v":4.5000000000000005E-2},null,null,null,null,null,null,null,null,{"$f":"'BNB-System'!K145","v":200},{"$f":"IF(ISNUMBER(E149*G149/100),E149*G149/100,0)","v":0}]
[null,{"$f":"'BNB-System'!E146","v":" 4.1.5"},{"$f":"'BNB-System'!F146","v":"Widerstandsfähigkeit gegen Naturgefahren"},{"$f":"'BNB-System'!G146","v":100},{"$f":"'BNB-System'!J146","v":2.2500000000000003E-2},null,null,null,null,null,null,null,null,{"$f":"'BNB-System'!K146","v":100},0]
[null,{"$f":"'BNB-System'!E147","v":" 4.1.6"},{"$f":"'BNB-System'!F147","v":"Bedienungs- und Instandhaltungsfreundlichkeit der TGA"},{"$f":"'BNB-System'!G147","v":100},{"$f":"'BNB-System'!J147","v":2.2500000000000003E-2},null,{"$f":"IF(SUM(G152:G158)>100,100,SUM(G152:G158))","v":0},null,null,null,null,null,null,{"$f":"'BNB-System'!K147","v":100},{"$f":"IF(ISNUMBER(E151*G151/100),E151*G151/100,0)","v":0}]
[null,null,{"$f":"'BNB-System'!F148","v":"KG 410 Abwasser-, Wasser-, Gasanlagen"}]
[null,null,{"$f":"'BNB-System'!F149","v":"KG 420 Wärmeversorgungsanlagen"}]
[null,null,{"$f":"'BNB-System'!F150","v":"KG 430 Lufttechnische Anlagen"}]
[null,null,{"$f":"'BNB-System'!F151","v":"KG 435 Kälteversorgungsanlagen"}]
[null,null,{"$f":"'BNB-System'!F152","v":"KG 440 Starkstromanlagen"}]
[null,null,{"$f":"'BNB-System'!F153","v":"KG 460 Förderanlagen"}]
[null,null,{"$f":"'BNB-System'!F154","v":"KG 480 Gebäudeautomation"}]
[]
[null,{"$f":"'BNB-System'!E156","v":"Prozessqualität"},null,null,{"$f":"'BNB-System'!J156","v":0.1},null,{"$f":"G163*(E163/100)+G167*(E167/100)+G173*(E173/100)+G189*(E189/100)+G190*(E190/100)+G196*(E196/100)+G201*(E201/100)+G204*(E204/100)","v":0},null,null,null,null,null,null,{"$f":"'BNB-System'!K156","v":2100}]
[]
[null,null,{"$f":"'BNB-System'!F158","v":"Planung"}]
[null,{"$f":"'BNB-System'!E159","v":" 5.1.1"},{"$f":"'BNB-System'!F159","v":"Projektvorbereitung"},{"$f":"'BNB-System'!G159","v":100},{"$f":"'BNB-System'!J159","v":1.4285714285714285E-2},null,{"$f":"IF(SUM(G164:G166)>100,100,SUM(G164:G166))","v":0},null,null,null,null,null,null,{"$f":"'BNB-System'!K159","v":300},{"$f":"IF(ISNUMBER(E163*G163/100),E163*G163/100,0)","v":0}]
[null,null,{"$f":"'BNB-System'!F160","v":"Bedarfsplanung oder vergleichbare Planung"},{"$f":"'BNB-System'!G160","v":35}]
[null,null,{"$f":"'BNB-System'!F161","v":"Zielvereinbarung"},{"$f":"'BNB-System'!G161","v":35}]
[null,null,{"$f":"'BNB-System'!F162","v":"Architektenwettbewerb"},{"$f":"'BNB-System'!G162","v":30}]
[null,{"$f":"'BNB-System'!E163","v":" 5.1.2"},{"$f":"'BNB-System'!F163","v":"Integrale Planung"},{"$f":"'BNB-System'!G163","v":100},{"$f":"'BNB-System'!J163","v":1.4285714285714285E-2},null,{"$f":"IF(SUM(G168:G172)>100,100,SUM(G168:G172))","v":0},null,null,null,null,null,null,{"$f":"'BNB-System'!K163","v":300},{"$f":"IF(ISNUMBER(E167*G167/100),E167*G167/100,0)","v":0}]
[null,null,{"$f":"'BNB-System'!F164","v":"Interdisziplinäres Planungsteam "},{"$f":"'BNB-System'!G164","v":20}]
[null,null,{"$f":"'BNB-System'!F165","v":"Qualifikation des Planungsteams"},{"$f":"'BNB-System'!G165","v":20}]
[null,null,{"$f":"'BNB-System'!F166","v":"Integraler Planungsprozess"},{"$f":"'BNB-System'!G166","v":20}]
[null,null,{"$f":"'BNB-System'!F167","v":"Nutzerbeteiligung"},{"$f":"'BNB-System'!G167","v":30}]
[null,null,{"$f":"'BNB-System'!F168","v":"Öffentlichkeitsbeteiligung"},{"$f":"'BNB-System'!G168","v":10}]
[null,{"$f":"'BNB-System'!E169","v":" 5.1.3"},{"$f":"'BNB-System'!F169","v":"Komplexität und Optimierung der Planung"},{"$f":"'BNB-System'!G169","v":100},{"$f":"'BNB-System'!J169","v":1.4285714285714285E-2},null,{"$f":"IF(SUM(G174:G188)>100,100,SUM(G174:G188))","v":0},null,null,null,null,null,null,{"$f":"'BNB-System'!K169","v":300},{"$f":"IF(ISNUMBER(E173*G173/100),E173*G173/100,0)","v":0}]
[null,null,{"$f":"'BNB-System'!F170","v":"SiGe-Plan"},{"$f":"'BNB-System'!G170","v":10}]
[null,null,{"$f":"'BNB-System'!F171","v":"Ver- und Entsiegelungskonzept"},{"$f":"'BNB-System'!G171","v":10}]
[null,null,{"$f":"'BNB-System'!F172","v":"Energiekonzept"},{"$f":"'BNB-System'!G172","v":15}]
[null,null,{"$f":"'BNB-System'!F173","v":"Mess- und Monitoringkonzept"},{"$f":"'BNB-System'!G173","v":15}]
[null,null,{"$f":"'BNB-System'!F174","v":"Wasserkonzept"},{"$f":"'BNB-System'!G174","v":10}]
[null,null,{"$f":"'BNB-System'!F175","v":"Konzept zur Vermeidung von Umwelt- und Gesundheitsrisiken aus Bauprodukten"},{"$f":"'BNB-System'!G175","v":10}]
[null,null,{"$f":"'BNB-System'!F176","v":"Lüftungskonzept"},{"$f":"'BNB-System'!G176","v":10}]
[null,null,{"$f":"'BNB-System'!F177","v":"Abfallkonzept / Wertstoffkonzept"},{"$f":"'BNB-System'!G177","v":5}]
[null,null,{"$f":"'BNB-System'!F178","v":"Tages- / Kunstlichtoptimierung"},{"$f":"'BNB-System'!G178","v":10}]
[null,null,{"$f":"'BNB-System'!F179","v":"Konzept zur Sicherung der Reinigungs- und Instandhaltungsfreundlichkeit"},{"$f":"'BNB-System'!G179","v":10}]
[null,null,{"$f":"'BNB-System'!F180","v":"Anpassbarkeits-, Rückbau- und Recyclingkonzept"},{"$f":"'BNB-System'!G180","v":10}]
[null,null,{"$f":"'BNB-System'!F181","v":"Konzept zur Vermeidung und Beherrschung von Risiken"},{"$f":"'BNB-System'!G181","v":10}]
[null,null,{"$f":"'BNB-System'!F182","v":"Sonstige Konzepte zum Nachhaltigen Bauen"},{"$f":"'BNB-System'!G182","v":10}]
[null,null,{"$f":"'BNB-System'!F183","v":"Prüfung der Planungsunterlagen durch unabhängige Dritte"},{"$f":"'BNB-System'!G183","v":5}]
[null,null,{"$f":"'BNB-System'!F184","v":"Durchführung von Variantenvergleichen"},{"$f":"'BNB-System'!G184","v":10}]
[null,{"$f":"'BNB-System'!E185","v":" 5.1.4"},{"$f":"'BNB-System'!F185","v":"Ausschreibung und Vergabe"},{"$f":"'BNB-System'!G185","v":100},{"$f":"'BNB-System'!J185","v":9.5238095238095247E-3},null,null,null,null,null,null,null,null,{"$f":"'BNB-System'!K185","v":200},{"$f":"IF(ISNUMBER(E189*G189/100),E189*G189/100,0)","v":0}]
[null,{"$f":"'BNB-System'!E186","v":" 5.1.5"},{"$f":"'BNB-System'!F186","v":"Voraussetzungen für eine optimale Bewirtschaftung"},{"$f":"'BNB-System'!G186","v":100},{"$f":"'BNB-System'!J186","v":9.5238095238095247E-3},null,{"$f":"IF(SUM(G191:G194)>100,100,SUM(G191:G194))","v":0},null,null,null,null,null,null,{"$f":"'BNB-System'!K186","v":200},0]
[null,null,{"$f":"'BNB-System'!F187","v":"Erstellung einer Gebäudeakte / Objektdokumentation"},{"$f":"'BNB-System'!G187","v":25}]
[null,null,{"$f":"'BNB-System'!F188","v":"Erstellung von Wartungs-, Inspektions-, Betriebs-, und Pflegeanleitungen"},{"$f":"'BNB-System'!G188","v":25}]
[null,null,{"$f":"'BNB-System'!F189","v":"Anpassung der Pläne und Berechnungen an das realisierte Gebäude"},{"$f":"'BNB-System'!G189","v":25}]
[null,null,{"$f":"'BNB-System'!F190","v":"Erstellung eines Nutzerhandbuches"},{"$f":"'BNB-System'!G190","v":25}]
[null,null,{"$f":"'BNB-System'!F191","v":"Bauausführung"}]
[null,{"$f":"'BNB-System'!E192","v":" 5.2.1"},{"$f":"'BNB-System'!F192","v":"Baustelle / Bauprozess"},{"$f":"'BNB-System'!G192","v":100},{"$f":"'BNB-System'!J192","v":9.5238095238095247E-3},null,{"$f":"IF(SUM(G197:G200)>100,100,SUM(G197:G200))","v":0},null,null,null,null,null,null,{"$f":"'BNB-System'!K192","v":200},{"$f":"IF(ISNUMBER(E196*G196/100),E196*G196/100,0)","v":0}]
[null,null,{"$f":"'BNB-System'!F193","v":"Wertstoffoptimierte Baustelle"},{"$f":"'BNB-System'!G193","v":25}]
[null,null,{"$f":"'BNB-System'!F194","v":"Lärmarme Baustelle"},{"$f":"'BNB-System'!G194","v":25}]
[null,null,{"$f":"'BNB-System'!F195","v":"Staubarme Baustelle"},{"$f":"'BNB-System'!G195","v":25}]
[null,null,{"$f":"'BNB-System'!F196","v":"Bodenschutz auf der Baustelle"},{"$f":"'BNB-System'!G196","v":25}]
[null,{"$f":"'BNB-System'!E197","v":" 5.2.2"},{"$f":"'BNB-System'!F197","v":"Qualitätssicherung der Bauausführung"},{"$f":"'BNB-System'!G197","v":100},{"$f":"'BNB-System'!J197","v":1.4285714285714285E-2},null,{"$f":"IF(SUM(G202:G203)>100,100,SUM(G202:G203))","v":0},null,null,null,null,null,null,{"$f":"'BNB-System'!K197","v":300},{"$f":"IF(ISNUMBER(E201*G201/100),E201*G201/100,0)","v":0}]
[null,null,{"$f":"'BNB-System'!F198","v":"Dokumentation"},{"$f":"'BNB-System'!G198","v":50}]
[null,null,{"$f":"'BNB-System'!F199","v":"Messungen zur Qualitätskontrolle"},{"$f":"'BNB-System'!G199","v":50}]
[null,{"$f":"'BNB-System'!E200","v":" 5.2.3"},{"$f":"'BNB-System'!F200","v":"Systematische Inbetriebnahme"},{"$f":"'BNB-System'!G200","v":100},{"$f":"'BNB-System'!J200","v":1.4285714285714285E-2},null,null,null,null,null,null,null,null,{"$f":"'BNB-System'!K200","v":300},{"$f":"IF(ISNUMBER(E204*G204/100),E204*G204/100,0)","v":0}]
[]
[]
[null,{"$f":"'BNB-System'!E203","v":"Standortmerkmale"},null,null,{"$f":"'BNB-System'!J203","v":1},null,{"$f":"G210*(E210/100)+G216*(E216/100)+G223*(E223/100)+G228*(E228/100)+G233*(E233/100)+G244*(E244/100)","v":0},null,null,null,null,null,null,{"$f":"'BNB-System'!K203","v":1300}]
[]
[null,null,{"$f":"'BNB-System'!F205","v":"Standortmerkmale"}]
[null,{"$f":"'BNB-System'!E206","v":" 6.1.1"},{"$f":"'BNB-System'!F206","v":"Risiken am Mikrostandort"},{"$f":"'BNB-System'!G206","v":100},{"$f":"'BNB-System'!J206","v":0.15384615384615385},null,{"$f":"IF(SUM(G211:G215)>100,100,SUM(G211:G215))","v":0},null,null,null,null,null,null,{"$f":"'BNB-System'!K206","v":200},{"$f":"IF(ISNUMBER(E210*G210/100),E210*G210/100,0)","v":0}]
[null,null,{"$f":"'BNB-System'!F207","v":"Risiken aus Man-Made-Hazards (Unfälle)"},{"$f":"'BNB-System'!G207","v":20}]
[null,null,{"$f":"'BNB-System'!F208","v":"Risiken aus Erdbeben"},{"$f":"'BNB-System'!G208","v":20}]
[null,null,{"$f":"'BNB-System'!F209","v":"Risiken aus Lawinen"},{"$f":"'BNB-System'!G209","v":20}]
[null,null,{"$f":"'BNB-System'!F210","v":"Risiken aus Sturm"},{"$f":"'BNB-System'!G210","v":20}]
[null,null,{"$f":"'BNB-System'!F211","v":"Risiken aus Hochwasser"},{"$f":"'BNB-System'!G211","v":20}]
[null,{"$f":"'BNB-System'!E212","v":" 6.1.2"},{"$f":"'BNB-System'!F212","v":"Verhältnisse am Mikrostandort"},{"$f":"'BNB-System'!G212","v":100},{"$f":"'BNB-System'!J212","v":0.15384615384615385},null,{"$f":"IF(SUM(G217:G222)>100,100,SUM(G217:G222))","v":0},null,null,null,null,null,null,{"$f":"'BNB-System'!K212","v":200},0]
[null,null,{"$f":"'BNB-System'!F213","v":"Außenluftqualität"},{"$f":"'BNB-System'!G213","v":16}]
[null,null,{"$f":"'BNB-System'!F214","v":"Außenlärmpegel"},{"$f":"'BNB-System'!G214","v":20}]
[null,null,{"$f":"'BNB-System'!F215","v":"Baugrundverhältnisse, Bodenbelastungen"},{"$f":"'BNB-System'!G215","v":16}]
[null,null,{"$f":"'BNB-System'!F216","v":"Elektromagnetische Felder"},{"$f":"'BNB-System'!G216","v":16}]
[null,null,{"$f":"'BNB-System'!F217","v":"Vorkommen von Radon"},{"$f":"'BNB-System'!G217","v":16}]
[null,null,{"$f":"'BNB-System'!F218","v":"Stadt- und Landschaftsbild / Sichtbeziehungen"},{"$f":"'BNB-System'!G218","v":16}]
[null,{"$f":"'BNB-System'!E219","v":" 6.1.3"},{"$f":"'BNB-System'!F219","v":"Quartiersmerkmale"},{"$f":"'BNB-System'!G219","v":100},{"$f":"'BNB-System'!J219","v":0.15384615384615385},null,{"$f":"IF(SUM(G224:G227)>100,100,SUM(G224:G227))","v":0},null,null,null,null,null,null,{"$f":"'BNB-System'!K219","v":200},0]
[null,null,{"$f":"'BNB-System'!F220","v":"Image, Attraktivität"},{"$f":"'BNB-System'!G220","v":25}]
[null,null,{"$f":"'BNB-System'!F221","v":"Synergie- und Konfliktpotenziale"},{"$f":"'BNB-System'!G221","v":25}]
[null,null,{"$f":"'BNB-System'!F222","v":"Kriminalität"},{"$f":"'BNB-System'!G222","v":25}]
[null,null,{"$f":"'BNB-System'!F223","v":"Pflege und Erhaltungszustand"},{"$f":"'BNB-System'!G223","v":25}]
[null,{"$f":"'BNB-System'!E224","v":" 6.1.4"},{"$f":"'BNB-System'!F224","v":"Verkehrsanbindung"},{"$f":"'BNB-System'!G224","v":100},{"$f":"'BNB-System'!J224","v":0.23076923076923078},null,{"$f":"IF(SUM(G229:G232)>100,100,SUM(G229:G232))","v":0},null,null,null,null,null,null,{"$f":"'BNB-System'!K224","v":300},0]
[null,null,{"$f":"'BNB-System'!F225","v":"Verkehrssicherung des Zugangs zur Liegenschaft"},{"$f":"'BNB-System'!G225","v":30}]
[null,null,{"$f":"'BNB-System'!F226","v":"Erreichbarkeit des nächstgelegenen Haupt-/ Fernbahnhofs"},{"$f":"'BNB-System'!G226","v":30}]
[null,null,{"$f":"'BNB-System'!F227","v":"Ereichbarkeit der nächstgelegenen Haltestelle des ÖPNV"},{"$f":"'BNB-System'!G227","v":30}]
[null,null,{"$f":"'BNB-System'!F228","v":"Erschließung der Liegenschaft durch Fuß- und Radweg"},{"$f":"'BNB-System'!G228","v":40}]
[null,{"$f":"'BNB-System'!E229","v":" 6.1.5"},{"$f":"'BNB-System'!F229","v":"Nähe zu nutzungsrelevanten Einrichtungen"},{"$f":"'BNB-System'!G229","v":100},{"$f":"'BNB-System'!J229","v":0.15384615384615385},null,{"$f":"IF(SUM(G234:G243)>100,100,SUM(G234:G243))","v":0},null,null,null,null,null,null,{"$f":"'BNB-System'!K229","v":200},0]
[null,null,{"$f":"'BNB-System'!F230","v":"Gastronomie"},{"$f":"'BNB-System'!G230","v":10}]
[null,null,{"$f":"'BNB-System'!F231","v":"Nahversorgung"},{"$f":"'BNB-System'!G231","v":10}]
[null,null,{"$f":"'BNB-System'!F232","v":"Parkanlagen und Freiräume"},{"$f":"'BNB-System'!G232","v":10}]
[null,null,{"$f":"'BNB-System'!F233","v":"Bildung"},{"$f":"'BNB-System'!G233","v":10}]
[null,null,{"$f":"'BNB-System'!F234","v":"Öffentliche Verwaltung"},{"$f":"'BNB-System'!G234","v":10}]
[null,null,{"$f":"'BNB-System'!F235","v":"Medizinische Versorgung"},{"$f":"'BNB-System'!G235","v":10}]
[null,null,{"$f":"'BNB-System'!F236","v":"Sportstätten"},{"$f":"'BNB-System'!G236","v":10}]
[null,null,{"$f":"'BNB-System'!F237","v":"Freizeit"},{"$f":"'BNB-System'!G237","v":10}]
[null,null,{"$f":"'BNB-System'!F238","v":"Synergie- und Konfliktpotenziale"},{"$f":"'BNB-System'!G238","v":10}]
[null,null,{"$f":"'BNB-System'!F239","v":"Dienstleister"},{"$f":"'BNB-System'!G239","v":10}]
[null,{"$f":"'BNB-System'!E240","v":" 6.1.6"},{"$f":"'BNB-System'!F240","v":"Anliegende Medien / Erschließung"},{"$f":"'BNB-System'!G240","v":100},{"$f":"'BNB-System'!J240","v":0.15384615384615385},null,{"$f":"IF(SUM(G245:G248)>100,100,SUM(G245:G248))","v":0},null,null,null,null,null,null,{"$f":"'BNB-System'!K240","v":200},0]
[null,null,{"$f":"'BNB-System'!F241","v":"Leitungsgebundene Energie"},{"$f":"'BNB-System'!G241","v":25}]
[null,null,{"$f":"'BNB-System'!F242","v":"Solarenergie"},{"$f":"'BNB-System'!G242","v":25}]
[null,null,{"$f":"'BNB-System'!F243","v":"Breitband-Anschluss"},{"$f":"'BNB-System'!G243","v":25}]
[null,null,{"$f":"'BNB-System'!F244","v":"Regenwasserversickerung"},{"$f":"'BNB-System'!G244","v":50}]

{"sheet":"Bewertung durch Anwender","index":2,"n_rows":248,"n_cols":20,"rows_kept":248,"cut":false,"hidden":false,"merged":[[0,2,0,6],[3,16,4,16],[3,4,4,4],[3,17,4,17],[6,1,6,2],[3,1,4,2],[3,15,4,15],[3,3,4,3],[3,14,4,14]]}
[null,{"$f":"'BNB-System'!B1","v":"Projekt:"},{"$f":"Zielvereinbarung!C1","v":"Projektbezeichnung"},null,null,null,null,null,null,null,null,null,null,{"$f":"Zielvereinbarung!$G$1","v":"2019-10-23"}]
[null,{"$f":"'BNB-System'!B2","v":"Bewertungssystem Nachhaltiges Bauen (BNB)"}]
[null,{"$f":"'BNB-System'!B3","v":"Systemvariante Unterrichtsgebäude, Modul Neubau (BNB_UN) - Version 2017"}]
[null,"Nachhaltigkeitskriterien",null,"maximale Punktzahl","Gewichtung\nGesamt-bewertung","Zielwert aus der Ziel-vereinbarung","Zielwert  der Ziel-vereinbarung","Zielwert  der Ziel-vereinbarung","1. Korrektur \nZielwert","Kommentar","2. Korrektur \nZielwert","Kommentar"," Zwischen-bewertung","Endbewertung",null,"Zielwert","Gesamt-bewertung gemäß \nEnd-bewertung"]
[null,null,null,null,null,null,"Soll","aus Registerkarte \"Zielvereinbarung\"",{"$f":"TODAY()","v":"2019-10-23"},"Eintrag erforderlich\n für Zielwertkorrektur","2015-02-22","Eintrag erforderlich\n für Zielwertkorrektur",{"$f":"TODAY()","v":"2019-10-23"}]
[]
[null,"Gesamterfüllungsgrad",null,null,null,null,{"$f":"G10+G28+G41+G123+G160","v":0},{"$f":"Zielvereinbarung!G7","v":0},null,null,null,null,{"$f":"M10+M28+M41+M123+M160","v":0},{"$f":"N10+N28+N41+N123+N160","v":0}]
[null,null,null,null,null,null,null,null,null,null,null,null,"to_copy_zb","to_insert_zb","qwertz"]
[]
[null,{"$f":"'BNB-System'!E6","v":"Ökologische Qualität"},null,null,0.22500000000000001,null,{"$f":"G13*($E$13/100)+G14*($E$14/100)+G15*($E$15/100)+G16*($E$16/100)+G17*($E$17/100)+G18*($E$18/100)+G19*($E$19/100)+G21*($E$21/100)+G25*($E$25/100)+G26*($E$26/100)","v":0},{"$f":"Zielvereinbarung!G10","v":0},null,null,null,null,{"$f":"M13*($E$13/100)+M14*($E$14/100)+M15*($E$15/100)+M16*($E$16/100)+M17*($E$17/100)+M18*($E$18/100)+M19*($E$19/100)+M21*($E$21/100)+M25*($E$25/100)+M26*($E$26/100)","v":0},{"$f":"N13*($E$13/100)+N14*($E$14/100)+N15*($E$15/100)+N16*($E$16/100)+N17*($E$17/100)+N18*($E$18/100)+N19*($E$19/100)+N21*($E$21/100)+N25*($E$25/100)+N26*($E$26/100)","v":0},null,{"$f":"'BNB-System'!K6","v":1800}]
[null,null,null,null,null,null,null,null,null,null,null,null,null,null,null,{"$f":"'BNB-System'!K7","v":0}]
[null,null,"Wirkungen auf die globale und lokale  Umwelt",null,null,null,null,null,null,null,null,null,null,null,null,{"$f":"'BNB-System'!K8","v":0}]
[null,{"$f":"'BNB-System'!E9","v":" 1.1.1"},{"$f":"'BNB-System'!F9","v":"Treibhauspotenzial (GWP)"},{"$f":"'BNB-System'!G9","v":100},{"$f":"'BNB-System'!J9","v":3.7499999999999999E-2},"o",{"$f":"IF(AND(NOT(ISBLANK(K13)),NOT(ISBLANK(L13))),('Bewertung durch Anwender'!K13),IF(AND(NOT(ISBLANK(J13)),NOT(ISBLANK(I13))),('Bewertung durch Anwender'!I13),(Zielvereinbarung!G13)))","v":0},{"$f":"Zielvereinbarung!G13","v":0},null,null,null,null,null,null,null,{"$f":"'BNB-System'!K9","v":300},{"$f":"IF(ISNUMBER(E13*N13/100),E13*N13/100,0)","v":0}]
[null,{"$f":"'BNB-System'!E10","v":" 1.1.2"},{"$f":"'BNB-System'!F10","v":"Ozonschichtabbaupotenzial (ODP)"},{"$f":"'BNB-System'!G10","v":100},{"$f":"'BNB-System'!J10","v":1.2499999999999999E-2},"x",{"$f":"IF(AND(NOT(ISBLANK(K14)),NOT(ISBLANK(L14))),('Bewertung durch Anwender'!K14),IF(AND(NOT(ISBLANK(J14)),NOT(ISBLANK(I14))),('Bewertung durch Anwender'!I14),(Zielvereinbarung!G14)))","v":0},{"$f":"Zielvereinbarung!G14","v":0},null,null,null,null,null,null,null,{"$f":"'BNB-System'!K10","v":100},0]
[null,{"$f":"'BNB-System'!E11","v":" 1.1.3"},{"$f":"'BNB-System'!F11","v":"Ozonbildungspotenzial (POCP)"},{"$f":"'BNB-System'!G11","v":100},{"$f":"'BNB-System'!J11","v":1.2499999999999999E-2},null,{"$f":"IF(AND(NOT(ISBLANK(K15)),NOT(ISBLANK(L15))),('Bewertung durch Anwender'!K15),IF(AND(NOT(ISBLANK(J15)),NOT(ISBLANK(I15))),('Bewertung durch Anwender'!I15),(Zielvereinbarung!G15)))","v":0},{"$f":"Zielvereinbarung!G15","v":0},null,null,null,null,null,null,null,{"$f":"'BNB-System'!K11","v":100},0]
[null,{"$f":"'BNB-System'!E12","v":" 1.1.4"},{"$f":"'BNB-System'!F12","v":"Versauerungspotenzial (AP)"},{"$f":"'BNB-System'!G12","v":100},{"$f":"'BNB-System'!J12","v":1.2499999999999999E-2},null,{"$f":"IF(AND(NOT(ISBLANK(K16)),NOT(ISBLANK(L16))),('Bewertung durch Anwender'!K16),IF(AND(NOT(ISBLANK(J16)),NOT(ISBLANK(I16))),('Bewertung durch Anwender'!I16),(Zielvereinbarung!G16)))","v":0},{"$f":"Zielvereinbarung!G16","v":0},null,null,null,null,null,null,null,{"$f":"'BNB-System'!K12","v":100},0]
[null,{"$f":"'BNB-System'!E13","v":" 1.1.5"},{"$f":"'BNB-System'!F13","v":"Überdüngungspotenzial (EP)"},{"$f":"'BNB-System'!G13","v":100},{"$f":"'BNB-System'!J13","v":1.2499999999999999E-2},null,{"$f":"IF(AND(NOT(ISBLANK(K17)),NOT(ISBLANK(L17))),('Bewertung durch Anwender'!K17),IF(AND(NOT(ISBLANK(J17)),NOT(ISBLANK(I17))),('Bewertung durch Anwender'!I17),(Zielvereinbarung!G17)))","v":0},{"$f":"Zielvereinbarung!G17","v":0},null,null,null,null,null,null,null,{"$f":"'BNB-System'!K13","v":100},0]
[null,{"$f":"'BNB-System'!E14","v":" 1.1.6"},{"$f":"'BNB-System'!F14","v":"Risiken für die lokale Umwelt"},{"$f":"'BNB-System'!G14","v":100},{"$f":"'BNB-System'!J14","v":3.7499999999999999E-2},null,{"$f":"IF(AND(NOT(ISBLANK(K18)),NOT(ISBLANK(L18))),('Bewertung durch Anwender'!K18),IF(AND(NOT(ISBLANK(J18)),NOT(ISBLANK(I18))),('Bewertung durch Anwender'!I18),(Zielvereinbarung!G18)))","v":0},{"$f":"Zielvereinbarung!G18","v":0},null,null,null,null,null,null,null,{"$f":"'BNB-System'!K14","v":300},0]
[null,{"$f":"'BNB-System'!E15","v":" 1.1.7"},{"$f":"'BNB-System'!F15","v":"Nachhaltige Materialgewinnung / Biodiversität"},{"$f":"'BNB-System'!G15","v":100},{"$f":"'BNB-System'!J15","v":1.2499999999999999E-2},null,{"$f":"IF(AND(NOT(ISBLANK(K19)),NOT(ISBLANK(L19))),('Bewertung durch Anwender'!K19),IF(AND(NOT(ISBLANK(J19)),NOT(ISBLANK(I19))),('Bewertung durch Anwender'!I19),(Zielvereinbarung!G19)))","v":0},{"$f":"Zielvereinbarung!G19","v":0},null,null,null,null,null,null,null,{"$f":"'BNB-System'!K15","v":100},0]
[null,null,{"$f":"'BNB-System'!F16","v":"Ressourceninanspruchnahme"},null,null,null,null,null,null,null,null,null,null,null,null,{"$f":"'BNB-System'!K16","v":0}]
[null,{"$f":"'BNB-System'!E17","v":" 1.2.1"},{"$f":"'BNB-System'!F17","v":"Primärenergiebedarf"},{"$f":"'BNB-System'!G17","v":100},{"$f":"'BNB-System'!J17","v":3.7499999999999999E-2},null,{"$f":"IF(AND(NOT(ISBLANK(K21)),NOT(ISBLANK(L21))),('Bewertung durch Anwender'!K21),IF(AND(NOT(ISBLANK(J21)),NOT(ISBLANK(I21))),('Bewertung durch Anwender'!I21),(Zielvereinbarung!G21)))","v":0},{"$f":"Zielvereinbarung!G21","v":0},null,null,null,null,{"$f":"IF(SUM(M22:M24)>100,100,SUM(M22:M24))","v":0},{"$f":"IF(SUM(N22:N24)>100,100,SUM(N22:N24))","v":0},null,{"$f":"'BNB-System'!K17","v":300},{"$f":"IF(ISNUMBER(E21*N21/100),E21*N21/100,0)","v":0}]
[null,null,{"$f":"'BNB-System'!F18","v":"Primärenergiebedarf nicht erneuerbar (PEne)"},{"$f":"'BNB-System'!G18","v":60},null,null,{"$f":"IF(AND(NOT(ISBLANK(K22)),NOT(ISBLANK(L22))),('Bewertung durch Anwender'!K22),IF(AND(NOT(ISBLANK(J22)),NOT(ISBLANK(I22))),('Bewertung durch Anwender'!I22),(Zielvereinbarung!G22)))","v":0},{"$f":"Zielvereinbarung!G22","v":0},null,null,null,null,null,null,null,{"$f":"'BNB-System'!K18","v":0}]
[null,null,{"$f":"'BNB-System'!F19","v":"Gesamtenergiebedarf (PEges)"},{"$f":"'BNB-System'!G19","v":40},null,null,{"$f":"IF(AND(NOT(ISBLANK(K23)),NOT(ISBLANK(L23))),('Bewertung durch Anwender'!K23),IF(AND(NOT(ISBLANK(J23)),NOT(ISBLANK(I23))),('Bewertung durch Anwender'!I23),(Zielvereinbarung!G23)))","v":0},{"$f":"Zielvereinbarung!G23","v":0},null,null,null,null,null,null,null,{"$f":"'BNB-System'!K19","v":0}]
[null,null,{"$f":"'BNB-System'!F20","v":"Anteil erneuerbarer Primärenergie (PEe)"},{"$f":"'BNB-System'!G20","v":20},null,null,{"$f":"IF(AND(NOT(ISBLANK(K24)),NOT(ISBLANK(L24))),('Bewertung durch Anwender'!K24),IF(AND(NOT(ISBLANK(J24)),NOT(ISBLANK(I24))),('Bewertung durch Anwender'!I24),(Zielvereinbarung!G24)))","v":0},{"$f":"Zielvereinbarung!G24","v":0},null,null,null,null,null,null,null,{"$f":"'BNB-System'!K20","v":0}]
[null,{"$f":"'BNB-System'!E21","v":" 1.2.3"},{"$f":"'BNB-System'!F21","v":"Trinkwasserbedarf und Abwasseraufkommen"},{"$f":"'BNB-System'!G21","v":100},{"$f":"'BNB-System'!J21","v":2.4999999999999998E-2},null,{"$f":"IF(AND(NOT(ISBLANK(K25)),NOT(ISBLANK(L25))),('Bewertung durch Anwender'!K25),IF(AND(NOT(ISBLANK(J25)),NOT(ISBLANK(I25))),('Bewertung durch Anwender'!I25),(Zielvereinbarung!G25)))","v":0},{"$f":"Zielvereinbarung!G25","v":0},null,null,null,null,null,null,null,{"$f":"'BNB-System'!K21","v":200},{"$f":"IF(ISNUMBER(E25*N25/100),E25*N25/100,0)","v":0}]
[null,{"$f":"'BNB-System'!E22","v":" 1.2.4"},{"$f":"'BNB-System'!F22","v":"Flächeninanspruchnahme"},{"$f":"'BNB-System'!G22","v":100},{"$f":"'BNB-System'!J22","v":2.4999999999999998E-2},null,{"$f":"IF(AND(NOT(ISBLANK(K26)),NOT(ISBLANK(L26))),('Bewertung durch Anwender'!K26),IF(AND(NOT(ISBLANK(J26)),NOT(ISBLANK(I26))),('Bewertung durch Anwender'!I26),(Zielvereinbarung!G26)))","v":0},{"$f":"Zielvereinbarung!G26","v":0},null,null,null,null,null,null,null,{"$f":"'BNB-System'!K22","v":200},{"$f":"IF(ISNUMBER(E26*N26/100),E26*N26/100,0)","v":0}]
[null,null,null,null,null,null,null,null,null,null,null,null,null,null,null,{"$f":"'BNB-System'!K23","v":0}]
[null,{"$f":"'BNB-System'!E24","v":"Ökonomische Qualität"},null,null,{"$f":"'BNB-System'!J24","v":0.22500000000000001},null,{"$f":"IF(AND(NOT(ISBLANK(K28)),NOT(ISBLANK(L28))),('Bewertung durch Anwender'!K28),IF(AND(NOT(ISBLANK(J28)),NOT(ISBLANK(I28))),('Bewertung durch Anwender'!I28),(Zielvereinbarung!G28)))","v":0},{"$f":"Zielvereinbarung!G28","v":0},null,null,null,null,{"$f":"M31*($E$31/100)+M33*($E$33/100)","v":0},{"$f":"N31*($E$31/100)+N33*($E$33/100)","v":0},null,{"$f":"'BNB-System'!K24","v":500}]
[null,null,null,null,null,null,null,null,null,null,null,null,null,null,null,{"$f":"'BNB-System'!K25","v":0}]
[null,null,{"$f":"'BNB-System'!F26","v":"Lebenszykluskosten"},null,null,null,null,null,null,null,null,null,null,null,null,{"$f":"'BNB-System'!K26","v":0}]
[null,{"$f":"'BNB-System'!E27","v":" 2.1.1"},{"$f":"'BNB-System'!F27","v":"Gebäudebezogene Kosten im Lebenszyklus"},{"$f":"'BNB-System'!G27","v":100},{"$f":"'BNB-System'!J27","v":0.13500000000000001},null,{"$f":"IF(AND(NOT(ISBLANK(K31)),NOT(ISBLANK(L31))),('Bewertung durch Anwender'!K31),IF(AND(NOT(ISBLANK(J31)),NOT(ISBLANK(I31))),('Bewertung durch Anwender'!I31),(Zielvereinbarung!G31)))","v":0},{"$f":"Zielvereinbarung!G31","v":0},null,null,null,null,null,null,null,{"$f":"'BNB-System'!K27","v":300},{"$f":"IF(ISNUMBER(E31*N31/100),E31*N31/100,0)","v":0}]
[null,null,{"$f":"'BNB-System'!F28","v":"Wertentwicklung"},null,null,null,null,null,null,null,null,null,null,null,null,{"$f":"'BNB-System'!K28","v":0}]
[null,{"$f":"'BNB-System'!E29","v":" 2.2.2"},{"$f":"'BNB-System'!F29","v":"Anpassungsfähigkeit"},{"$f":"'BNB-System'!G29","v":100},{"$f":"'BNB-System'!J29","v":9.0000000000000011E-2},"o",{"$f":"IF(AND(NOT(ISBLANK(K33)),NOT(ISBLANK(L33))),('Bewertung durch Anwender'!K33),IF(AND(NOT(ISBLANK(J33)),NOT(ISBLANK(I33))),('Bewertung durch Anwender'!I33),(Zielvereinbarung!G33)))","v":0},{"$f":"Zielvereinbarung!G33","v":0},null,null,null,null,{"$f":"SUM(M34:M39)","v":0},{"$f":"SUM(N34:N39)","v":0},null,{"$f":"'BNB-System'!K29","v":200},{"$f":"IF(ISNUMBER(E33*N33/100),E33*N33/100,0)","v":0}]
[null,null,{"$f":"'BNB-System'!F30","v":"Lichte Raumhöhe"},{"$f":"'BNB-System'!G30","v":15},null,null,{"$f":"IF(AND(NOT(ISBLANK(K34)),NOT(ISBLANK(L34))),('Bewertung durch Anwender'!K34),IF(AND(NOT(ISBLANK(J34)),NOT(ISBLANK(I34))),('Bewertung durch Anwender'!I34),(Zielvereinbarung!G34)))","v":0},{"$f":"Zielvereinbarung!G34","v":0},null,null,null,null,null,null,null,{"$f":"'BNB-System'!K30","v":0}]
[null,null,{"$f":"'BNB-System'!F31","v":"Gebäudetiefe"},{"$f":"'BNB-System'!G31","v":15},null,null,{"$f":"IF(AND(NOT(ISBLANK(K35)),NOT(ISBLANK(L35))),('Bewertung durch Anwender'!K35),IF(AND(NOT(ISBLANK(J35)),NOT(ISBLANK(I35))),('Bewertung durch Anwender'!I35),(Zielvereinbarung!G35)))","v":0},{"$f":"Zielvereinbarung!G35","v":0},null,null,null,null,null,null,null,{"$f":"'BNB-System'!K31","v":0}]
[null,null,{"$f":"'BNB-System'!F32","v":"Vertikale Erschlließung"},{"$f":"'BNB-System'!G32","v":15},null,null,{"$f":"IF(AND(NOT(ISBLANK(K36)),NOT(ISBLANK(L36))),('Bewertung durch Anwender'!K36),IF(AND(NOT(ISBLANK(J36)),NOT(ISBLANK(I36))),('Bewertung durch Anwender'!I36),(Zielvereinbarung!G36)))","v":0},{"$f":"Zielvereinbarung!G36","v":0},null,null,null,null,null,null,null,{"$f":"'BNB-System'!K32","v":0}]
[null,null,{"$f":"'BNB-System'!F33","v":"Grundrisse"},{"$f":"'BNB-System'!G33","v":25},null,null,{"$f":"IF(AND(NOT(ISBLANK(K37)),NOT(ISBLANK(L37))),('Bewertung durch Anwender'!K37),IF(AND(NOT(ISBLANK(J37)),NOT(ISBLANK(I37))),('Bewertung durch Anwender'!I37),(Zielvereinbarung!G37)))","v":0},{"$f":"Zielvereinbarung!G37","v":0},null,null,null,null,null,null,null,{"$f":"'BNB-System'!K33","v":0}]
[null,null,{"$f":"'BNB-System'!F34","v":"Konstruktion"},{"$f":"'BNB-System'!G34","v":20},null,null,{"$f":"IF(AND(NOT(ISBLANK(K38)),NOT(ISBLANK(L38))),('Bewertung durch Anwender'!K38),IF(AND(NOT(ISBLANK(J38)),NOT(ISBLANK(I38))),('Bewertung durch Anwender'!I38),(Zielvereinbarung!G38)))","v":0},{"$f":"Zielvereinbarung!G38","v":0},null,null,null,null,null,null,null,{"$f":"'BNB-System'!K34","v":0}]
[null,null,{"$f":"'BNB-System'!F35","v":"Technische Ausstattung"},{"$f":"'BNB-System'!G35","v":10},null,null,{"$f":"IF(AND(NOT(ISBLANK(K39)),NOT(ISBLANK(L39))),('Bewertung durch Anwender'!K39),IF(AND(NOT(ISBLANK(J39)),NOT(ISBLANK(I39))),('Bewertung durch Anwender'!I39),(Zielvereinbarung!G39)))","v":0},{"$f":"Zielvereinbarung!G39","v":0}]
[null,null,null,null,null,null,null,null,null,null,null,null,null,null,null,{"$f":"'BNB-System'!K36","v":0}]
[null,{"$f":"'BNB-System'!E37","v":"Soziokulturelle und funktionale Qualität"},null,null,{"$f":"'BNB-System'!J37","v":0.22500000000000001},null,{"$f":"IF(AND(NOT(ISBLANK(K41)),NOT(ISBLANK(L41))),('Bewertung durch Anwender'!K41),IF(AND(NOT(ISBLANK(J41)),NOT(ISBLANK(I41))),('Bewertung durch Anwender'!I41),(Zielvereinbarung!G41)))","v":0},{"$f":"Zielvereinbarung!G41","v":0},null,null,null,null,{"$f":"M44*($E$44/100)+M55*($E$55/100)+M58*($E$58/100)+M68*($E$68/100)+M76*($E$76/100)+M86*($E$86/100)+M91*($E$91/100)+M92*($E$92/100)+M98*($E$98/100)+M99*($E$99/100)+M104*($E$104/100)+M109*($E$109/100)+M117*($E$117/100)","v":0},{"$f":"N44*($E$44/100)+N55*($E$55/100)+N58*($E$58/100)+N68*($E$68/100)+N76*($E$76/100)+N86*($E$86/100)+N91*($E$91/100)+N92*($E$92/100)+N98*($E$98/100)+N99*($E$99/100)+N104*($E$104/100)+N109*($E$109/100)+N117*($E$117/100)","v":0},null,{"$f":"'BNB-System'!K37","v":2700}]
[null,null,null,null,null,null,null,null,null,null,null,null,null,null,null,{"$f":"'BNB-System'!K38","v":0}]
[null,null,{"$f":"'BNB-System'!F39","v":"Gesundheit, Behaglichkeit und Nutzerzufriedenheit"},null,null,null,null,null,null,null,null,null,null,null,null,{"$f":"'BNB-System'!K39","v":0}]
[null,{"$f":"'BNB-System'!E40","v":" 3.1.1"},{"$f":"'BNB-System'!F40","v":"Thermischer Komfort"},{"$f":"'BNB-System'!G40","v":100},{"$f":"'BNB-System'!J40","v":2.4999999999999998E-2},null,{"$f":"IF(AND(NOT(ISBLANK(K44)),NOT(ISBLANK(L44))),('Bewertung durch Anwender'!K44),IF(AND(NOT(ISBLANK(J44)),NOT(ISBLANK(I44))),('Bewertung durch Anwender'!I44),(Zielvereinbarung!G44)))","v":0},{"$f":"Zielvereinbarung!G44","v":0},null,null,null,null,{"$f":"SUM(M45:M54)","v":0},{"$f":"SUM(N45:N54)","v":0},null,{"$f":"'BNB-System'!K40","v":300},{"$f":"IF(ISNUMBER(E44*N44/100),E44*N44/100,0)","v":0}]
[null,null,{"$f":"'BNB-System'!F41","v":"Winter"},null,null,null,{"$f":"IF(Zielvereinbarung!E45=0,\"\",Zielvereinbarung!E45)","v":""},null,null,null,null,null,null,null,null,{"$f":"'BNB-System'!K42","v":0}]
[null,null,{"$f":"'BNB-System'!F42","v":"Operative Temperatur"},{"$f":"'BNB-System'!G42","v":10},null,null,{"$f":"IF(AND(NOT(ISBLANK(K46)),NOT(ISBLANK(L46))),('Bewertung durch Anwender'!K46),IF(AND(NOT(ISBLANK(J46)),NOT(ISBLANK(I46))),('Bewertung durch Anwender'!I46),(Zielvereinbarung!G46)))","v":0},{"$f":"Zielvereinbarung!G46","v":0},null,null,null,null,null,null,null,{"$f":"'BNB-System'!#REF!","v":{"$error":"#REF!"}}]
[null,null,{"$f":"'BNB-System'!F43","v":" Zugluft"},{"$f":"'BNB-System'!G43","v":10},null,null,{"$f":"IF(AND(NOT(ISBLANK(K47)),NOT(ISBLANK(L47))),('Bewertung durch Anwender'!K47),IF(AND(NOT(ISBLANK(J47)),NOT(ISBLANK(I47))),('Bewertung durch Anwender'!I47),(Zielvereinbarung!G47)))","v":0},{"$f":"Zielvereinbarung!G47","v":0}]
[null,null,{"$f":"'BNB-System'!F44","v":"Stahlungstemperaturasymmetrie und Fußbodentemperatur"},{"$f":"'BNB-System'!G44","v":10},null,null,{"$f":"IF(AND(NOT(ISBLANK(K48)),NOT(ISBLANK(L48))),('Bewertung durch Anwender'!K48),IF(AND(NOT(ISBLANK(J48)),NOT(ISBLANK(I48))),('Bewertung durch Anwender'!I48),(Zielvereinbarung!G48)))","v":0},{"$f":"Zielvereinbarung!G48","v":0}]
[null,null,{"$f":"'BNB-System'!F45","v":"Relative Luftfeuchte"},{"$f":"'BNB-System'!G45","v":10},null,null,{"$f":"IF(AND(NOT(ISBLANK(K49)),NOT(ISBLANK(L49))),('Bewertung durch Anwender'!K49),IF(AND(NOT(ISBLANK(J49)),NOT(ISBLANK(I49))),('Bewertung durch Anwender'!I49),(Zielvereinbarung!G49)))","v":0},{"$f":"Zielvereinbarung!G49","v":0}]
[null,null,{"$f":"'BNB-System'!F46","v":"Sommer"},null,null,null,{"$f":"IF(Zielvereinbarung!E50=0,\"\",Zielvereinbarung!E50)","v":""}]
[null,null,{"$f":"'BNB-System'!F47","v":"Operative Temperatur"},{"$f":"'BNB-System'!G47","v":30},null,null,{"$f":"IF(AND(NOT(ISBLANK(K51)),NOT(ISBLANK(L51))),('Bewertung durch Anwender'!K51),IF(AND(NOT(ISBLANK(J51)),NOT(ISBLANK(I51))),('Bewertung durch Anwender'!I51),(Zielvereinbarung!G51)))","v":0},{"$f":"Zielvereinbarung!G51","v":0}]
[null,null,{"$f":"'BNB-System'!F48","v":" Zugluft"},{"$f":"'BNB-System'!G48","v":10},null,null,{"$f":"IF(AND(NOT(ISBLANK(K52)),NOT(ISBLANK(L52))),('Bewertung durch Anwender'!K52),IF(AND(NOT(ISBLANK(J52)),NOT(ISBLANK(I52))),('Bewertung durch Anwender'!I52),(Zielvereinbarung!G52)))","v":0},{"$f":"Zielvereinbarung!G52","v":0}]
[null,null,{"$f":"'BNB-System'!F49","v":"Stahlungstemperaturasymmetrie und Fußbodentemperatur"},{"$f":"'BNB-System'!G49","v":10},null,null,{"$f":"IF(AND(NOT(ISBLANK(K53)),NOT(ISBLANK(L53))),('Bewertung durch Anwender'!K53),IF(AND(NOT(ISBLANK(J53)),NOT(ISBLANK(I53))),('Bewertung durch Anwender'!I53),(Zielvereinbarung!G53)))","v":0},{"$f":"Zielvereinbarung!G53","v":0}]
[null,null,{"$f":"'BNB-System'!F50","v":"Relative Luftfeuchte"},{"$f":"'BNB-System'!G50","v":10},null,null,{"$f":"IF(AND(NOT(ISBLANK(K54)),NOT(ISBLANK(L54))),('Bewertung durch Anwender'!K54),IF(AND(NOT(ISBLANK(J54)),NOT(ISBLANK(I54))),('Bewertung durch Anwender'!I54),(Zielvereinbarung!G54)))","v":0},{"$f":"Zielvereinbarung!G54","v":0}]
[null,{"$f":"'BNB-System'!E51","v":" 3.1.3"},{"$f":"'BNB-System'!F51","v":"Innenraumlufthygiene"},{"$f":"'BNB-System'!G51","v":100},{"$f":"'BNB-System'!J51","v":2.4999999999999998E-2},null,{"$f":"IF(AND(NOT(ISBLANK(K55)),NOT(ISBLANK(L55))),('Bewertung durch Anwender'!K55),IF(AND(NOT(ISBLANK(J55)),NOT(ISBLANK(I55))),('Bewertung durch Anwender'!I55),(Zielvereinbarung!G55)))","v":0},{"$f":"Zielvereinbarung!G55","v":0},null,null,null,null,{"$f":"SUM(M56:M57)","v":0},{"$f":"SUM(N56:N57)","v":0},null,{"$f":"'BNB-System'!K51","v":300},{"$f":"IF(ISNUMBER(E55*N55/100),E55*N55/100,0)","v":0}]
[null,null,{"$f":"'BNB-System'!F52","v":"Flüchtige organische Stoffe (VOC) und Formaldehyd"},{"$f":"'BNB-System'!G52","v":50},null,null,{"$f":"IF(AND(NOT(ISBLANK(K56)),NOT(ISBLANK(L56))),('Bewertung durch Anwender'!K56),IF(AND(NOT(ISBLANK(J56)),NOT(ISBLANK(I56))),('Bewertung durch Anwender'!I56),(Zielvereinbarung!G56)))","v":0},{"$f":"Zielvereinbarung!G56","v":0},null,null,null,null,null,null,null,{"$f":"'BNB-System'!K52","v":0}]
[null,null,{"$f":"'BNB-System'!F53","v":"Außenluftvolumenstrom"},{"$f":"'BNB-System'!G53","v":50},null,null,{"$f":"IF(AND(NOT(ISBLANK(K57)),NOT(ISBLANK(L57))),('Bewertung durch Anwender'!K57),IF(AND(NOT(ISBLANK(J57)),NOT(ISBLANK(I57))),('Bewertung durch Anwender'!I57),(Zielvereinbarung!G57)))","v":0},{"$f":"Zielvereinbarung!G57","v":0},null,null,null,null,null,null,null,{"$f":"'BNB-System'!K53","v":0}]
[null,{"$f":"'BNB-System'!E54","v":" 3.1.4"},{"$f":"'BNB-System'!F54","v":"Akustischer Komfort"},{"$f":"'BNB-System'!G54","v":100},{"$f":"'BNB-System'!J54","v":1.6666666666666666E-2},null,{"$f":"IF(AND(NOT(ISBLANK(K58)),NOT(ISBLANK(L58))),('Bewertung durch Anwender'!K58),IF(AND(NOT(ISBLANK(J58)),NOT(ISBLANK(I58))),('Bewertung durch Anwender'!I58),(Zielvereinbarung!G58)))","v":0},{"$f":"Zielvereinbarung!G58","v":0},null,null,null,null,{"$f":"SUM(M60:M67)","v":0},{"$f":"SUM(N60:N67)","v":0},null,{"$f":"'BNB-System'!K54","v":200},{"$f":"IF(ISNUMBER(E58*N58/100),E58*N58/100,0)","v":0}]
[null,null,{"$f":"'BNB-System'!F55","v":"Räume Gruppe A"}]
[null,null,{"$f":"'BNB-System'!F56","v":"Musik"},{"$f":"'BNB-System'!G56","v":100},null,null,{"$f":"IF(AND(NOT(ISBLANK(K60)),NOT(ISBLANK(L60))),('Bewertung durch Anwender'!K60),IF(AND(NOT(ISBLANK(J60)),NOT(ISBLANK(I60))),('Bewertung durch Anwender'!I60),(Zielvereinbarung!G60)))","v":0},{"$f":"Zielvereinbarung!G60","v":0},null,null,null,null,null,null,null,{"$f":"'BNB-System'!K56","v":0}]
[null,null,{"$f":"'BNB-System'!F57","v":"Sprache/ Vortrag"},{"$f":"'BNB-System'!G57","v":100},null,null,{"$f":"IF(AND(NOT(ISBLANK(K61)),NOT(ISBLANK(L61))),('Bewertung durch Anwender'!K61),IF(AND(NOT(ISBLANK(J61)),NOT(ISBLANK(I61))),('Bewertung durch Anwender'!I61),(Zielvereinbarung!G61)))","v":0},{"$f":"Zielvereinbarung!G61","v":0},null,null,null,null,null,null,null,{"$f":"'BNB-System'!K57","v":0}]
[null,null,{"$f":"'BNB-System'!F58","v":"Unterricht/ Kommunikation"},{"$f":"'BNB-System'!G58","v":100},null,null,{"$f":"IF(AND(NOT(ISBLANK(K62)),NOT(ISBLANK(L62))),('Bewertung durch Anwender'!K62),IF(AND(NOT(ISBLANK(J62)),NOT(ISBLANK(I62))),('Bewertung durch Anwender'!I62),(Zielvereinbarung!G62)))","v":0},{"$f":"Zielvereinbarung!G62","v":0},null,null,null,null,null,null,null,{"$f":"'BNB-System'!K58","v":0}]
[null,null,{"$f":"'BNB-System'!F59","v":"Sport"},{"$f":"'BNB-System'!G59","v":100},null,null,{"$f":"IF(AND(NOT(ISBLANK(K63)),NOT(ISBLANK(L63))),('Bewertung durch Anwender'!K63),IF(AND(NOT(ISBLANK(J63)),NOT(ISBLANK(I63))),('Bewertung durch Anwender'!I63),(Zielvereinbarung!G63)))","v":0},{"$f":"Zielvereinbarung!G63","v":0},null,null,null,null,null,null,null,{"$f":"'BNB-System'!K59","v":0}]
[null,null,{"$f":"'BNB-System'!F60","v":"Räume Gruppe B"}]
[null,null,{"$f":"'BNB-System'!F61","v":"Einzel- und Mehrpersonenbüros bis 100 m3"},{"$f":"'BNB-System'!G61","v":100},null,null,{"$f":"IF(AND(NOT(ISBLANK(K65)),NOT(ISBLANK(L65))),('Bewertung durch Anwender'!K65),IF(AND(NOT(ISBLANK(J65)),NOT(ISBLANK(I65))),('Bewertung durch Anwender'!I65),(Zielvereinbarung!G65)))","v":0},{"$f":"Zielvereinbarung!G65","v":0},null,null,null,null,null,null,null,{"$f":"'BNB-System'!K62","v":0}]
[null,null,{"$f":"'BNB-System'!F62","v":"Mehrpersonenbüros über 100 m3"},{"$f":"'BNB-System'!G62","v":100},null,null,{"$f":"IF(AND(NOT(ISBLANK(K66)),NOT(ISBLANK(L66))),('Bewertung durch Anwender'!K66),IF(AND(NOT(ISBLANK(J66)),NOT(ISBLANK(I66))),('Bewertung durch Anwender'!I66),(Zielvereinbarung!G66)))","v":0},{"$f":"Zielvereinbarung!G66","v":0},null,null,null,null,null,null,null,{"$f":"'BNB-System'!#REF!","v":{"$error":"#REF!"}}]
[null,null,{"$f":"'BNB-System'!F63","v":"Weitere Räume"},{"$f":"'BNB-System'!G63","v":100},null,null,{"$f":"IF(AND(NOT(ISBLANK(K67)),NOT(ISBLANK(L67))),('Bewertung durch Anwender'!K67),IF(AND(NOT(ISBLANK(J67)),NOT(ISBLANK(I67))),('Bewertung durch Anwender'!I67),(Zielvereinbarung!G67)))","v":0},{"$f":"Zielvereinbarung!G67","v":0}]
[null,{"$f":"'BNB-System'!E64","v":" 3.1.5"},{"$f":"'BNB-System'!F64","v":"Visueller Komfort"},{"$f":"'BNB-System'!G64","v":100},{"$f":"'BNB-System'!J64","v":1.6666666666666666E-2},null,{"$f":"IF(AND(NOT(ISBLANK(K68)),NOT(ISBLANK(L68))),('Bewertung durch Anwender'!K68),IF(AND(NOT(ISBLANK(J68)),NOT(ISBLANK(I68))),('Bewertung durch Anwender'!I68),(Zielvereinbarung!G68)))","v":0},{"$f":"Zielvereinbarung!G68","v":0},null,null,null,null,{"$f":"IF(SUM(M69:M75)>100,100,SUM(M69:M75))","v":0},{"$f":"IF(SUM(N69:N75)>100,100,SUM(N69:N75))","v":0},null,{"$f":"'BNB-System'!K64","v":200},{"$f":"IF(ISNUMBER(E68*N68/100),E68*N68/100,0)","v":0}]
[null,null,{"$f":"'BNB-System'!F65","v":"Tageslichtverfügbarkeit Gesamtgebäude"},{"$f":"'BNB-System'!G65","v":15},null,null,{"$f":"IF(AND(NOT(ISBLANK(K69)),NOT(ISBLANK(L69))),('Bewertung durch Anwender'!K69),IF(AND(NOT(ISBLANK(J69)),NOT(ISBLANK(I69))),('Bewertung durch Anwender'!I69),(Zielvereinbarung!G69)))","v":0},{"$f":"Zielvereinbarung!G69","v":0},null,null,null,null,null,null,null,{"$f":"'BNB-System'!K65","v":0}]
[null,null,{"$f":"'BNB-System'!F66","v":"Tageslichtverfügbarkeit Unterrichtsräume und weitere ständige Arbeitsplätze"},{"$f":"'BNB-System'!G66","v":15},null,null,{"$f":"IF(AND(NOT(ISBLANK(K70)),NOT(ISBLANK(L70))),('Bewertung durch Anwender'!K70),IF(AND(NOT(ISBLANK(J70)),NOT(ISBLANK(I70))),('Bewertung durch Anwender'!I70),(Zielvereinbarung!G70)))","v":0},{"$f":"Zielvereinbarung!G70","v":0},null,null,null,null,null,null,null,{"$f":"'BNB-System'!K66","v":0}]
[null,null,{"$f":"'BNB-System'!F67","v":"Nachweis der Sichtverbindung nach außen"},{"$f":"'BNB-System'!G67","v":35},null,null,{"$f":"IF(AND(NOT(ISBLANK(K71)),NOT(ISBLANK(L71))),('Bewertung durch Anwender'!K71),IF(AND(NOT(ISBLANK(J71)),NOT(ISBLANK(I71))),('Bewertung durch Anwender'!I71),(Zielvereinbarung!G71)))","v":0},{"$f":"Zielvereinbarung!G71","v":0},null,null,null,null,null,null,null,{"$f":"'BNB-System'!K67","v":0}]
[null,null,{"$f":"'BNB-System'!F68","v":"Blendfreiheit Tageslicht"},{"$f":"'BNB-System'!G68","v":10},null,null,{"$f":"IF(AND(NOT(ISBLANK(K72)),NOT(ISBLANK(L72))),('Bewertung durch Anwender'!K72),IF(AND(NOT(ISBLANK(J72)),NOT(ISBLANK(I72))),('Bewertung durch Anwender'!I72),(Zielvereinbarung!G72)))","v":0},{"$f":"Zielvereinbarung!G72","v":0},null,null,null,null,null,null,null,{"$f":"'BNB-System'!K68","v":0},null,null,null,"^^"]
[null,null,{"$f":"'BNB-System'!F69","v":"Blendfreiheit  Kunstlicht"},{"$f":"'BNB-System'!G69","v":5},null,null,{"$f":"IF(AND(NOT(ISBLANK(K73)),NOT(ISBLANK(L73))),('Bewertung durch Anwender'!K73),IF(AND(NOT(ISBLANK(J73)),NOT(ISBLANK(I73))),('Bewertung durch Anwender'!I73),(Zielvereinbarung!G73)))","v":0},{"$f":"Zielvereinbarung!G73","v":0},null,null,null,null,null,null,null,{"$f":"'BNB-System'!K69","v":0}]
[null,null,{"$f":"'BNB-System'!F70","v":"Lichtverteilung"},{"$f":"'BNB-System'!G70","v":20},null,null,{"$f":"IF(AND(NOT(ISBLANK(K74)),NOT(ISBLANK(L74))),('Bewertung durch Anwender'!K74),IF(AND(NOT(ISBLANK(J74)),NOT(ISBLANK(I74))),('Bewertung durch Anwender'!I74),(Zielvereinbarung!G74)))","v":0},{"$f":"Zielvereinbarung!G74","v":0},null,null,null,null,null,null,null,{"$f":"'BNB-System'!K70","v":0}]
[null,null,{"$f":"'BNB-System'!F71","v":"Farbwiedergabe"},{"$f":"'BNB-System'!G71","v":10},null,null,{"$f":"IF(AND(NOT(ISBLANK(K75)),NOT(ISBLANK(L75))),('Bewertung durch Anwender'!K75),IF(AND(NOT(ISBLANK(J75)),NOT(ISBLANK(I75))),('Bewertung durch Anwender'!I75),(Zielvereinbarung!G75)))","v":0},{"$f":"Zielvereinbarung!G75","v":0},null,null,null,null,null,null,null,{"$f":"'BNB-System'!K71","v":0}]
[null,{"$f":"'BNB-System'!E72","v":" 3.1.6"},{"$f":"'BNB-System'!F72","v":"Einflussnahmemöglichkeiten durch Nutzer"},{"$f":"'BNB-System'!G72","v":100},{"$f":"'BNB-System'!J72","v":1.6666666666666666E-2},null,{"$f":"IF(AND(NOT(ISBLANK(K76)),NOT(ISBLANK(L76))),('Bewertung durch Anwender'!K76),IF(AND(NOT(ISBLANK(J76)),NOT(ISBLANK(I76))),('Bewertung durch Anwender'!I76),(Zielvereinbarung!G76)))","v":0},{"$f":"Zielvereinbarung!G76","v":0},null,null,null,null,{"$f":"SUM(M77:M85)","v":0},{"$f":"SUM(N77:N85)","v":0},null,{"$f":"'BNB-System'!K72","v":200},{"$f":"IF(ISNUMBER(E76*N76/100),E76*N76/100,0)","v":0}]
[null,null,{"$f":"'BNB-System'!F73","v":"Lüftung"},{"$f":"'BNB-System'!G73","v":10},null,null,{"$f":"IF(AND(NOT(ISBLANK(K77)),NOT(ISBLANK(L77))),('Bewertung durch Anwender'!K77),IF(AND(NOT(ISBLANK(J77)),NOT(ISBLANK(I77))),('Bewertung durch Anwender'!I77),(Zielvereinbarung!G77)))","v":0},{"$f":"Zielvereinbarung!G77","v":0},null,null,null,null,null,null,null,{"$f":"'BNB-System'!K73","v":0}]
[null,null,{"$f":"'BNB-System'!F74","v":"Sonnenschutz"},{"$f":"'BNB-System'!G74","v":10},null,null,{"$f":"IF(AND(NOT(ISBLANK(K78)),NOT(ISBLANK(L78))),('Bewertung durch Anwender'!K78),IF(AND(NOT(ISBLANK(J78)),NOT(ISBLANK(I78))),('Bewertung durch Anwender'!I78),(Zielvereinbarung!G78)))","v":0},{"$f":"Zielvereinbarung!G78","v":0},null,null,null,null,null,null,null,{"$f":"'BNB-System'!K74","v":0}]
[null,null,{"$f":"'BNB-System'!F75","v":"Blendschutz"},{"$f":"'BNB-System'!G75","v":10},null,null,{"$f":"IF(AND(NOT(ISBLANK(K79)),NOT(ISBLANK(L79))),('Bewertung durch Anwender'!K79),IF(AND(NOT(ISBLANK(J79)),NOT(ISBLANK(I79))),('Bewertung durch Anwender'!I79),(Zielvereinbarung!G79)))","v":0},{"$f":"Zielvereinbarung!G79","v":0},null,null,null,null,null,null,null,{"$f":"'BNB-System'!K75","v":0}]
[null,null,{"$f":"'BNB-System'!F76","v":"Temperaturen während der Heizperiode"},{"$f":"'BNB-System'!G76","v":10},null,null,{"$f":"IF(AND(NOT(ISBLANK(K80)),NOT(ISBLANK(L80))),('Bewertung durch Anwender'!K80),IF(AND(NOT(ISBLANK(J80)),NOT(ISBLANK(I80))),('Bewertung durch Anwender'!I80),(Zielvereinbarung!G80)))","v":0},{"$f":"Zielvereinbarung!G80","v":0},null,null,null,null,null,null,null,{"$f":"'BNB-System'!K76","v":0}]
[null,null,{"$f":"'BNB-System'!F77","v":"Temperaturen außerhalb der Heizperiode"},{"$f":"'BNB-System'!G77","v":15},null,null,{"$f":"IF(AND(NOT(ISBLANK(K81)),NOT(ISBLANK(L81))),('Bewertung durch Anwender'!K81),IF(AND(NOT(ISBLANK(J81)),NOT(ISBLANK(I81))),('Bewertung durch Anwender'!I81),(Zielvereinbarung!G81)))","v":0},{"$f":"Zielvereinbarung!G81","v":0},null,null,null,null,null,null,null,{"$f":"'BNB-System'!K77","v":0}]
[null,null,{"$f":"'BNB-System'!F78","v":"Steuerung von Tageslicht"},{"$f":"'BNB-System'!G78","v":10},null,null,{"$f":"IF(AND(NOT(ISBLANK(K82)),NOT(ISBLANK(L82))),('Bewertung durch Anwender'!K82),IF(AND(NOT(ISBLANK(J82)),NOT(ISBLANK(I82))),('Bewertung durch Anwender'!I82),(Zielvereinbarung!G82)))","v":0},{"$f":"Zielvereinbarung!G82","v":0},null,null,null,null,null,null,null,{"$f":"'BNB-System'!K78","v":0}]
[null,null,{"$f":"'BNB-System'!F79","v":"Steuerung von  Kunstlicht"},{"$f":"'BNB-System'!G79","v":10},null,null,{"$f":"IF(AND(NOT(ISBLANK(K83)),NOT(ISBLANK(L83))),('Bewertung durch Anwender'!K83),IF(AND(NOT(ISBLANK(J83)),NOT(ISBLANK(I83))),('Bewertung durch Anwender'!I83),(Zielvereinbarung!G83)))","v":0},{"$f":"Zielvereinbarung!G83","v":0}]
[null,null,{"$f":"'BNB-System'!F80","v":"Bedienfreundlichkeit"},{"$f":"'BNB-System'!G80","v":10},null,null,{"$f":"IF(AND(NOT(ISBLANK(K84)),NOT(ISBLANK(L84))),('Bewertung durch Anwender'!K84),IF(AND(NOT(ISBLANK(J84)),NOT(ISBLANK(I84))),('Bewertung durch Anwender'!I84),(Zielvereinbarung!G84)))","v":0},{"$f":"Zielvereinbarung!G84","v":0},null,null,null,null,null,null,null,{"$f":"'BNB-System'!K79","v":0}]
[null,null,{"$f":"'BNB-System'!F81","v":"Funktionskonzept der Haustechnik"},{"$f":"'BNB-System'!G81","v":15},null,null,{"$f":"IF(AND(NOT(ISBLANK(K85)),NOT(ISBLANK(L85))),('Bewertung durch Anwender'!K85),IF(AND(NOT(ISBLANK(J85)),NOT(ISBLANK(I85))),('Bewertung durch Anwender'!I85),(Zielvereinbarung!G85)))","v":0},{"$f":"Zielvereinbarung!G85","v":0},null,null,null,null,null,null,null,{"$f":"'BNB-System'!K81","v":0}]
[null,{"$f":"'BNB-System'!E82","v":" 3.1.7"},{"$f":"'BNB-System'!F82","v":"Aufenthaltsmerkmale im Außenraum"},{"$f":"'BNB-System'!G82","v":100},{"$f":"'BNB-System'!J82","v":1.6666666666666666E-2},null,{"$f":"IF(AND(NOT(ISBLANK(K86)),NOT(ISBLANK(L86))),('Bewertung durch Anwender'!K86),IF(AND(NOT(ISBLANK(J86)),NOT(ISBLANK(I86))),('Bewertung durch Anwender'!I86),(Zielvereinbarung!G86)))","v":0},{"$f":"Zielvereinbarung!G86","v":0},null,null,null,null,{"$f":"SUM(M87:M90)","v":0},{"$f":"SUM(N87:N90)","v":0},null,{"$f":"'BNB-System'!K82","v":200},{"$f":"IF(ISNUMBER(E86*N86/100),E86*N86/100,0)","v":0}]
[null,null,{"$f":"'BNB-System'!F83","v":"Anzahl und Vielfalt Sitzgelegenheiten"},{"$f":"'BNB-System'!G83","v":30},null,null,{"$f":"IF(AND(NOT(ISBLANK(K87)),NOT(ISBLANK(L87))),('Bewertung durch Anwender'!K87),IF(AND(NOT(ISBLANK(J87)),NOT(ISBLANK(I87))),('Bewertung durch Anwender'!I87),(Zielvereinbarung!G87)))","v":0},{"$f":"Zielvereinbarung!G87","v":0},null,null,null,null,null,null,null,{"$f":"'BNB-System'!K83","v":0}]
[null,null,{"$f":"'BNB-System'!F84","v":"Anzahlund Vielfalt der Spiel- und Sportmöglichkeiten"},{"$f":"'BNB-System'!G84","v":15},null,null,{"$f":"IF(AND(NOT(ISBLANK(K88)),NOT(ISBLANK(L88))),('Bewertung durch Anwender'!K88),IF(AND(NOT(ISBLANK(J88)),NOT(ISBLANK(I88))),('Bewertung durch Anwender'!I88),(Zielvereinbarung!G88)))","v":0},{"$f":"Zielvereinbarung!G88","v":0},null,null,null,null,null,null,null,{"$f":"'BNB-System'!K84","v":0}]
[null,null,{"$f":"'BNB-System'!F85","v":"Zuordnung von Freibereichen zu Innenräumen"},{"$f":"'BNB-System'!G85","v":20},null,null,{"$f":"IF(AND(NOT(ISBLANK(K89)),NOT(ISBLANK(L89))),('Bewertung durch Anwender'!K89),IF(AND(NOT(ISBLANK(J89)),NOT(ISBLANK(I89))),('Bewertung durch Anwender'!I89),(Zielvereinbarung!G89)))","v":0},{"$f":"Zielvereinbarung!G89","v":0},null,null,null,null,null,null,null,{"$f":"'BNB-System'!K85","v":0}]
[null,null,{"$f":"'BNB-System'!F86","v":"Ausstattungsmerkmale"},{"$f":"'BNB-System'!G86","v":39},null,null,{"$f":"IF(AND(NOT(ISBLANK(K90)),NOT(ISBLANK(L90))),('Bewertung durch Anwender'!K90),IF(AND(NOT(ISBLANK(J90)),NOT(ISBLANK(I90))),('Bewertung durch Anwender'!I90),(Zielvereinbarung!G90)))","v":0},{"$f":"Zielvereinbarung!G90","v":0},null,null,null,null,null,null,null,{"$f":"'BNB-System'!K86","v":0}]
[null,{"$f":"'BNB-System'!E87","v":" 3.1.8"},{"$f":"'BNB-System'!F87","v":"Sicherheit"},{"$f":"'BNB-System'!G87","v":100},{"$f":"'BNB-System'!J87","v":8.3333333333333332E-3},null,{"$f":"IF(AND(NOT(ISBLANK(K91)),NOT(ISBLANK(L91))),('Bewertung durch Anwender'!K91),IF(AND(NOT(ISBLANK(J91)),NOT(ISBLANK(I91))),('Bewertung durch Anwender'!I91),(Zielvereinbarung!G91)))","v":0},{"$f":"Zielvereinbarung!G91","v":0},null,null,null,null,null,null,null,{"$f":"'BNB-System'!K87","v":100},{"$f":"IF(ISNUMBER(E91*N91/100),E91*N91/100,0)","v":0}]
[null,{"$f":"'BNB-System'!E88","v":" 3.1.9"},{"$f":"'BNB-System'!F88","v":"Innenraumqualität"},{"$f":"'BNB-System'!G88","v":100},{"$f":"'BNB-System'!J88","v":2.4999999999999998E-2},null,{"$f":"IF(AND(NOT(ISBLANK(K92)),NOT(ISBLANK(L92))),('Bewertung durch Anwender'!K92),IF(AND(NOT(ISBLANK(J92)),NOT(ISBLANK(I92))),('Bewertung durch Anwender'!I92),(Zielvereinbarung!G92)))","v":0},{"$f":"Zielvereinbarung!G92","v":0},null,null,null,null,{"$f":"IF(SUM(M93:M96)>100,100,SUM(M93:M96))","v":0},{"$f":"IF(SUM(N93:N96)>100,100,SUM(N93:N96))","v":0}]
[null,null,{"$f":"'BNB-System'!F89","v":"Aufenthaltsqualitäten der Erschließungsflächen"},{"$f":"'BNB-System'!G89","v":45},null,null,{"$f":"IF(AND(NOT(ISBLANK(K93)),NOT(ISBLANK(L93))),('Bewertung durch Anwender'!K93),IF(AND(NOT(ISBLANK(J93)),NOT(ISBLANK(I93))),('Bewertung durch Anwender'!I93),(Zielvereinbarung!G93)))","v":0},{"$f":"Zielvereinbarung!G93","v":0}]
[null,null,{"$f":"'BNB-System'!F90","v":"Innere Sitzbeziehung"},{"$f":"'BNB-System'!G90","v":15},null,null,{"$f":"IF(AND(NOT(ISBLANK(K94)),NOT(ISBLANK(L94))),('Bewertung durch Anwender'!K94),IF(AND(NOT(ISBLANK(J94)),NOT(ISBLANK(I94))),('Bewertung durch Anwender'!I94),(Zielvereinbarung!G94)))","v":0},{"$f":"Zielvereinbarung!G94","v":0}]
[null,null,{"$f":"'BNB-System'!F91","v":"Flexibilität der Raumnutzung"},{"$f":"'BNB-System'!G91","v":30},null,null,{"$f":"IF(AND(NOT(ISBLANK(K95)),NOT(ISBLANK(L95))),('Bewertung durch Anwender'!K95),IF(AND(NOT(ISBLANK(J95)),NOT(ISBLANK(I95))),('Bewertung durch Anwender'!I95),(Zielvereinbarung!G95)))","v":0},{"$f":"Zielvereinbarung!G95","v":0}]
[null,null,{"$f":"'BNB-System'!F92","v":"Aufbewahrungsmöglichkeiten"},{"$f":"'BNB-System'!G92","v":40},null,null,{"$f":"IF(AND(NOT(ISBLANK(K96)),NOT(ISBLANK(L96))),('Bewertung durch Anwender'!K96),IF(AND(NOT(ISBLANK(J96)),NOT(ISBLANK(I96))),('Bewertung durch Anwender'!I96),(Zielvereinbarung!G96)))","v":0},{"$f":"Zielvereinbarung!G96","v":0}]
[null,null,{"$f":"'BNB-System'!F93","v":"Funktionalität"},null,null,null,null,null,null,null,null,null,null,null,null,{"$f":"'BNB-System'!K93","v":0}]
[null,{"$f":"'BNB-System'!E94","v":" 3.2.1"},{"$f":"'BNB-System'!F94","v":"Barrierefreiheit"},{"$f":"'BNB-System'!G94","v":100},{"$f":"'BNB-System'!J94","v":1.6666666666666666E-2},null,{"$f":"IF(AND(NOT(ISBLANK(K98)),NOT(ISBLANK(L98))),('Bewertung durch Anwender'!K98),IF(AND(NOT(ISBLANK(J98)),NOT(ISBLANK(I98))),('Bewertung durch Anwender'!I98),(Zielvereinbarung!G98)))","v":0},{"$f":"Zielvereinbarung!G98","v":0},null,null,null,null,null,null,null,{"$f":"'BNB-System'!K94","v":200},{"$f":"IF(ISNUMBER(E98*N98/100),E98*N98/100,0)","v":0}]
[null,{"$f":"'BNB-System'!E95","v":" 3.2.4"},{"$f":"'BNB-System'!F95","v":"Zugänglichkeit"},{"$f":"'BNB-System'!G95","v":100},{"$f":"'BNB-System'!J95","v":1.6666666666666666E-2},null,{"$f":"IF(AND(NOT(ISBLANK(K99)),NOT(ISBLANK(L99))),('Bewertung durch Anwender'!K99),IF(AND(NOT(ISBLANK(J99)),NOT(ISBLANK(I99))),('Bewertung durch Anwender'!I99),(Zielvereinbarung!G99)))","v":0},{"$f":"Zielvereinbarung!G99","v":0},null,null,null,null,{"$f":"IF(SUM(M100:M103)>100,100,SUM(M100:M103))","v":0},{"$f":"IF(SUM(N100:N103)>100,100,SUM(N100:N103))","v":0},null,{"$f":"'BNB-System'!K95","v":200},{"$f":"IF(ISNUMBER(E99*N99/100),E99*N99/100,0)","v":0}]
[null,null,{"$f":"'BNB-System'!F96","v":"Grundsätzliche öffentliche Zugänglichkeit des Gebäudes"},{"$f":"'BNB-System'!G96","v":20},null,null,{"$f":"IF(AND(NOT(ISBLANK(K100)),NOT(ISBLANK(L100))),('Bewertung durch Anwender'!K100),IF(AND(NOT(ISBLANK(J100)),NOT(ISBLANK(I100))),('Bewertung durch Anwender'!I100),(Zielvereinbarung!G100)))","v":0},{"$f":"Zielvereinbarung!G100","v":0},null,null,null,null,null,null,null,{"$f":"'BNB-System'!K96","v":0}]
[null,null,{"$f":"'BNB-System'!F97","v":"Qualitative Merkmale der öffentlichen Zugänglichkeit des Gebäudes"},{"$f":"'BNB-System'!G97","v":50},null,null,{"$f":"IF(AND(NOT(ISBLANK(K101)),NOT(ISBLANK(L101))),('Bewertung durch Anwender'!K101),IF(AND(NOT(ISBLANK(J101)),NOT(ISBLANK(I101))),('Bewertung durch Anwender'!I101),(Zielvereinbarung!G101)))","v":0},{"$f":"Zielvereinbarung!G101","v":0},null,null,null,null,null,null,null,{"$f":"'BNB-System'!K97","v":0}]
[null,null,{"$f":"'BNB-System'!F98","v":"Nutzungsmerkmale der Zugänglichkeit"},{"$f":"'BNB-System'!G98","v":50},null,null,{"$f":"IF(AND(NOT(ISBLANK(K102)),NOT(ISBLANK(L102))),('Bewertung durch Anwender'!K102),IF(AND(NOT(ISBLANK(J102)),NOT(ISBLANK(I102))),('Bewertung durch Anwender'!I102),(Zielvereinbarung!G102)))","v":0},{"$f":"Zielvereinbarung!G102","v":0},null,null,null,null,null,null,null,{"$f":"'BNB-System'!K98","v":0}]
[null,null,{"$f":"'BNB-System'!F99","v":"Qualitative Aspekte der öffentlichen Zugänglichkeit der Freiflächen"},{"$f":"'BNB-System'!G99","v":20},null,null,{"$f":"IF(AND(NOT(ISBLANK(K103)),NOT(ISBLANK(L103))),('Bewertung durch Anwender'!K103),IF(AND(NOT(ISBLANK(J103)),NOT(ISBLANK(I103))),('Bewertung durch Anwender'!I103),(Zielvereinbarung!G103)))","v":0},{"$f":"Zielvereinbarung!G103","v":0},null,null,null,null,null,null,null,{"$f":"'BNB-System'!K99","v":0}]
[null,{"$f":"'BNB-System'!E100","v":" 3.2.5"},{"$f":"'BNB-System'!F100","v":"Mobilitätsinfrastruktur"},{"$f":"'BNB-System'!G100","v":100},{"$f":"'BNB-System'!J100","v":8.3333333333333332E-3},null,{"$f":"IF(AND(NOT(ISBLANK(K104)),NOT(ISBLANK(L104))),('Bewertung durch Anwender'!K104),IF(AND(NOT(ISBLANK(J104)),NOT(ISBLANK(I104))),('Bewertung durch Anwender'!I104),(Zielvereinbarung!G104)))","v":0},{"$f":"Zielvereinbarung!G104","v":0},null,null,null,null,{"$f":"IF(SUM(M105:M107)>100,100,SUM(M105:M107))","v":0},{"$f":"IF(SUM(N105:N107)>100,100,SUM(N105:N107))","v":0},null,{"$f":"'BNB-System'!K100","v":100},{"$f":"IF(ISNUMBER(E104*N104/100),E104*N104/100,0)","v":0}]
[null,null,{"$f":"'BNB-System'!F101","v":"Anzahl der Fahrradstellplätze"},{"$f":"'BNB-System'!G101","v":40},null,null,{"$f":"IF(AND(NOT(ISBLANK(K105)),NOT(ISBLANK(L105))),('Bewertung durch Anwender'!K105),IF(AND(NOT(ISBLANK(J105)),NOT(ISBLANK(I105))),('Bewertung durch Anwender'!I105),(Zielvereinbarung!G105)))","v":0},null,null,null,null,null,null,null,null,{"$f":"'BNB-System'!#REF!","v":{"$error":"#REF!"}}]
[null,null,{"$f":"'BNB-System'!F102","v":"Anzahl der Lademöglichkeiten und Carsharing-Stellplätze"},{"$f":"'BNB-System'!G102","v":20},null,null,{"$f":"IF(AND(NOT(ISBLANK(K106)),NOT(ISBLANK(L106))),('Bewertung durch Anwender'!K106),IF(AND(NOT(ISBLANK(J106)),NOT(ISBLANK(I106))),('Bewertung durch Anwender'!I106),(Zielvereinbarung!G106)))","v":0}]
[null,null,{"$f":"'BNB-System'!F103","v":"Qualitative Anforderungen an Fahrradstellplätze"},{"$f":"'BNB-System'!G103","v":60},null,null,{"$f":"IF(AND(NOT(ISBLANK(K107)),NOT(ISBLANK(L107))),('Bewertung durch Anwender'!K107),IF(AND(NOT(ISBLANK(J107)),NOT(ISBLANK(I107))),('Bewertung durch Anwender'!I107),(Zielvereinbarung!G107)))","v":0}]
[null,null,{"$f":"'BNB-System'!F104","v":"Sicherung der Gestaltungsqualität"},null,null,null,null,null,null,null,null,null,null,null,null,{"$f":"'BNB-System'!K104","v":0}]
[null,{"$f":"'BNB-System'!E105","v":" 3.3.1"},{"$f":"'BNB-System'!F105","v":"Gestalterische und städtebauliche Qualität"},{"$f":"'BNB-System'!G105","v":100},{"$f":"'BNB-System'!J105","v":2.4999999999999998E-2},null,{"$f":"IF(AND(NOT(ISBLANK(K109)),NOT(ISBLANK(L109))),('Bewertung durch Anwender'!K109),IF(AND(NOT(ISBLANK(J109)),NOT(ISBLANK(I109))),('Bewertung durch Anwender'!I109),(Zielvereinbarung!G109)))","v":0},{"$f":"Zielvereinbarung!G109","v":0},null,null,null,null,{"$f":"IF(AND(M110>0,M114<=M115),SUM(M110:M113),IF(AND(M110>0,M115<=M114),SUM(M110:M113),IF(M114>0,M114,IF(M115>0,M115,M116))))","v":0},{"$f":"IF(AND(N110>0,N114<=N115),SUM(N110:N113),IF(AND(N110>0,N115<=N114),SUM(N110:N113),IF(N114>0,N114,IF(N115>0,N115,N116))))","v":0},null,{"$f":"'BNB-System'!K105","v":300},{"$f":"IF(ISNUMBER(E109*N109/100),E109*N109/100,0)","v":0}]
[null,null,{"$f":"'BNB-System'!F106","v":"Durchführung von Planungswettbewerben"},{"$f":"'BNB-System'!G106","v":20},null,null,{"$f":"IF(AND(NOT(ISBLANK(K110)),NOT(ISBLANK(L110))),('Bewertung durch Anwender'!K110),IF(AND(NOT(ISBLANK(J110)),NOT(ISBLANK(I110))),('Bewertung durch Anwender'!I110),(Zielvereinbarung!G110)))","v":0},{"$f":"Zielvereinbarung!G110","v":0},null,null,null,null,null,null,null,{"$f":"'BNB-System'!K106","v":0}]
[null,null,{"$f":"'BNB-System'!F107","v":"Wettbewerbsverfahren"},{"$f":"'BNB-System'!G107","v":40},null,null,{"$f":"IF(AND(NOT(ISBLANK(K111)),NOT(ISBLANK(L111))),('Bewertung durch Anwender'!K111),IF(AND(NOT(ISBLANK(J111)),NOT(ISBLANK(I111))),('Bewertung durch Anwender'!I111),(Zielvereinbarung!G111)))","v":0},{"$f":"Zielvereinbarung!G111","v":0},null,null,null,null,null,null,null,{"$f":"'BNB-System'!K107","v":0}]
[null,null,{"$f":"'BNB-System'!F108","v":"Ausführung des Entwurfs eines der Preisträger"},{"$f":"'BNB-System'!G108","v":30},null,null,{"$f":"IF(AND(NOT(ISBLANK(K112)),NOT(ISBLANK(L112))),('Bewertung durch Anwender'!K112),IF(AND(NOT(ISBLANK(J112)),NOT(ISBLANK(I112))),('Bewertung durch Anwender'!I112),(Zielvereinbarung!G112)))","v":0},{"$f":"Zielvereinbarung!G112","v":0},null,null,null,null,null,null,null,{"$f":"'BNB-System'!K108","v":0}]
[null,null,{"$f":"'BNB-System'!F109","v":"Beauftragung des Planungsteams"},{"$f":"'BNB-System'!G109","v":10},null,null,{"$f":"IF(AND(NOT(ISBLANK(K113)),NOT(ISBLANK(L113))),('Bewertung durch Anwender'!K113),IF(AND(NOT(ISBLANK(J113)),NOT(ISBLANK(I113))),('Bewertung durch Anwender'!I113),(Zielvereinbarung!G113)))","v":0},{"$f":"Zielvereinbarung!G113","v":0},null,null,null,null,null,null,null,{"$f":"'BNB-System'!K109","v":0}]
[null,null,{"$f":"'BNB-System'!F110","v":"Auszeichnung mit einem Architekturpreis"},{"$f":"'BNB-System'!G110","v":60},null,null,{"$f":"IF(AND(NOT(ISBLANK(K114)),NOT(ISBLANK(L114))),('Bewertung durch Anwender'!K114),IF(AND(NOT(ISBLANK(J114)),NOT(ISBLANK(I114))),('Bewertung durch Anwender'!I114),(Zielvereinbarung!G114)))","v":0},{"$f":"Zielvereinbarung!G114","v":0},null,null,null,null,null,null,null,{"$f":"'BNB-System'!K110","v":0}]
[null,null,{"$f":"'BNB-System'!F111","v":"Unabhängiges Expertengremium"},{"$f":"'BNB-System'!G111","v":40},null,null,{"$f":"IF(AND(NOT(ISBLANK(K115)),NOT(ISBLANK(L115))),('Bewertung durch Anwender'!K115),IF(AND(NOT(ISBLANK(J115)),NOT(ISBLANK(I115))),('Bewertung durch Anwender'!I115),(Zielvereinbarung!G115)))","v":0},{"$f":"Zielvereinbarung!G115","v":0},null,null,null,null,null,null,null,{"$f":"'BNB-System'!K111","v":0}]
[null,null,{"$f":"'BNB-System'!F112","v":"Sonderfall Mindestanforderung"},{"$f":"'BNB-System'!G112","v":10},null,null,{"$f":"IF(AND(NOT(ISBLANK(K116)),NOT(ISBLANK(L116))),('Bewertung durch Anwender'!K116),IF(AND(NOT(ISBLANK(J116)),NOT(ISBLANK(I116))),('Bewertung durch Anwender'!I116),(Zielvereinbarung!G116)))","v":0},{"$f":"Zielvereinbarung!G116","v":0},null,null,null,null,null,null,null,{"$f":"'BNB-System'!K112","v":0}]
[null,{"$f":"'BNB-System'!E113","v":" 3.3.2"},{"$f":"'BNB-System'!F113","v":"Kunst am Bau "},{"$f":"'BNB-System'!G113","v":100},{"$f":"'BNB-System'!J113","v":8.3333333333333332E-3},null,{"$f":"IF(AND(NOT(ISBLANK(K117)),NOT(ISBLANK(L117))),('Bewertung durch Anwender'!K117),IF(AND(NOT(ISBLANK(J117)),NOT(ISBLANK(I117))),('Bewertung durch Anwender'!I117),(Zielvereinbarung!G117)))","v":0},{"$f":"Zielvereinbarung!G117","v":0},null,null,null,null,{"$f":"SUM(M118:M121)","v":0},{"$f":"SUM(N118:N121)","v":0},null,{"$f":"'BNB-System'!K113","v":100},{"$f":"IF(ISNUMBER(E117*N117/100),E117*N117/100,0)","v":0}]
[null,null,{"$f":"'BNB-System'!F114","v":"Mindestanforderung"},{"$f":"'BNB-System'!G114","v":10},null,null,{"$f":"IF(AND(NOT(ISBLANK(K118)),NOT(ISBLANK(L118))),('Bewertung durch Anwender'!K118),IF(AND(NOT(ISBLANK(J118)),NOT(ISBLANK(I118))),('Bewertung durch Anwender'!I118),(Zielvereinbarung!G118)))","v":0},{"$f":"Zielvereinbarung!G118","v":0},null,null,null,null,null,null,null,{"$f":"'BNB-System'!K114","v":0}]
[null,null,{"$f":"'BNB-System'!F115","v":"Bereitstellung von Mitteln im Rahmen der Bauaufgabe"},{"$f":"'BNB-System'!G115","v":30},null,null,{"$f":"IF(AND(NOT(ISBLANK(K119)),NOT(ISBLANK(L119))),('Bewertung durch Anwender'!K119),IF(AND(NOT(ISBLANK(J119)),NOT(ISBLANK(I119))),('Bewertung durch Anwender'!I119),(Zielvereinbarung!G119)))","v":0},{"$f":"Zielvereinbarung!G119","v":0},null,null,null,null,null,null,null,{"$f":"'BNB-System'!K115","v":0}]
[null,null,{"$f":"'BNB-System'!F116","v":"Umsetzung des Leitfadens Kunst am Bau"},{"$f":"'BNB-System'!G116","v":40},null,null,{"$f":"IF(AND(NOT(ISBLANK(K120)),NOT(ISBLANK(L120))),('Bewertung durch Anwender'!K120),IF(AND(NOT(ISBLANK(J120)),NOT(ISBLANK(I120))),('Bewertung durch Anwender'!I120),(Zielvereinbarung!G120)))","v":0},{"$f":"Zielvereinbarung!G120","v":0},null,null,null,null,null,null,null,{"$f":"'BNB-System'!K116","v":0}]
[null,null,{"$f":"'BNB-System'!F117","v":"Öffentlichkeitsarbeit, Rezeption  der Kunst am Bau"},{"$f":"'BNB-System'!G117","v":20},null,null,{"$f":"IF(AND(NOT(ISBLANK(K121)),NOT(ISBLANK(L121))),('Bewertung durch Anwender'!K121),IF(AND(NOT(ISBLANK(J121)),NOT(ISBLANK(I121))),('Bewertung durch Anwender'!I121),(Zielvereinbarung!G121)))","v":0},{"$f":"Zielvereinbarung!G121","v":0},null,null,null,null,null,null,null,{"$f":"'BNB-System'!K117","v":0}]
[null,null,null,null,null,null,null,null,null,null,null,null,null,null,null,{"$f":"'BNB-System'!K118","v":0}]
[null,{"$f":"'BNB-System'!E119","v":"Technische Qualität"},null,null,{"$f":"'BNB-System'!J119","v":0.22500000000000001},null,{"$f":"IF(AND(NOT(ISBLANK(K123)),NOT(ISBLANK(L123))),('Bewertung durch Anwender'!K123),IF(AND(NOT(ISBLANK(J123)),NOT(ISBLANK(I123))),('Bewertung durch Anwender'!I123),(Zielvereinbarung!G123)))","v":0},{"$f":"Zielvereinbarung!G123","v":0},null,null,null,null,{"$f":"M126*($E$126/100)+M131*($E$131/100)+M138*($E$138/100)+M149*($E$149/100)+M150*($E$150/100)+M151*($E$151/100)","v":0},{"$f":"N126*($E$126/100)+N131*($E$131/100)+N138*($E$138/100)+N149*($E$149/100)+N150*($E$150/100)+N151*($E$151/100)","v":0},null,{"$f":"'BNB-System'!K119","v":1000}]
[null,null,null,null,null,null,null,null,null,null,null,null,null,null,null,{"$f":"'BNB-System'!K120","v":0}]
[null,null,{"$f":"'BNB-System'!F121","v":"technische Ausführung"},null,null,null,null,null,null,null,null,null,null,null,null,{"$f":"'BNB-System'!K121","v":0}]
[null,{"$f":"'BNB-System'!E122","v":" 4.1.1"},{"$f":"'BNB-System'!F122","v":"Schallschutz "},{"$f":"'BNB-System'!G122","v":100},{"$f":"'BNB-System'!J122","v":4.5000000000000005E-2},null,{"$f":"IF(AND(NOT(ISBLANK(K126)),NOT(ISBLANK(L126))),('Bewertung durch Anwender'!K126),IF(AND(NOT(ISBLANK(J126)),NOT(ISBLANK(I126))),('Bewertung durch Anwender'!I126),(Zielvereinbarung!G126)))","v":0},{"$f":"Zielvereinbarung!G126","v":0},null,null,null,null,{"$f":"SUM(M127:M130)","v":0},{"$f":"SUM(N127:N130)","v":0},null,{"$f":"'BNB-System'!K122","v":200},{"$f":"IF(ISNUMBER(E126*N126/100),E126*N126/100,0)","v":0}]
[null,null,{"$f":"'BNB-System'!F123","v":"Luftschallschutz gegenüber Außenlärm"},{"$f":"'BNB-System'!G123","v":20},null,null,{"$f":"IF(AND(NOT(ISBLANK(K127)),NOT(ISBLANK(L127))),('Bewertung durch Anwender'!K127),IF(AND(NOT(ISBLANK(J127)),NOT(ISBLANK(I127))),('Bewertung durch Anwender'!I127),(Zielvereinbarung!G127)))","v":0},{"$f":"Zielvereinbarung!G127","v":0},null,null,null,null,null,null,null,{"$f":"'BNB-System'!K123","v":0}]
[null,null,{"$f":"'BNB-System'!F124","v":"Luftschallschutz "},{"$f":"'BNB-System'!G124","v":30},null,null,{"$f":"IF(AND(NOT(ISBLANK(K128)),NOT(ISBLANK(L128))),('Bewertung durch Anwender'!K128),IF(AND(NOT(ISBLANK(J128)),NOT(ISBLANK(I128))),('Bewertung durch Anwender'!I128),(Zielvereinbarung!G128)))","v":0},{"$f":"Zielvereinbarung!G128","v":0},null,null,null,null,null,null,null,{"$f":"'BNB-System'!K124","v":0}]
[null,null,{"$f":"'BNB-System'!F125","v":"Trittschallschutz "},{"$f":"'BNB-System'!G125","v":30},null,null,{"$f":"IF(AND(NOT(ISBLANK(K129)),NOT(ISBLANK(L129))),('Bewertung durch Anwender'!K129),IF(AND(NOT(ISBLANK(J129)),NOT(ISBLANK(I129))),('Bewertung durch Anwender'!I129),(Zielvereinbarung!G129)))","v":0},{"$f":"Zielvereinbarung!G129","v":0},null,null,null,null,null,null,null,{"$f":"'BNB-System'!K125","v":0}]
[null,null,{"$f":"'BNB-System'!F126","v":"Schallschutz gegenüber haustechnischen Anlagen"},{"$f":"'BNB-System'!G126","v":20},null,null,{"$f":"IF(AND(NOT(ISBLANK(K130)),NOT(ISBLANK(L130))),('Bewertung durch Anwender'!K130),IF(AND(NOT(ISBLANK(J130)),NOT(ISBLANK(I130))),('Bewertung durch Anwender'!I130),(Zielvereinbarung!G130)))","v":0},{"$f":"Zielvereinbarung!G130","v":0},null,null,null,null,null,null,null,{"$f":"'BNB-System'!K126","v":0}]
[null,{"$f":"'BNB-System'!E127","v":" 4.1.2"},{"$f":"'BNB-System'!F127","v":"Wärme- und Tauwasserschutz "},{"$f":"'BNB-System'!G127","v":100},{"$f":"'BNB-System'!J127","v":4.5000000000000005E-2},null,{"$f":"IF(AND(NOT(ISBLANK(K131)),NOT(ISBLANK(L131))),('Bewertung durch Anwender'!K131),IF(AND(NOT(ISBLANK(J131)),NOT(ISBLANK(I131))),('Bewertung durch Anwender'!I131),(Zielvereinbarung!G131)))","v":0},{"$f":"Zielvereinbarung!G131","v":0},null,null,null,null,{"$f":"SUM(M132:M137)","v":0},{"$f":"SUM(N132:N137)","v":0},null,{"$f":"'BNB-System'!K127","v":200},{"$f":"IF(ISNUMBER(E131*N131/100),E131*N131/100,0)","v":0}]
[null,null,{"$f":"'BNB-System'!F128","v":"Mittlere Wärmeduchgangskoeffizienten"},{"$f":"'BNB-System'!G128","v":30},null,null,{"$f":"IF(AND(NOT(ISBLANK(K132)),NOT(ISBLANK(L132))),('Bewertung durch Anwender'!K132),IF(AND(NOT(ISBLANK(J132)),NOT(ISBLANK(I132))),('Bewertung durch Anwender'!I132),(Zielvereinbarung!G132)))","v":0},{"$f":"Zielvereinbarung!G132","v":0},null,null,null,null,null,null,null,{"$f":"'BNB-System'!K128","v":0}]
[null,null,{"$f":"'BNB-System'!F129","v":"Wärmebrückenzuschlag"},{"$f":"'BNB-System'!G129","v":15},null,null,{"$f":"IF(AND(NOT(ISBLANK(K133)),NOT(ISBLANK(L133))),('Bewertung durch Anwender'!K133),IF(AND(NOT(ISBLANK(J133)),NOT(ISBLANK(I133))),('Bewertung durch Anwender'!I133),(Zielvereinbarung!G133)))","v":0},{"$f":"Zielvereinbarung!G133","v":0},null,null,null,null,null,null,null,{"$f":"'BNB-System'!K129","v":0}]
[null,null,{"$f":"'BNB-System'!F130","v":"Klassen der Luftdurchlässigkeit (Fugendurchlässigkeit)"},{"$f":"'BNB-System'!G130","v":15},null,null,{"$f":"IF(AND(NOT(ISBLANK(K134)),NOT(ISBLANK(L134))),('Bewertung durch Anwender'!K134),IF(AND(NOT(ISBLANK(J134)),NOT(ISBLANK(I134))),('Bewertung durch Anwender'!I134),(Zielvereinbarung!G134)))","v":0},{"$f":"Zielvereinbarung!G134","v":0},null,null,null,null,null,null,null,{"$f":"'BNB-System'!K130","v":0}]
[null,null,{"$f":"'BNB-System'!F131","v":"Tauwasserbildung"},{"$f":"'BNB-System'!G131","v":10},null,null,{"$f":"IF(AND(NOT(ISBLANK(K135)),NOT(ISBLANK(L135))),('Bewertung durch Anwender'!K135),IF(AND(NOT(ISBLANK(J135)),NOT(ISBLANK(I135))),('Bewertung durch Anwender'!I135),(Zielvereinbarung!G135)))","v":0},{"$f":"Zielvereinbarung!G135","v":0},null,null,null,null,null,null,null,{"$f":"'BNB-System'!K131","v":0}]
[null,null,{"$f":"'BNB-System'!F132","v":"Luftwechsel"},{"$f":"'BNB-System'!G132","v":15},null,null,{"$f":"IF(AND(NOT(ISBLANK(K136)),NOT(ISBLANK(L136))),('Bewertung durch Anwender'!K136),IF(AND(NOT(ISBLANK(J136)),NOT(ISBLANK(I136))),('Bewertung durch Anwender'!I136),(Zielvereinbarung!G136)))","v":0},{"$f":"Zielvereinbarung!G136","v":0},null,null,null,null,null,null,null,{"$f":"'BNB-System'!K132","v":0}]
[null,null,{"$f":"'BNB-System'!F133","v":"Sonneneintragswert"},{"$f":"'BNB-System'!G133","v":15},null,null,{"$f":"IF(AND(NOT(ISBLANK(K137)),NOT(ISBLANK(L137))),('Bewertung durch Anwender'!K137),IF(AND(NOT(ISBLANK(J137)),NOT(ISBLANK(I137))),('Bewertung durch Anwender'!I137),(Zielvereinbarung!G137)))","v":0},{"$f":"Zielvereinbarung!G137","v":0},null,null,null,null,null,null,null,{"$f":"'BNB-System'!K133","v":0}]
[null,{"$f":"'BNB-System'!E134","v":" 4.1.3"},{"$f":"'BNB-System'!F134","v":"Reinigungs- und Instandhaltungsfreundlichkeit"},{"$f":"'BNB-System'!G134","v":100},{"$f":"'BNB-System'!J134","v":4.5000000000000005E-2},null,{"$f":"IF(AND(NOT(ISBLANK(K138)),NOT(ISBLANK(L138))),('Bewertung durch Anwender'!K138),IF(AND(NOT(ISBLANK(J138)),NOT(ISBLANK(I138))),('Bewertung durch Anwender'!I138),(Zielvereinbarung!G138)))","v":0},{"$f":"Zielvereinbarung!G138","v":0},null,null,null,null,{"$f":"SUM(M139:M148)","v":0},{"$f":"SUM(N139:N148)","v":0},null,{"$f":"'BNB-System'!K134","v":200},{"$f":"IF(ISNUMBER(E138*N138/100),E138*N138/100,0)","v":0}]
[null,null,{"$f":"'BNB-System'!F135","v":"Tragkonstruktion"},{"$f":"'BNB-System'!G135","v":15},null,null,{"$f":"IF(AND(NOT(ISBLANK(K139)),NOT(ISBLANK(L139))),('Bewertung durch Anwender'!K139),IF(AND(NOT(ISBLANK(J139)),NOT(ISBLANK(I139))),('Bewertung durch Anwender'!I139),(Zielvereinbarung!G139)))","v":0},{"$f":"Zielvereinbarung!G139","v":0},null,null,null,null,null,null,null,{"$f":"'BNB-System'!K135","v":0}]
[null,null,{"$f":"'BNB-System'!F136","v":"Zugänglichkeit der Außenanlagen"},{"$f":"'BNB-System'!G136","v":12},null,null,{"$f":"IF(AND(NOT(ISBLANK(K140)),NOT(ISBLANK(L140))),('Bewertung durch Anwender'!K140),IF(AND(NOT(ISBLANK(J140)),NOT(ISBLANK(I140))),('Bewertung durch Anwender'!I140),(Zielvereinbarung!G140)))","v":0},{"$f":"Zielvereinbarung!G140","v":0},null,null,null,null,null,null,null,{"$f":"'BNB-System'!K136","v":0}]
[null,null,{"$f":"'BNB-System'!F137","v":"Außenbauteile"},{"$f":"'BNB-System'!G137","v":9},null,null,{"$f":"IF(AND(NOT(ISBLANK(K141)),NOT(ISBLANK(L141))),('Bewertung durch Anwender'!K141),IF(AND(NOT(ISBLANK(J141)),NOT(ISBLANK(I141))),('Bewertung durch Anwender'!I141),(Zielvereinbarung!G141)))","v":0},{"$f":"Zielvereinbarung!G141","v":0},null,null,null,null,null,null,null,{"$f":"'BNB-System'!K137","v":0}]
[null,null,{"$f":"'BNB-System'!F138","v":"Bodenbelag"},{"$f":"'BNB-System'!G138","v":9},null,null,{"$f":"IF(AND(NOT(ISBLANK(K142)),NOT(ISBLANK(L142))),('Bewertung durch Anwender'!K142),IF(AND(NOT(ISBLANK(J142)),NOT(ISBLANK(I142))),('Bewertung durch Anwender'!I142),(Zielvereinbarung!G142)))","v":0},{"$f":"Zielvereinbarung!G142","v":0},null,null,null,null,null,null,null,{"$f":"'BNB-System'!K138","v":0}]
[null,null,{"$f":"'BNB-System'!F139","v":"Schmutzfangzone"},{"$f":"'BNB-System'!G139","v":9},null,null,{"$f":"IF(AND(NOT(ISBLANK(K143)),NOT(ISBLANK(L143))),('Bewertung durch Anwender'!K143),IF(AND(NOT(ISBLANK(J143)),NOT(ISBLANK(I143))),('Bewertung durch Anwender'!I143),(Zielvereinbarung!G143)))","v":0},{"$f":"Zielvereinbarung!G143","v":0},null,null,null,null,null,null,null,{"$f":"'BNB-System'!K139","v":0}]
[null,null,{"$f":"'BNB-System'!F140","v":"Fußbodenleisten"},{"$f":"'BNB-System'!G140","v":9},null,null,{"$f":"IF(AND(NOT(ISBLANK(K144)),NOT(ISBLANK(L144))),('Bewertung durch Anwender'!K144),IF(AND(NOT(ISBLANK(J144)),NOT(ISBLANK(I144))),('Bewertung durch Anwender'!I144),(Zielvereinbarung!G144)))","v":0},{"$f":"Zielvereinbarung!G144","v":0},null,null,null,null,null,null,null,{"$f":"'BNB-System'!K140","v":0}]
[null,null,{"$f":"'BNB-System'!F141","v":"Hindernisfreie Grundrissgestaltung"},{"$f":"'BNB-System'!G141","v":9},null,null,{"$f":"IF(AND(NOT(ISBLANK(K145)),NOT(ISBLANK(L145))),('Bewertung durch Anwender'!K145),IF(AND(NOT(ISBLANK(J145)),NOT(ISBLANK(I145))),('Bewertung durch Anwender'!I145),(Zielvereinbarung!G145)))","v":0},{"$f":"Zielvereinbarung!G145","v":0},null,null,null,null,null,null,null,{"$f":"'BNB-System'!K141","v":0}]
[null,null,{"$f":"'BNB-System'!F142","v":"Einbauten"},{"$f":"'BNB-System'!G142","v":10},null,null,{"$f":"IF(AND(NOT(ISBLANK(K146)),NOT(ISBLANK(L146))),('Bewertung durch Anwender'!K146),IF(AND(NOT(ISBLANK(J146)),NOT(ISBLANK(I146))),('Bewertung durch Anwender'!I146),(Zielvereinbarung!G146)))","v":0},{"$f":"Zielvereinbarung!G146","v":0},null,null,null,null,null,null,null,{"$f":"'BNB-System'!K142","v":0}]
[null,null,{"$f":"'BNB-System'!F143","v":"Zugänglichkeit der Innenglasflächen "},{"$f":"'BNB-System'!G143","v":9},null,null,{"$f":"IF(AND(NOT(ISBLANK(K147)),NOT(ISBLANK(L147))),('Bewertung durch Anwender'!K147),IF(AND(NOT(ISBLANK(J147)),NOT(ISBLANK(I147))),('Bewertung durch Anwender'!I147),(Zielvereinbarung!G148)))","v":0},{"$f":"Zielvereinbarung!G148","v":0}]
[null,null,{"$f":"'BNB-System'!F144","v":"Wände"},{"$f":"'BNB-System'!G144","v":9},null,null,{"$f":"IF(AND(NOT(ISBLANK(K148)),NOT(ISBLANK(L148))),('Bewertung durch Anwender'!K148),IF(AND(NOT(ISBLANK(J148)),NOT(ISBLANK(I148))),('Bewertung durch Anwender'!I148),(Zielvereinbarung!G148)))","v":0},{"$f":"Zielvereinbarung!G148","v":0},null,null,null,null,null,null,null,{"$f":"'BNB-System'!K144","v":0}]
[null,{"$f":"'BNB-System'!E145","v":" 4.1.4"},{"$f":"'BNB-System'!F145","v":"Rückbau, Trennung und Verwertung"},{"$f":"'BNB-System'!G145","v":100},{"$f":"'BNB-System'!J145","v":4.5000000000000005E-2},null,{"$f":"IF(AND(NOT(ISBLANK(K149)),NOT(ISBLANK(L149))),('Bewertung durch Anwender'!K149),IF(AND(NOT(ISBLANK(J149)),NOT(ISBLANK(I149))),('Bewertung durch Anwender'!I149),(Zielvereinbarung!G149)))","v":0},{"$f":"Zielvereinbarung!G149","v":0},null,null,null,null,null,null,null,{"$f":"'BNB-System'!K145","v":200},{"$f":"IF(ISNUMBER(E149*N149/100),E149*N149/100,0)","v":0}]
[null,{"$f":"'BNB-System'!E146","v":" 4.1.5"},{"$f":"'BNB-System'!F146","v":"Widerstandsfähigkeit gegen Naturgefahren"},{"$f":"'BNB-System'!G146","v":100},{"$f":"'BNB-System'!J146","v":2.2500000000000003E-2},null,{"$f":"IF(AND(NOT(ISBLANK(K150)),NOT(ISBLANK(L150))),('Bewertung durch Anwender'!K150),IF(AND(NOT(ISBLANK(J150)),NOT(ISBLANK(I150))),('Bewertung durch Anwender'!I150),(Zielvereinbarung!G150)))","v":0},{"$f":"Zielvereinbarung!G150","v":0},null,null,null,null,null,null,null,{"$f":"'BNB-System'!K146","v":100},{"$f":"IF(ISNUMBER(E150*N150/100),E150*N150/100,0)","v":0}]
[null,{"$f":"'BNB-System'!E147","v":" 4.1.6"},{"$f":"'BNB-System'!F147","v":"Bedienungs- und Instandhaltungsfreundlichkeit der TGA"},{"$f":"'BNB-System'!G147","v":100},{"$f":"'BNB-System'!J147","v":2.2500000000000003E-2},null,{"$f":"IF(AND(NOT(ISBLANK(K151)),NOT(ISBLANK(L151))),('Bewertung durch Anwender'!K151),IF(AND(NOT(ISBLANK(J151)),NOT(ISBLANK(I151))),('Bewertung durch Anwender'!I151),(Zielvereinbarung!G151)))","v":0},{"$f":"Zielvereinbarung!G151","v":0},null,null,null,null,{"$f":"IF(SUM(M152:M158)>100,100,SUM(M152:M158))","v":0},{"$f":"IF(SUM(N152:N158)>100,100,SUM(N152:N158))","v":0},null,{"$f":"'BNB-System'!K147","v":100},{"$f":"IF(ISNUMBER(E151*N151/100),E151*N151/100,0)","v":0}]
[null,null,{"$f":"'BNB-System'!F148","v":"KG 410 Abwasser-, Wasser-, Gasanlagen"},{"$f":"'BNB-System'!G148","v":12},null,null,{"$f":"IF(AND(NOT(ISBLANK(K152)),NOT(ISBLANK(L152))),('Bewertung durch Anwender'!K152),IF(AND(NOT(ISBLANK(J152)),NOT(ISBLANK(I152))),('Bewertung durch Anwender'!I152),(Zielvereinbarung!G152)))","v":0},{"$f":"Zielvereinbarung!G152","v":0}]
[null,null,{"$f":"'BNB-System'!F149","v":"KG 420 Wärmeversorgungsanlagen"},{"$f":"'BNB-System'!G149","v":15},null,null,{"$f":"IF(AND(NOT(ISBLANK(K153)),NOT(ISBLANK(L153))),('Bewertung durch Anwender'!K153),IF(AND(NOT(ISBLANK(J153)),NOT(ISBLANK(I153))),('Bewertung durch Anwender'!I153),(Zielvereinbarung!G153)))","v":0},{"$f":"Zielvereinbarung!G153","v":0}]
[null,null,{"$f":"'BNB-System'!F150","v":"KG 430 Lufttechnische Anlagen"},{"$f":"'BNB-System'!G150","v":18},null,null,{"$f":"IF(AND(NOT(ISBLANK(K154)),NOT(ISBLANK(L154))),('Bewertung durch Anwender'!K154),IF(AND(NOT(ISBLANK(J154)),NOT(ISBLANK(I154))),('Bewertung durch Anwender'!I154),(Zielvereinbarung!G154)))","v":0},{"$f":"Zielvereinbarung!G154","v":0}]
[null,null,{"$f":"'BNB-System'!F151","v":"KG 435 Kälteversorgungsanlagen"},{"$f":"'BNB-System'!G151","v":15},null,null,{"$f":"IF(AND(NOT(ISBLANK(K155)),NOT(ISBLANK(L155))),('Bewertung durch Anwender'!K155),IF(AND(NOT(ISBLANK(J155)),NOT(ISBLANK(I155))),('Bewertung durch Anwender'!I155),(Zielvereinbarung!G155)))","v":0},{"$f":"Zielvereinbarung!G155","v":0}]
[null,null,{"$f":"'BNB-System'!F152","v":"KG 440 Starkstromanlagen"},{"$f":"'BNB-System'!G152","v":24},null,null,{"$f":"IF(AND(NOT(ISBLANK(K156)),NOT(ISBLANK(L156))),('Bewertung durch Anwender'!K156),IF(AND(NOT(ISBLANK(J156)),NOT(ISBLANK(I156))),('Bewertung durch Anwender'!I156),(Zielvereinbarung!G156)))","v":0},{"$f":"Zielvereinbarung!G156","v":0}]
[null,null,{"$f":"'BNB-System'!F153","v":"KG 460 Förderanlagen"},{"$f":"'BNB-System'!G153","v":4},null,null,{"$f":"IF(AND(NOT(ISBLANK(K157)),NOT(ISBLANK(L157))),('Bewertung durch Anwender'!K157),IF(AND(NOT(ISBLANK(J157)),NOT(ISBLANK(I157))),('Bewertung durch Anwender'!I157),(Zielvereinbarung!G157)))","v":0},{"$f":"Zielvereinbarung!G157","v":0}]
[null,null,{"$f":"'BNB-System'!F154","v":"KG 480 Gebäudeautomation"},{"$f":"'BNB-System'!G154","v":25},null,null,{"$f":"IF(AND(NOT(ISBLANK(K158)),NOT(ISBLANK(L158))),('Bewertung durch Anwender'!K158),IF(AND(NOT(ISBLANK(J158)),NOT(ISBLANK(I158))),('Bewertung durch Anwender'!I158),(Zielvereinbarung!G158)))","v":0},{"$f":"Zielvereinbarung!G158","v":0}]
[null,null,null,null,null,null,null,null,null,null,null,null,null,null,null,{"$f":"'BNB-System'!K155","v":0}]
[null,{"$f":"'BNB-System'!E156","v":"Prozessqualität"},null,null,{"$f":"'BNB-System'!J156","v":0.1},null,{"$f":"IF(AND(NOT(ISBLANK(K160)),NOT(ISBLANK(L160))),('Bewertung durch Anwender'!K160),IF(AND(NOT(ISBLANK(J160)),NOT(ISBLANK(I160))),('Bewertung durch Anwender'!I160),(Zielvereinbarung!G160)))","v":0},{"$f":"Zielvereinbarung!G160","v":0},null,null,null,null,{"$f":"M163*($E$163/100)+M167*($E$167/100)+M173*($E$173/100)+M189*($E$189/100)+M190*($E$190/100)+M196*($E$196/100)+M201*($E$201/100)+M204*($E$204/100)","v":0},{"$f":"N163*($E$163/100)+N167*($E$167/100)+N173*($E$173/100)+N189*($E$189/100)+N190*($E$190/100)+N196*($E$196/100)+N201*($E$201/100)+N204*($E$204/100)","v":0},null,{"$f":"'BNB-System'!K156","v":2100}]
[null,null,null,null,null,null,null,null,null,null,null,null,null,null,null,{"$f":"'BNB-System'!K157","v":0}]
[null,null,{"$f":"'BNB-System'!F158","v":"Planung"},null,null,null,null,null,null,null,null,null,null,null,null,{"$f":"'BNB-System'!K158","v":0}]
[null,{"$f":"'BNB-System'!E159","v":" 5.1.1"},{"$f":"'BNB-System'!F159","v":"Projektvorbereitung"},{"$f":"'BNB-System'!G159","v":100},{"$f":"'BNB-System'!J159","v":1.4285714285714285E-2},null,{"$f":"IF(AND(NOT(ISBLANK(K163)),NOT(ISBLANK(L163))),('Bewertung durch Anwender'!K163),IF(AND(NOT(ISBLANK(J163)),NOT(ISBLANK(I163))),('Bewertung durch Anwender'!I163),(Zielvereinbarung!G163)))","v":0},{"$f":"Zielvereinbarung!G163","v":0},null,null,null,null,{"$f":"SUM(M164:M166)","v":0},{"$f":"SUM(N164:N166)","v":0},null,{"$f":"'BNB-System'!K159","v":300},{"$f":"IF(ISNUMBER(E163*N163/100),E163*N163/100,0)","v":0}]
[null,null,{"$f":"'BNB-System'!F160","v":"Bedarfsplanung oder vergleichbare Planung"},{"$f":"'BNB-System'!G160","v":35},null,null,{"$f":"IF(AND(NOT(ISBLANK(K164)),NOT(ISBLANK(L164))),('Bewertung durch Anwender'!K164),IF(AND(NOT(ISBLANK(J164)),NOT(ISBLANK(I164))),('Bewertung durch Anwender'!I164),(Zielvereinbarung!G164)))","v":0},{"$f":"Zielvereinbarung!G164","v":0}]
[null,null,{"$f":"'BNB-System'!F161","v":"Zielvereinbarung"},{"$f":"'BNB-System'!G161","v":35},null,null,{"$f":"IF(AND(NOT(ISBLANK(K165)),NOT(ISBLANK(L165))),('Bewertung durch Anwender'!K165),IF(AND(NOT(ISBLANK(J165)),NOT(ISBLANK(I165))),('Bewertung durch Anwender'!I165),(Zielvereinbarung!G165)))","v":0},{"$f":"Zielvereinbarung!G165","v":0}]
[null,null,{"$f":"'BNB-System'!F162","v":"Architektenwettbewerb"},{"$f":"'BNB-System'!G162","v":30},null,null,{"$f":"IF(AND(NOT(ISBLANK(K166)),NOT(ISBLANK(L166))),('Bewertung durch Anwender'!K166),IF(AND(NOT(ISBLANK(J166)),NOT(ISBLANK(I166))),('Bewertung durch Anwender'!I166),(Zielvereinbarung!G166)))","v":0},{"$f":"Zielvereinbarung!G166","v":0}]
[null,{"$f":"'BNB-System'!E163","v":" 5.1.2"},{"$f":"'BNB-System'!F163","v":"Integrale Planung"},{"$f":"'BNB-System'!G163","v":100},{"$f":"'BNB-System'!J163","v":1.4285714285714285E-2},null,{"$f":"IF(AND(NOT(ISBLANK(K167)),NOT(ISBLANK(L167))),('Bewertung durch Anwender'!K167),IF(AND(NOT(ISBLANK(J167)),NOT(ISBLANK(I167))),('Bewertung durch Anwender'!I167),(Zielvereinbarung!G167)))","v":0},{"$f":"Zielvereinbarung!G167","v":0},null,null,null,null,{"$f":"SUM(M168:M172)","v":0},{"$f":"SUM(N168:N172)","v":0},null,{"$f":"'BNB-System'!K163","v":300},{"$f":"IF(ISNUMBER(E167*N167/100),E167*N167/100,0)","v":0}]
[null,null,{"$f":"'BNB-System'!F164","v":"Interdisziplinäres Planungsteam "},{"$f":"'BNB-System'!G164","v":20},null,null,{"$f":"IF(AND(NOT(ISBLANK(K168)),NOT(ISBLANK(L168))),('Bewertung durch Anwender'!K168),IF(AND(NOT(ISBLANK(J168)),NOT(ISBLANK(I168))),('Bewertung durch Anwender'!I168),(Zielvereinbarung!G168)))","v":0},{"$f":"Zielvereinbarung!G168","v":0},null,null,null,null,null,null,null,{"$f":"'BNB-System'!K164","v":0}]
[null,null,{"$f":"'BNB-System'!F165","v":"Qualifikation des Planungsteams"},{"$f":"'BNB-System'!G165","v":20},null,null,{"$f":"IF(AND(NOT(ISBLANK(K169)),NOT(ISBLANK(L169))),('Bewertung durch Anwender'!K169),IF(AND(NOT(ISBLANK(J169)),NOT(ISBLANK(I169))),('Bewertung durch Anwender'!I169),(Zielvereinbarung!G169)))","v":0},{"$f":"Zielvereinbarung!G169","v":0},null,null,null,null,null,null,null,{"$f":"'BNB-System'!K165","v":0}]
[null,null,{"$f":"'BNB-System'!F166","v":"Integraler Planungsprozess"},{"$f":"'BNB-System'!G166","v":20},null,null,{"$f":"IF(AND(NOT(ISBLANK(K170)),NOT(ISBLANK(L170))),('Bewertung durch Anwender'!K170),IF(AND(NOT(ISBLANK(J170)),NOT(ISBLANK(I170))),('Bewertung durch Anwender'!I170),(Zielvereinbarung!G170)))","v":0},{"$f":"Zielvereinbarung!G170","v":0},null,null,null,null,null,null,null,{"$f":"'BNB-System'!K166","v":0}]
[null,null,{"$f":"'BNB-System'!F167","v":"Nutzerbeteiligung"},{"$f":"'BNB-System'!G167","v":30},null,null,{"$f":"IF(AND(NOT(ISBLANK(K171)),NOT(ISBLANK(L171))),('Bewertung durch Anwender'!K171),IF(AND(NOT(ISBLANK(J171)),NOT(ISBLANK(I171))),('Bewertung durch Anwender'!I171),(Zielvereinbarung!G171)))","v":0},{"$f":"Zielvereinbarung!G171","v":0},null,null,null,null,null,null,null,{"$f":"'BNB-System'!K167","v":0}]
[null,null,{"$f":"'BNB-System'!F168","v":"Öffentlichkeitsbeteiligung"},{"$f":"'BNB-System'!G168","v":10},null,null,{"$f":"IF(AND(NOT(ISBLANK(K172)),NOT(ISBLANK(L172))),('Bewertung durch Anwender'!K172),IF(AND(NOT(ISBLANK(J172)),NOT(ISBLANK(I172))),('Bewertung durch Anwender'!I172),(Zielvereinbarung!G172)))","v":0},{"$f":"Zielvereinbarung!G172","v":0},null,null,null,null,null,null,null,{"$f":"'BNB-System'!K168","v":0}]
[null,{"$f":"'BNB-System'!E169","v":" 5.1.3"},{"$f":"'BNB-System'!F169","v":"Komplexität und Optimierung der Planung"},{"$f":"'BNB-System'!G169","v":100},{"$f":"'BNB-System'!J169","v":1.4285714285714285E-2},null,{"$f":"IF(AND(NOT(ISBLANK(K173)),NOT(ISBLANK(L173))),('Bewertung durch Anwender'!K173),IF(AND(NOT(ISBLANK(J173)),NOT(ISBLANK(I173))),('Bewertung durch Anwender'!I173),(Zielvereinbarung!G173)))","v":0},{"$f":"Zielvereinbarung!G173","v":0},null,null,null,null,{"$f":"IF(SUM(M174:M188)>100,100,SUM(M174:M188))","v":0},{"$f":"IF(SUM(N174:N188)>100,100,SUM(N174:N188))","v":0},null,{"$f":"'BNB-System'!K169","v":300},{"$f":"IF(ISNUMBER(E173*N173/100),E173*N173/100,0)","v":0}]
[null,null,{"$f":"'BNB-System'!F170","v":"SiGe-Plan"},{"$f":"'BNB-System'!G170","v":10},null,null,{"$f":"IF(AND(NOT(ISBLANK(K174)),NOT(ISBLANK(L174))),('Bewertung durch Anwender'!K174),IF(AND(NOT(ISBLANK(J174)),NOT(ISBLANK(I174))),('Bewertung durch Anwender'!I174),(Zielvereinbarung!G174)))","v":0},{"$f":"Zielvereinbarung!G174","v":0},null,null,null,null,null,null,null,{"$f":"'BNB-System'!K170","v":0}]
[null,null,{"$f":"'BNB-System'!F171","v":"Ver- und Entsiegelungskonzept"},{"$f":"'BNB-System'!G171","v":10},null,null,{"$f":"IF(AND(NOT(ISBLANK(K175)),NOT(ISBLANK(L175))),('Bewertung durch Anwender'!K175),IF(AND(NOT(ISBLANK(J175)),NOT(ISBLANK(I175))),('Bewertung durch Anwender'!I175),(Zielvereinbarung!G175)))","v":0},{"$f":"Zielvereinbarung!G175","v":0},null,null,null,null,null,null,null,{"$f":"'BNB-System'!K171","v":0}]
[null,null,{"$f":"'BNB-System'!F172","v":"Energiekonzept"},{"$f":"'BNB-System'!G172","v":15},null,null,{"$f":"IF(AND(NOT(ISBLANK(K176)),NOT(ISBLANK(L176))),('Bewertung durch Anwender'!K176),IF(AND(NOT(ISBLANK(J176)),NOT(ISBLANK(I176))),('Bewertung durch Anwender'!I176),(Zielvereinbarung!G176)))","v":0},{"$f":"Zielvereinbarung!G176","v":0},null,null,null,null,null,null,null,{"$f":"'BNB-System'!K172","v":0}]
[null,null,{"$f":"'BNB-System'!F173","v":"Mess- und Monitoringkonzept"},{"$f":"'BNB-System'!G173","v":15},null,null,{"$f":"IF(AND(NOT(ISBLANK(K177)),NOT(ISBLANK(L177))),('Bewertung durch Anwender'!K177),IF(AND(NOT(ISBLANK(J177)),NOT(ISBLANK(I177))),('Bewertung durch Anwender'!I177),(Zielvereinbarung!G177)))","v":0},{"$f":"Zielvereinbarung!G177","v":0},null,null,null,null,null,null,null,{"$f":"'BNB-System'!K173","v":0}]
[null,null,{"$f":"'BNB-System'!F174","v":"Wasserkonzept"},{"$f":"'BNB-System'!G174","v":10},null,null,{"$f":"IF(AND(NOT(ISBLANK(K178)),NOT(ISBLANK(L178))),('Bewertung durch Anwender'!K178),IF(AND(NOT(ISBLANK(J178)),NOT(ISBLANK(I178))),('Bewertung durch Anwender'!I178),(Zielvereinbarung!G178)))","v":0},{"$f":"Zielvereinbarung!G178","v":0},null,null,null,null,null,null,null,{"$f":"'BNB-System'!K174","v":0}]
[null,null,{"$f":"'BNB-System'!F175","v":"Konzept zur Vermeidung von Umwelt- und Gesundheitsrisiken aus Bauprodukten"},{"$f":"'BNB-System'!G175","v":10},null,null,{"$f":"IF(AND(NOT(ISBLANK(K179)),NOT(ISBLANK(L179))),('Bewertung durch Anwender'!K179),IF(AND(NOT(ISBLANK(J179)),NOT(ISBLANK(I179))),('Bewertung durch Anwender'!I179),(Zielvereinbarung!G179)))","v":0},{"$f":"Zielvereinbarung!G179","v":0},null,null,null,null,null,null,null,{"$f":"'BNB-System'!K175","v":0}]
[null,null,{"$f":"'BNB-System'!F176","v":"Lüftungskonzept"},{"$f":"'BNB-System'!G176","v":10},null,null,{"$f":"IF(AND(NOT(ISBLANK(K180)),NOT(ISBLANK(L180))),('Bewertung durch Anwender'!K180),IF(AND(NOT(ISBLANK(J180)),NOT(ISBLANK(I180))),('Bewertung durch Anwender'!I180),(Zielvereinbarung!G180)))","v":0},{"$f":"Zielvereinbarung!G180","v":0},null,null,null,null,null,null,null,{"$f":"'BNB-System'!K176","v":0}]
[null,null,{"$f":"'BNB-System'!F177","v":"Abfallkonzept / Wertstoffkonzept"},{"$f":"'BNB-System'!G177","v":5},null,null,{"$f":"IF(AND(NOT(ISBLANK(K181)),NOT(ISBLANK(L181))),('Bewertung durch Anwender'!K181),IF(AND(NOT(ISBLANK(J181)),NOT(ISBLANK(I181))),('Bewertung durch Anwender'!I181),(Zielvereinbarung!G181)))","v":0},{"$f":"Zielvereinbarung!G181","v":0},null,null,null,null,null,null,null,{"$f":"'BNB-System'!K177","v":0}]
[null,null,{"$f":"'BNB-System'!F178","v":"Tages- / Kunstlichtoptimierung"},{"$f":"'BNB-System'!G178","v":10},null,null,{"$f":"IF(AND(NOT(ISBLANK(K182)),NOT(ISBLANK(L182))),('Bewertung durch Anwender'!K182),IF(AND(NOT(ISBLANK(J182)),NOT(ISBLANK(I182))),('Bewertung durch Anwender'!I182),(Zielvereinbarung!G182)))","v":0},{"$f":"Zielvereinbarung!G182","v":0},null,null,null,null,null,null,null,{"$f":"'BNB-System'!K178","v":0}]
[null,null,{"$f":"'BNB-System'!F179","v":"Konzept zur Sicherung der Reinigungs- und Instandhaltungsfreundlichkeit"},{"$f":"'BNB-System'!G179","v":10},null,null,{"$f":"IF(AND(NOT(ISBLANK(K183)),NOT(ISBLANK(L183))),('Bewertung durch Anwender'!K183),IF(AND(NOT(ISBLANK(J183)),NOT(ISBLANK(I183))),('Bewertung durch Anwender'!I183),(Zielvereinbarung!G183)))","v":0},{"$f":"Zielvereinbarung!G183","v":0},null,null,null,null,null,null,null,{"$f":"'BNB-System'!K179","v":0}]
[null,null,{"$f":"'BNB-System'!F180","v":"Anpassbarkeits-, Rückbau- und Recyclingkonzept"},{"$f":"'BNB-System'!G180","v":10},null,null,{"$f":"IF(AND(NOT(ISBLANK(K184)),NOT(ISBLANK(L184))),('Bewertung durch Anwender'!K184),IF(AND(NOT(ISBLANK(J184)),NOT(ISBLANK(I184))),('Bewertung durch Anwender'!I184),(Zielvereinbarung!G184)))","v":0},{"$f":"Zielvereinbarung!G184","v":0},null,null,null,null,null,null,null,{"$f":"'BNB-System'!K180","v":0}]
[null,null,{"$f":"'BNB-System'!F181","v":"Konzept zur Vermeidung und Beherrschung von Risiken"},{"$f":"'BNB-System'!G181","v":10},null,null,{"$f":"IF(AND(NOT(ISBLANK(K185)),NOT(ISBLANK(L185))),('Bewertung durch Anwender'!K185),IF(AND(NOT(ISBLANK(J185)),NOT(ISBLANK(I185))),('Bewertung durch Anwender'!I185),(Zielvereinbarung!G185)))","v":0},{"$f":"Zielvereinbarung!G185","v":0},null,null,null,null,null,null,null,{"$f":"'BNB-System'!K181","v":0}]
[null,null,{"$f":"'BNB-System'!F182","v":"Sonstige Konzepte zum Nachhaltigen Bauen"},{"$f":"'BNB-System'!G182","v":10},null,null,{"$f":"IF(AND(NOT(ISBLANK(K186)),NOT(ISBLANK(L186))),('Bewertung durch Anwender'!K186),IF(AND(NOT(ISBLANK(J186)),NOT(ISBLANK(I186))),('Bewertung durch Anwender'!I186),(Zielvereinbarung!G186)))","v":0},{"$f":"Zielvereinbarung!G186","v":0},null,null,null,null,null,null,null,{"$f":"'BNB-System'!K182","v":0}]
[null,null,{"$f":"'BNB-System'!F183","v":"Prüfung der Planungsunterlagen durch unabhängige Dritte"},{"$f":"'BNB-System'!G183","v":5},null,null,{"$f":"IF(AND(NOT(ISBLANK(K187)),NOT(ISBLANK(L187))),('Bewertung durch Anwender'!K187),IF(AND(NOT(ISBLANK(J187)),NOT(ISBLANK(I187))),('Bewertung durch Anwender'!I187),(Zielvereinbarung!G187)))","v":0},{"$f":"Zielvereinbarung!G187","v":0},null,null,null,null,null,null,null,{"$f":"'BNB-System'!K183","v":0}]
[null,null,{"$f":"'BNB-System'!F184","v":"Durchführung von Variantenvergleichen"},{"$f":"'BNB-System'!G184","v":10},null,null,{"$f":"IF(AND(NOT(ISBLANK(K188)),NOT(ISBLANK(L188))),('Bewertung durch Anwender'!K188),IF(AND(NOT(ISBLANK(J188)),NOT(ISBLANK(I188))),('Bewertung durch Anwender'!I188),(Zielvereinbarung!G188)))","v":0},{"$f":"Zielvereinbarung!G188","v":0},null,null,null,null,null,null,null,{"$f":"'BNB-System'!K184","v":0}]
[null,{"$f":"'BNB-System'!E185","v":" 5.1.4"},{"$f":"'BNB-System'!F185","v":"Ausschreibung und Vergabe"},{"$f":"'BNB-System'!G185","v":100},{"$f":"'BNB-System'!J185","v":9.5238095238095247E-3},null,{"$f":"IF(AND(NOT(ISBLANK(K189)),NOT(ISBLANK(L189))),('Bewertung durch Anwender'!K189),IF(AND(NOT(ISBLANK(J189)),NOT(ISBLANK(I189))),('Bewertung durch Anwender'!I189),(Zielvereinbarung!G189)))","v":0},{"$f":"Zielvereinbarung!G189","v":0},null,null,null,null,null,null,null,{"$f":"'BNB-System'!K185","v":200},{"$f":"IF(ISNUMBER(E189*N189/100),E189*N189/100,0)","v":0}]
[null,{"$f":"'BNB-System'!E186","v":" 5.1.5"},{"$f":"'BNB-System'!F186","v":"Voraussetzungen für eine optimale Bewirtschaftung"},{"$f":"'BNB-System'!G186","v":100},{"$f":"'BNB-System'!J186","v":9.5238095238095247E-3},null,{"$f":"IF(AND(NOT(ISBLANK(K190)),NOT(ISBLANK(L190))),('Bewertung durch Anwender'!K190),IF(AND(NOT(ISBLANK(J190)),NOT(ISBLANK(I190))),('Bewertung durch Anwender'!I190),(Zielvereinbarung!G190)))","v":0},{"$f":"Zielvereinbarung!G190","v":0},null,null,null,null,{"$f":"SUM(M191:M194)","v":0},{"$f":"SUM(N191:N194)","v":0},null,{"$f":"'BNB-System'!K186","v":200},{"$f":"IF(ISNUMBER(E190*N190/100),E190*N190/100,0)","v":0}]
[null,null,{"$f":"'BNB-System'!F187","v":"Erstellung einer Gebäudeakte / Objektdokumentation"},{"$f":"'BNB-System'!G187","v":25},null,null,{"$f":"IF(AND(NOT(ISBLANK(K191)),NOT(ISBLANK(L191))),('Bewertung durch Anwender'!K191),IF(AND(NOT(ISBLANK(J191)),NOT(ISBLANK(I191))),('Bewertung durch Anwender'!I191),(Zielvereinbarung!G191)))","v":0},{"$f":"Zielvereinbarung!G191","v":0},null,null,null,null,null,null,null,{"$f":"'BNB-System'!K187","v":0}]
[null,null,{"$f":"'BNB-System'!F188","v":"Erstellung von Wartungs-, Inspektions-, Betriebs-, und Pflegeanleitungen"},{"$f":"'BNB-System'!G188","v":25},null,null,{"$f":"IF(AND(NOT(ISBLANK(K192)),NOT(ISBLANK(L192))),('Bewertung durch Anwender'!K192),IF(AND(NOT(ISBLANK(J192)),NOT(ISBLANK(I192))),('Bewertung durch Anwender'!I192),(Zielvereinbarung!G192)))","v":0},{"$f":"Zielvereinbarung!G192","v":0},null,null,null,null,null,null,null,{"$f":"'BNB-System'!K188","v":0}]
[null,null,{"$f":"'BNB-System'!F189","v":"Anpassung der Pläne und Berechnungen an das realisierte Gebäude"},{"$f":"'BNB-System'!G189","v":25},null,null,{"$f":"IF(AND(NOT(ISBLANK(K193)),NOT(ISBLANK(L193))),('Bewertung durch Anwender'!K193),IF(AND(NOT(ISBLANK(J193)),NOT(ISBLANK(I193))),('Bewertung durch Anwender'!I193),(Zielvereinbarung!G193)))","v":0},{"$f":"Zielvereinbarung!G193","v":0},null,null,null,null,null,null,null,{"$f":"'BNB-System'!K189","v":0}]
[null,null,{"$f":"'BNB-System'!F190","v":"Erstellung eines Nutzerhandbuches"},{"$f":"'BNB-System'!G190","v":25},null,null,{"$f":"IF(AND(NOT(ISBLANK(K194)),NOT(ISBLANK(L194))),('Bewertung durch Anwender'!K194),IF(AND(NOT(ISBLANK(J194)),NOT(ISBLANK(I194))),('Bewertung durch Anwender'!I194),(Zielvereinbarung!G194)))","v":0},{"$f":"Zielvereinbarung!G194","v":0},null,null,null,null,null,null,null,{"$f":"'BNB-System'!K190","v":0}]
[null,null,{"$f":"'BNB-System'!F191","v":"Bauausführung"},null,null,null,null,null,null,null,null,null,null,null,null,{"$f":"'BNB-System'!K191","v":0}]
[null,{"$f":"'BNB-System'!E192","v":" 5.2.1"},{"$f":"'BNB-System'!F192","v":"Baustelle / Bauprozess"},{"$f":"'BNB-System'!G192","v":100},{"$f":"'BNB-System'!J192","v":9.5238095238095247E-3},null,{"$f":"IF(AND(NOT(ISBLANK(K196)),NOT(ISBLANK(L196))),('Bewertung durch Anwender'!K196),IF(AND(NOT(ISBLANK(J196)),NOT(ISBLANK(I196))),('Bewertung durch Anwender'!I196),(Zielvereinbarung!G196)))","v":0},{"$f":"Zielvereinbarung!G196","v":0},null,null,null,null,{"$f":"SUM(M197:M200)","v":0},{"$f":"SUM(N197:N200)","v":0},null,{"$f":"'BNB-System'!K192","v":200},{"$f":"IF(ISNUMBER(E196*N196/100),E196*N196/100,0)","v":0}]
[null,null,{"$f":"'BNB-System'!F193","v":"Wertstoffoptimierte Baustelle"},{"$f":"'BNB-System'!G193","v":25},null,null,{"$f":"IF(AND(NOT(ISBLANK(K197)),NOT(ISBLANK(L197))),('Bewertung durch Anwender'!K197),IF(AND(NOT(ISBLANK(J197)),NOT(ISBLANK(I197))),('Bewertung durch Anwender'!I197),(Zielvereinbarung!G197)))","v":0},{"$f":"Zielvereinbarung!G197","v":0},null,null,null,null,null,null,null,{"$f":"'BNB-System'!K193","v":0}]
[null,null,{"$f":"'BNB-System'!F194","v":"Lärmarme Baustelle"},{"$f":"'BNB-System'!G194","v":25},null,null,{"$f":"IF(AND(NOT(ISBLANK(K198)),NOT(ISBLANK(L198))),('Bewertung durch Anwender'!K198),IF(AND(NOT(ISBLANK(J198)),NOT(ISBLANK(I198))),('Bewertung durch Anwender'!I198),(Zielvereinbarung!G198)))","v":0},{"$f":"Zielvereinbarung!G198","v":0},null,null,null,null,null,null,null,{"$f":"'BNB-System'!K194","v":0}]
[null,null,{"$f":"'BNB-System'!F195","v":"Staubarme Baustelle"},{"$f":"'BNB-System'!G195","v":25},null,null,{"$f":"IF(AND(NOT(ISBLANK(K199)),NOT(ISBLANK(L199))),('Bewertung durch Anwender'!K199),IF(AND(NOT(ISBLANK(J199)),NOT(ISBLANK(I199))),('Bewertung durch Anwender'!I199),(Zielvereinbarung!G199)))","v":0},{"$f":"Zielvereinbarung!G199","v":0},null,null,null,null,null,null,null,{"$f":"'BNB-System'!K195","v":0}]
[null,null,{"$f":"'BNB-System'!F196","v":"Bodenschutz auf der Baustelle"},{"$f":"'BNB-System'!G196","v":25},null,null,{"$f":"IF(AND(NOT(ISBLANK(K200)),NOT(ISBLANK(L200))),('Bewertung durch Anwender'!K200),IF(AND(NOT(ISBLANK(J200)),NOT(ISBLANK(I200))),('Bewertung durch Anwender'!I200),(Zielvereinbarung!G200)))","v":0},{"$f":"Zielvereinbarung!G200","v":0},null,null,null,null,null,null,null,{"$f":"'BNB-System'!K196","v":0}]
[null,{"$f":"'BNB-System'!E197","v":" 5.2.2"},{"$f":"'BNB-System'!F197","v":"Qualitätssicherung der Bauausführung"},{"$f":"'BNB-System'!G197","v":100},{"$f":"'BNB-System'!J197","v":1.4285714285714285E-2},null,{"$f":"IF(AND(NOT(ISBLANK(K201)),NOT(ISBLANK(L201))),('Bewertung durch Anwender'!K201),IF(AND(NOT(ISBLANK(J201)),NOT(ISBLANK(I201))),('Bewertung durch Anwender'!I201),(Zielvereinbarung!G201)))","v":0},{"$f":"Zielvereinbarung!G201","v":0},null,null,null,null,{"$f":"SUM(M202:M203)","v":0},{"$f":"SUM(N202:N203)","v":0},null,{"$f":"'BNB-System'!K197","v":300},{"$f":"IF(ISNUMBER(E201*N201/100),E201*N201/100,0)","v":0}]
[null,null,{"$f":"'BNB-System'!F198","v":"Dokumentation"},{"$f":"'BNB-System'!G198","v":50},null,null,{"$f":"IF(AND(NOT(ISBLANK(K202)),NOT(ISBLANK(L202))),('Bewertung durch Anwender'!K202),IF(AND(NOT(ISBLANK(J202)),NOT(ISBLANK(I202))),('Bewertung durch Anwender'!I202),(Zielvereinbarung!G202)))","v":0},{"$f":"Zielvereinbarung!G202","v":0},null,null,null,null,null,null,null,{"$f":"'BNB-System'!K198","v":0}]
[null,null,{"$f":"'BNB-System'!F199","v":"Messungen zur Qualitätskontrolle"},{"$f":"'BNB-System'!G199","v":50},null,null,{"$f":"IF(AND(NOT(ISBLANK(K203)),NOT(ISBLANK(L203))),('Bewertung durch Anwender'!K203),IF(AND(NOT(ISBLANK(J203)),NOT(ISBLANK(I203))),('Bewertung durch Anwender'!I203),(Zielvereinbarung!G203)))","v":0},{"$f":"Zielvereinbarung!G203","v":0},null,null,null,null,null,null,null,{"$f":"'BNB-System'!K199","v":0}]
[null,{"$f":"'BNB-System'!E200","v":" 5.2.3"},{"$f":"'BNB-System'!F200","v":"Systematische Inbetriebnahme"},{"$f":"'BNB-System'!G200","v":100},{"$f":"'BNB-System'!J200","v":1.4285714285714285E-2},null,{"$f":"IF(AND(NOT(ISBLANK(K204)),NOT(ISBLANK(L204))),('Bewertung durch Anwender'!K204),IF(AND(NOT(ISBLANK(J204)),NOT(ISBLANK(I204))),('Bewertung durch Anwender'!I204),(Zielvereinbarung!G204)))","v":0},{"$f":"Zielvereinbarung!G204","v":0},null,null,null,null,null,null,null,{"$f":"'BNB-System'!K200","v":300},{"$f":"IF(ISNUMBER(E204*N204/100),E204*N204/100,0)","v":0}]
[]
[null,null,null,null,null,null,null,null,null,null,null,null,null,null,null,{"$f":"'BNB-System'!K202","v":0}]
[null,{"$f":"'BNB-System'!E203","v":"Standortmerkmale"},null,null,{"$f":"'BNB-System'!J203","v":1},null,{"$f":"G210*(E210/100)+G216*(E216/100)+G223*(E223/100)+G228*(E228/100)+G233*(E233/100)+G244*(E244/100)","v":0},{"$f":"Zielvereinbarung!G207","v":0},null,null,null,null,{"$f":"M210*(E210/100)+M216*(E216/100)+M223*(E223/100)+M228*(E228/100)+M233*(E233/100)+M244*(E244/100)","v":0},{"$f":"N210*(E210/100)+N216*(E216/100)+N223*(E223/100)+N228*(E228/100)+N233*(E233/100)+N244*(E244/100)","v":0},null,{"$f":"'BNB-System'!K203","v":1300}]
[null,null,null,null,null,null,null,null,null,null,null,null,null,null,null,{"$f":"'BNB-System'!K204","v":0}]
[null,null,{"$f":"'BNB-System'!F205","v":"Standortmerkmale"},null,null,null,null,null,null,null,null,null,null,null,null,{"$f":"'BNB-System'!K205","v":0}]
[null,{"$f":"'BNB-System'!E206","v":" 6.1.1"},{"$f":"'BNB-System'!F206","v":"Risiken am Mikrostandort"},{"$f":"'BNB-System'!G206","v":100},{"$f":"'BNB-System'!J206","v":0.15384615384615385},null,{"$f":"IF(AND(NOT(ISBLANK(K210)),NOT(ISBLANK(L210))),('Bewertung durch Anwender'!K210),IF(AND(NOT(ISBLANK(J210)),NOT(ISBLANK(I210))),('Bewertung durch Anwender'!I210),(Zielvereinbarung!G210)))","v":0},{"$f":"Zielvereinbarung!G210","v":0},null,null,null,null,{"$f":"IF(SUM(M211:M215)>100,100,SUM(M211:M215))","v":0},{"$f":"IF(SUM(N211:N215)>100,100,SUM(N211:N215))","v":0},null,{"$f":"'BNB-System'!K206","v":200}]
[null,null,{"$f":"'BNB-System'!F207","v":"Risiken aus Man-Made-Hazards (Unfälle)"},{"$f":"'BNB-System'!G207","v":20},null,null,{"$f":"IF(AND(NOT(ISBLANK(K211)),NOT(ISBLANK(L211))),('Bewertung durch Anwender'!K211),IF(AND(NOT(ISBLANK(J211)),NOT(ISBLANK(I211))),('Bewertung durch Anwender'!I211),(Zielvereinbarung!G211)))","v":0},{"$f":"Zielvereinbarung!G211","v":0},null,null,null,null,null,null,null,{"$f":"'BNB-System'!K212","v":200}]
[null,null,{"$f":"'BNB-System'!F208","v":"Risiken aus Erdbeben"},{"$f":"'BNB-System'!G208","v":20},null,null,{"$f":"IF(AND(NOT(ISBLANK(K212)),NOT(ISBLANK(L212))),('Bewertung durch Anwender'!K212),IF(AND(NOT(ISBLANK(J212)),NOT(ISBLANK(I212))),('Bewertung durch Anwender'!I212),(Zielvereinbarung!G212)))","v":0},{"$f":"Zielvereinbarung!G212","v":0},null,null,null,null,null,null,null,{"$f":"'BNB-System'!K219","v":200}]
[null,null,{"$f":"'BNB-System'!F209","v":"Risiken aus Lawinen"},{"$f":"'BNB-System'!G209","v":20},null,null,{"$f":"IF(AND(NOT(ISBLANK(K213)),NOT(ISBLANK(L213))),('Bewertung durch Anwender'!K213),IF(AND(NOT(ISBLANK(J213)),NOT(ISBLANK(I213))),('Bewertung durch Anwender'!I213),(Zielvereinbarung!G213)))","v":0},{"$f":"Zielvereinbarung!G213","v":0},null,null,null,null,null,null,null,{"$f":"'BNB-System'!K224","v":300}]
[null,null,{"$f":"'BNB-System'!F210","v":"Risiken aus Sturm"},{"$f":"'BNB-System'!G210","v":20},null,null,{"$f":"IF(AND(NOT(ISBLANK(K214)),NOT(ISBLANK(L214))),('Bewertung durch Anwender'!K214),IF(AND(NOT(ISBLANK(J214)),NOT(ISBLANK(I214))),('Bewertung durch Anwender'!I214),(Zielvereinbarung!G214)))","v":0},{"$f":"Zielvereinbarung!G214","v":0},null,null,null,null,null,null,null,{"$f":"'BNB-System'!K229","v":200}]
[null,null,{"$f":"'BNB-System'!F211","v":"Risiken aus Hochwasser"},{"$f":"'BNB-System'!G211","v":20},null,null,{"$f":"IF(AND(NOT(ISBLANK(K215)),NOT(ISBLANK(L215))),('Bewertung durch Anwender'!K215),IF(AND(NOT(ISBLANK(J215)),NOT(ISBLANK(I215))),('Bewertung durch Anwender'!I215),(Zielvereinbarung!G215)))","v":0},{"$f":"Zielvereinbarung!G215","v":0},null,null,null,null,null,null,null,{"$f":"'BNB-System'!K240","v":200}]
[null,{"$f":"'BNB-System'!E212","v":" 6.1.2"},{"$f":"'BNB-System'!F212","v":"Verhältnisse am Mikrostandort"},{"$f":"'BNB-System'!G212","v":100},{"$f":"'BNB-System'!J212","v":0.15384615384615385},null,{"$f":"IF(AND(NOT(ISBLANK(K216)),NOT(ISBLANK(L216))),('Bewertung durch Anwender'!K216),IF(AND(NOT(ISBLANK(J216)),NOT(ISBLANK(I216))),('Bewertung durch Anwender'!I216),(Zielvereinbarung!G216)))","v":0},{"$f":"Zielvereinbarung!G216","v":0},null,null,null,null,{"$f":"IF(SUM(M217:M222)>100,100,SUM(M217:M222))","v":0},{"$f":"IF(SUM(N217:N222)>100,100,SUM(N217:N222))","v":0}]
[null,null,{"$f":"'BNB-System'!F213","v":"Außenluftqualität"},{"$f":"'BNB-System'!G213","v":16},null,null,{"$f":"IF(AND(NOT(ISBLANK(K217)),NOT(ISBLANK(L217))),('Bewertung durch Anwender'!K217),IF(AND(NOT(ISBLANK(J217)),NOT(ISBLANK(I217))),('Bewertung durch Anwender'!I217),(Zielvereinbarung!G217)))","v":0},{"$f":"Zielvereinbarung!G217","v":0}]
[null,null,{"$f":"'BNB-System'!F214","v":"Außenlärmpegel"},{"$f":"'BNB-System'!G214","v":20},null,null,{"$f":"IF(AND(NOT(ISBLANK(K218)),NOT(ISBLANK(L218))),('Bewertung durch Anwender'!K218),IF(AND(NOT(ISBLANK(J218)),NOT(ISBLANK(I218))),('Bewertung durch Anwender'!I218),(Zielvereinbarung!G218)))","v":0},{"$f":"Zielvereinbarung!G218","v":0}]
[null,null,{"$f":"'BNB-System'!F215","v":"Baugrundverhältnisse, Bodenbelastungen"},{"$f":"'BNB-System'!G215","v":16},null,null,{"$f":"IF(AND(NOT(ISBLANK(K219)),NOT(ISBLANK(L219))),('Bewertung durch Anwender'!K219),IF(AND(NOT(ISBLANK(J219)),NOT(ISBLANK(I219))),('Bewertung durch Anwender'!I219),(Zielvereinbarung!G219)))","v":0},{"$f":"Zielvereinbarung!G219","v":0}]
[null,null,{"$f":"'BNB-System'!F216","v":"Elektromagnetische Felder"},{"$f":"'BNB-System'!G216","v":16},null,null,{"$f":"IF(AND(NOT(ISBLANK(K220)),NOT(ISBLANK(L220))),('Bewertung durch Anwender'!K220),IF(AND(NOT(ISBLANK(J220)),NOT(ISBLANK(I220))),('Bewertung durch Anwender'!I220),(Zielvereinbarung!G220)))","v":0},{"$f":"Zielvereinbarung!G220","v":0}]
[null,null,{"$f":"'BNB-System'!F217","v":"Vorkommen von Radon"},{"$f":"'BNB-System'!G217","v":16},null,null,{"$f":"IF(AND(NOT(ISBLANK(K221)),NOT(ISBLANK(L221))),('Bewertung durch Anwender'!K221),IF(AND(NOT(ISBLANK(J221)),NOT(ISBLANK(I221))),('Bewertung durch Anwender'!I221),(Zielvereinbarung!G221)))","v":0},{"$f":"Zielvereinbarung!G221","v":0}]
[null,null,{"$f":"'BNB-System'!F218","v":"Stadt- und Landschaftsbild / Sichtbeziehungen"},{"$f":"'BNB-System'!G218","v":16},null,null,{"$f":"IF(AND(NOT(ISBLANK(K222)),NOT(ISBLANK(L222))),('Bewertung durch Anwender'!K222),IF(AND(NOT(ISBLANK(J222)),NOT(ISBLANK(I222))),('Bewertung durch Anwender'!I222),(Zielvereinbarung!G222)))","v":0},{"$f":"Zielvereinbarung!G222","v":0}]
[null,{"$f":"'BNB-System'!E219","v":" 6.1.3"},{"$f":"'BNB-System'!F219","v":"Quartiersmerkmale"},{"$f":"'BNB-System'!G219","v":100},{"$f":"'BNB-System'!J219","v":0.15384615384615385},null,{"$f":"IF(AND(NOT(ISBLANK(K223)),NOT(ISBLANK(L223))),('Bewertung durch Anwender'!K223),IF(AND(NOT(ISBLANK(J223)),NOT(ISBLANK(I223))),('Bewertung durch Anwender'!I223),(Zielvereinbarung!G223)))","v":0},{"$f":"Zielvereinbarung!G223","v":0},null,null,null,null,{"$f":"IF(SUM(M224:M227)>100,100,SUM(M224:M227))","v":0},{"$f":"IF(SUM(N224:N227)>100,100,SUM(N224:N227))","v":0}]
[null,null,{"$f":"'BNB-System'!F220","v":"Image, Attraktivität"},{"$f":"'BNB-System'!G220","v":25},null,null,{"$f":"IF(AND(NOT(ISBLANK(K224)),NOT(ISBLANK(L224))),('Bewertung durch Anwender'!K224),IF(AND(NOT(ISBLANK(J224)),NOT(ISBLANK(I224))),('Bewertung durch Anwender'!I224),(Zielvereinbarung!G224)))","v":0},{"$f":"Zielvereinbarung!G224","v":0}]
[null,null,{"$f":"'BNB-System'!F221","v":"Synergie- und Konfliktpotenziale"},{"$f":"'BNB-System'!G221","v":25},null,null,{"$f":"IF(AND(NOT(ISBLANK(K225)),NOT(ISBLANK(L225))),('Bewertung durch Anwender'!K225),IF(AND(NOT(ISBLANK(J225)),NOT(ISBLANK(I225))),('Bewertung durch Anwender'!I225),(Zielvereinbarung!G225)))","v":0},{"$f":"Zielvereinbarung!G225","v":0}]
[null,null,{"$f":"'BNB-System'!F222","v":"Kriminalität"},{"$f":"'BNB-System'!G222","v":25},null,null,{"$f":"IF(AND(NOT(ISBLANK(K226)),NOT(ISBLANK(L226))),('Bewertung durch Anwender'!K226),IF(AND(NOT(ISBLANK(J226)),NOT(ISBLANK(I226))),('Bewertung durch Anwender'!I226),(Zielvereinbarung!G226)))","v":0},{"$f":"Zielvereinbarung!G226","v":0}]
[null,null,{"$f":"'BNB-System'!F223","v":"Pflege und Erhaltungszustand"},{"$f":"'BNB-System'!G223","v":25},null,null,{"$f":"IF(AND(NOT(ISBLANK(K227)),NOT(ISBLANK(L227))),('Bewertung durch Anwender'!K227),IF(AND(NOT(ISBLANK(J227)),NOT(ISBLANK(I227))),('Bewertung durch Anwender'!I227),(Zielvereinbarung!G227)))","v":0},{"$f":"Zielvereinbarung!G227","v":0}]
[null,{"$f":"'BNB-System'!E224","v":" 6.1.4"},{"$f":"'BNB-System'!F224","v":"Verkehrsanbindung"},{"$f":"'BNB-System'!G224","v":100},{"$f":"'BNB-System'!J224","v":0.23076923076923078},null,{"$f":"IF(AND(NOT(ISBLANK(K228)),NOT(ISBLANK(L228))),('Bewertung durch Anwender'!K228),IF(AND(NOT(ISBLANK(J228)),NOT(ISBLANK(I228))),('Bewertung durch Anwender'!I228),(Zielvereinbarung!G228)))","v":0},{"$f":"Zielvereinbarung!G228","v":0},null,null,null,null,{"$f":"IF(SUM(M229:M232)>100,100,SUM(M229:M232))","v":0},{"$f":"IF(SUM(N229:N232)>100,100,SUM(N229:N232))","v":0}]
[null,null,{"$f":"'BNB-System'!F225","v":"Verkehrssicherung des Zugangs zur Liegenschaft"},{"$f":"'BNB-System'!G225","v":30},null,null,{"$f":"IF(AND(NOT(ISBLANK(K229)),NOT(ISBLANK(L229))),('Bewertung durch Anwender'!K229),IF(AND(NOT(ISBLANK(J229)),NOT(ISBLANK(I229))),('Bewertung durch Anwender'!I229),(Zielvereinbarung!G229)))","v":0},{"$f":"Zielvereinbarung!G229","v":0}]
[null,null,{"$f":"'BNB-System'!F226","v":"Erreichbarkeit des nächstgelegenen Haupt-/ Fernbahnhofs"},{"$f":"'BNB-System'!G226","v":30},null,null,{"$f":"IF(AND(NOT(ISBLANK(K230)),NOT(ISBLANK(L230))),('Bewertung durch Anwender'!K230),IF(AND(NOT(ISBLANK(J230)),NOT(ISBLANK(I230))),('Bewertung durch Anwender'!I230),(Zielvereinbarung!G230)))","v":0},{"$f":"Zielvereinbarung!G230","v":0}]
[null,null,{"$f":"'BNB-System'!F227","v":"Ereichbarkeit der nächstgelegenen Haltestelle des ÖPNV"},{"$f":"'BNB-System'!G227","v":30},null,null,{"$f":"IF(AND(NOT(ISBLANK(K231)),NOT(ISBLANK(L231))),('Bewertung durch Anwender'!K231),IF(AND(NOT(ISBLANK(J231)),NOT(ISBLANK(I231))),('Bewertung durch Anwender'!I231),(Zielvereinbarung!G231)))","v":0},{"$f":"Zielvereinbarung!G231","v":0}]
[null,null,{"$f":"'BNB-System'!F228","v":"Erschließung der Liegenschaft durch Fuß- und Radweg"},{"$f":"'BNB-System'!G228","v":40},null,null,{"$f":"IF(AND(NOT(ISBLANK(K232)),NOT(ISBLANK(L232))),('Bewertung durch Anwender'!K232),IF(AND(NOT(ISBLANK(J232)),NOT(ISBLANK(I232))),('Bewertung durch Anwender'!I232),(Zielvereinbarung!G232)))","v":0},{"$f":"Zielvereinbarung!G232","v":0}]
[null,{"$f":"'BNB-System'!E229","v":" 6.1.5"},{"$f":"'BNB-System'!F229","v":"Nähe zu nutzungsrelevanten Einrichtungen"},{"$f":"'BNB-System'!G229","v":100},{"$f":"'BNB-System'!J229","v":0.15384615384615385},null,{"$f":"IF(AND(NOT(ISBLANK(K233)),NOT(ISBLANK(L233))),('Bewertung durch Anwender'!K233),IF(AND(NOT(ISBLANK(J233)),NOT(ISBLANK(I233))),('Bewertung durch Anwender'!I233),(Zielvereinbarung!G233)))","v":0},{"$f":"Zielvereinbarung!G233","v":0},null,null,null,null,{"$f":"IF(SUM(M234:M243)>100,100,SUM(M234:M243))","v":0},{"$f":"IF(SUM(N234:N243)>100,100,SUM(N234:N243))","v":0}]
[null,null,{"$f":"'BNB-System'!F230","v":"Gastronomie"},{"$f":"'BNB-System'!G230","v":10},null,null,{"$f":"IF(AND(NOT(ISBLANK(K234)),NOT(ISBLANK(L234))),('Bewertung durch Anwender'!K234),IF(AND(NOT(ISBLANK(J234)),NOT(ISBLANK(I234))),('Bewertung durch Anwender'!I234),(Zielvereinbarung!G234)))","v":0},{"$f":"Zielvereinbarung!G234","v":0}]
[null,null,{"$f":"'BNB-System'!F231","v":"Nahversorgung"},{"$f":"'BNB-System'!G231","v":10},null,null,{"$f":"IF(AND(NOT(ISBLANK(K235)),NOT(ISBLANK(L235))),('Bewertung durch Anwender'!K235),IF(AND(NOT(ISBLANK(J235)),NOT(ISBLANK(I235))),('Bewertung durch Anwender'!I235),(Zielvereinbarung!G235)))","v":0},{"$f":"Zielvereinbarung!G235","v":0}]
[null,null,{"$f":"'BNB-System'!F232","v":"Parkanlagen und Freiräume"},{"$f":"'BNB-System'!G232","v":10},null,null,{"$f":"IF(AND(NOT(ISBLANK(K236)),NOT(ISBLANK(L236))),('Bewertung durch Anwender'!K236),IF(AND(NOT(ISBLANK(J236)),NOT(ISBLANK(I236))),('Bewertung durch Anwender'!I236),(Zielvereinbarung!G236)))","v":0},{"$f":"Zielvereinbarung!G236","v":0}]
[null,null,{"$f":"'BNB-System'!F233","v":"Bildung"},{"$f":"'BNB-System'!G233","v":10},null,null,{"$f":"IF(AND(NOT(ISBLANK(K237)),NOT(ISBLANK(L237))),('Bewertung durch Anwender'!K237),IF(AND(NOT(ISBLANK(J237)),NOT(ISBLANK(I237))),('Bewertung durch Anwender'!I237),(Zielvereinbarung!G237)))","v":0},{"$f":"Zielvereinbarung!G237","v":0}]
[null,null,{"$f":"'BNB-System'!F234","v":"Öffentliche Verwaltung"},{"$f":"'BNB-System'!G234","v":10},null,null,{"$f":"IF(AND(NOT(ISBLANK(K238)),NOT(ISBLANK(L238))),('Bewertung durch Anwender'!K238),IF(AND(NOT(ISBLANK(J238)),NOT(ISBLANK(I238))),('Bewertung durch Anwender'!I238),(Zielvereinbarung!G238)))","v":0},{"$f":"Zielvereinbarung!G238","v":0}]
[null,null,{"$f":"'BNB-System'!F235","v":"Medizinische Versorgung"},{"$f":"'BNB-System'!G235","v":10},null,null,{"$f":"IF(AND(NOT(ISBLANK(K239)),NOT(ISBLANK(L239))),('Bewertung durch Anwender'!K239),IF(AND(NOT(ISBLANK(J239)),NOT(ISBLANK(I239))),('Bewertung durch Anwender'!I239),(Zielvereinbarung!G239)))","v":0},{"$f":"Zielvereinbarung!G239","v":0}]
[null,null,{"$f":"'BNB-System'!F236","v":"Sportstätten"},{"$f":"'BNB-System'!G236","v":10},null,null,{"$f":"IF(AND(NOT(ISBLANK(K240)),NOT(ISBLANK(L240))),('Bewertung durch Anwender'!K240),IF(AND(NOT(ISBLANK(J240)),NOT(ISBLANK(I240))),('Bewertung durch Anwender'!I240),(Zielvereinbarung!G240)))","v":0},{"$f":"Zielvereinbarung!G240","v":0}]
[null,null,{"$f":"'BNB-System'!F237","v":"Freizeit"},{"$f":"'BNB-System'!G237","v":10},null,null,{"$f":"IF(AND(NOT(ISBLANK(K241)),NOT(ISBLANK(L241))),('Bewertung durch Anwender'!K241),IF(AND(NOT(ISBLANK(J241)),NOT(ISBLANK(I241))),('Bewertung durch Anwender'!I241),(Zielvereinbarung!G241)))","v":0},{"$f":"Zielvereinbarung!G241","v":0}]
[null,null,{"$f":"'BNB-System'!F238","v":"Synergie- und Konfliktpotenziale"},{"$f":"'BNB-System'!G238","v":10},null,null,{"$f":"IF(AND(NOT(ISBLANK(K242)),NOT(ISBLANK(L242))),('Bewertung durch Anwender'!K242),IF(AND(NOT(ISBLANK(J242)),NOT(ISBLANK(I242))),('Bewertung durch Anwender'!I242),(Zielvereinbarung!G242)))","v":0},{"$f":"Zielvereinbarung!G242","v":0}]
[null,null,{"$f":"'BNB-System'!F239","v":"Dienstleister"},{"$f":"'BNB-System'!G239","v":10},null,null,{"$f":"IF(AND(NOT(ISBLANK(K243)),NOT(ISBLANK(L243))),('Bewertung durch Anwender'!K243),IF(AND(NOT(ISBLANK(J243)),NOT(ISBLANK(I243))),('Bewertung durch Anwender'!I243),(Zielvereinbarung!G243)))","v":0},{"$f":"Zielvereinbarung!G243","v":0}]
[null,{"$f":"'BNB-System'!E240","v":" 6.1.6"},{"$f":"'BNB-System'!F240","v":"Anliegende Medien / Erschließung"},{"$f":"'BNB-System'!G240","v":100},{"$f":"'BNB-System'!J240","v":0.15384615384615385},null,{"$f":"IF(AND(NOT(ISBLANK(K244)),NOT(ISBLANK(L244))),('Bewertung durch Anwender'!K244),IF(AND(NOT(ISBLANK(J244)),NOT(ISBLANK(I244))),('Bewertung durch Anwender'!I244),(Zielvereinbarung!G244)))","v":0},{"$f":"Zielvereinbarung!G244","v":0},null,null,null,null,{"$f":"IF(SUM(M245:M248)>100,100,SUM(M245:M248))","v":0},{"$f":"IF(SUM(N245:N248)>100,100,SUM(N245:N248))","v":0}]
[null,null,{"$f":"'BNB-System'!F241","v":"Leitungsgebundene Energie"},{"$f":"'BNB-System'!G241","v":25},null,null,{"$f":"IF(AND(NOT(ISBLANK(K245)),NOT(ISBLANK(L245))),('Bewertung durch Anwender'!K245),IF(AND(NOT(ISBLANK(J245)),NOT(ISBLANK(I245))),('Bewertung durch Anwender'!I245),(Zielvereinbarung!G245)))","v":0},{"$f":"Zielvereinbarung!G245","v":0}]
[null,null,{"$f":"'BNB-System'!F242","v":"Solarenergie"},{"$f":"'BNB-System'!G242","v":25},null,null,{"$f":"IF(AND(NOT(ISBLANK(K246)),NOT(ISBLANK(L246))),('Bewertung durch Anwender'!K246),IF(AND(NOT(ISBLANK(J246)),NOT(ISBLANK(I246))),('Bewertung durch Anwender'!I246),(Zielvereinbarung!G246)))","v":0},{"$f":"Zielvereinbarung!G246","v":0}]
[null,null,{"$f":"'BNB-System'!F243","v":"Breitband-Anschluss"},{"$f":"'BNB-System'!G243","v":25},null,null,{"$f":"IF(AND(NOT(ISBLANK(K247)),NOT(ISBLANK(L247))),('Bewertung durch Anwender'!K247),IF(AND(NOT(ISBLANK(J247)),NOT(ISBLANK(I247))),('Bewertung durch Anwender'!I247),(Zielvereinbarung!G247)))","v":0},{"$f":"Zielvereinbarung!G247","v":0}]
[null,null,{"$f":"'BNB-System'!F244","v":"Regenwasserversickerung"},{"$f":"'BNB-System'!G244","v":50},null,null,{"$f":"IF(AND(NOT(ISBLANK(K248)),NOT(ISBLANK(L248))),('Bewertung durch Anwender'!K248),IF(AND(NOT(ISBLANK(J248)),NOT(ISBLANK(I248))),('Bewertung durch Anwender'!I248),(Zielvereinbarung!G248)))","v":0},{"$f":"Zielvereinbarung!G248","v":0}]

{"sheet":"Konformitätsprüfung","index":3,"n_rows":248,"n_cols":14,"rows_kept":248,"cut":false,"hidden":true,"merged":[[0,2,0,7],[3,14,4,14],[6,1,6,2],[3,10,4,10],[3,4,4,4],[3,6,3,7],[3,13,4,13],[3,11,4,11],[3,1,4,2],[3,3,4,3],[3,12,4,12],[3,9,4,9]]}
[null,{"$f":"'BNB-System'!B1","v":"Projekt:"},{"$f":"Zielvereinbarung!C1","v":"Projektbezeichnung"}]
[null,{"$f":"'BNB-System'!B2","v":"Bewertungssystem Nachhaltiges Bauen (BNB)"}]
[null,{"$f":"'BNB-System'!B3","v":"Systemvariante Unterrichtsgebäude, Modul Neubau (BNB_UN) - Version 2017"}]
[null,"Nachhaltigkeitskriterien",null,"maximale Punktzahl","Gewichtung\nGesamt-\nbewertung","Punkt-\nzahl","Eingereichte \nEndbewertung",null,"Bemerkung Konformitätsprüfung \n\nPrüfung vom:","Bearbeiter",null,"Zielwert","Gesamt-bewertung Anwender","Gesamt-bewertung Konformitäts-\nprüfung"]
[null,null,null,null,null,"Ziel-\nvereinbarung","Anwender","Konformitätsprüfung",{"$f":"TODAY()","v":"2019-10-23"}]
[]
[null,"Gesamterfüllungsgrad",null,null,null,{"$f":"Zielvereinbarung!$G$7","v":0},{"$f":"'Bewertung durch Anwender'!N7","v":0},{"$f":"H10+H28+H41+H123+H160","v":0}]
[null,null,null,null,null,null,null,"ende",null,null,"qwertz"]
[]
[null,{"$f":"'BNB-System'!E6","v":"Ökologische Qualität"},null,null,{"$f":"'BNB-System'!J6","v":0.22500000000000001},{"$f":"'Bewertung durch Anwender'!G10","v":0},{"$f":"'Bewertung durch Anwender'!N10","v":0},{"$f":"H13*(E13/100)+H14*(E14/100)+H15*(E15/100)+H16*(E16/100)+H17*(E17/100)+H18*(E18/100)+H19*(E19/100)+H21*(E21/100)+H25*(E25/100)+H26*(E26/100)","v":0},null,null,null,{"$f":"'BNB-System'!K6","v":1800}]
[]
[null,null,"Wirkungen auf die globale und lokale  Umwelt"]
[null,{"$f":"'BNB-System'!E9","v":" 1.1.1"},{"$f":"'BNB-System'!F9","v":"Treibhauspotenzial (GWP)"},{"$f":"'BNB-System'!G9","v":100},{"$f":"'BNB-System'!J9","v":3.7499999999999999E-2},{"$f":"'Bewertung durch Anwender'!G13","v":0},{"$f":"'Bewertung durch Anwender'!N13","v":0},null,null,null,null,{"$f":"'BNB-System'!K9","v":300},{"$f":"IF(ISNUMBER(G13*E13/100),G13*E13/100,0)","v":0},{"$f":"IF(ISNUMBER(H13*E13/100),H13*E13/100,0)","v":0}]
[null,{"$f":"'BNB-System'!E10","v":" 1.1.2"},{"$f":"'BNB-System'!F10","v":"Ozonschichtabbaupotenzial (ODP)"},{"$f":"'BNB-System'!G10","v":100},{"$f":"'BNB-System'!J10","v":1.2499999999999999E-2},{"$f":"'Bewertung durch Anwender'!G14","v":0},{"$f":"'Bewertung durch Anwender'!N14","v":0},null,null,null,null,{"$f":"'BNB-System'!K10","v":100},{"$f":"IF(ISNUMBER(G14*E14/100),G14*E14/100,0)","v":0},0]
[null,{"$f":"'BNB-System'!E11","v":" 1.1.3"},{"$f":"'BNB-System'!F11","v":"Ozonbildungspotenzial (POCP)"},{"$f":"'BNB-System'!G11","v":100},{"$f":"'BNB-System'!J11","v":1.2499999999999999E-2},{"$f":"'Bewertung durch Anwender'!G15","v":0},{"$f":"'Bewertung durch Anwender'!N15","v":0},null,null,null,null,{"$f":"'BNB-System'!K11","v":100},0,0]
[null,{"$f":"'BNB-System'!E12","v":" 1.1.4"},{"$f":"'BNB-System'!F12","v":"Versauerungspotenzial (AP)"},{"$f":"'BNB-System'!G12","v":100},{"$f":"'BNB-System'!J12","v":1.2499999999999999E-2},{"$f":"'Bewertung durch Anwender'!G16","v":0},{"$f":"'Bewertung durch Anwender'!N16","v":0},null,null,null,null,{"$f":"'BNB-System'!K12","v":100},0,0]
[null,{"$f":"'BNB-System'!E13","v":" 1.1.5"},{"$f":"'BNB-System'!F13","v":"Überdüngungspotenzial (EP)"},{"$f":"'BNB-System'!G13","v":100},{"$f":"'BNB-System'!J13","v":1.2499999999999999E-2},{"$f":"'Bewertung durch Anwender'!G17","v":0},{"$f":"'Bewertung durch Anwender'!N17","v":0},null,null,null,null,{"$f":"'BNB-System'!K13","v":100},0,0]
[null,{"$f":"'BNB-System'!E14","v":" 1.1.6"},{"$f":"'BNB-System'!F14","v":"Risiken für die lokale Umwelt"},{"$f":"'BNB-System'!G14","v":100},{"$f":"'BNB-System'!J14","v":3.7499999999999999E-2},{"$f":"'Bewertung durch Anwender'!G18","v":0},{"$f":"'Bewertung durch Anwender'!N18","v":0},null,null,null,null,{"$f":"'BNB-System'!K14","v":300},0,0]
[null,{"$f":"'BNB-System'!E15","v":" 1.1.7"},{"$f":"'BNB-System'!F15","v":"Nachhaltige Materialgewinnung / Biodiversität"},{"$f":"'BNB-System'!G15","v":100},{"$f":"'BNB-System'!J15","v":1.2499999999999999E-2},{"$f":"'Bewertung durch Anwender'!G19","v":0},{"$f":"'Bewertung durch Anwender'!N19","v":0},null,null,null,null,{"$f":"'BNB-System'!K15","v":100},0,0]
[null,null,{"$f":"'BNB-System'!F16","v":"Ressourceninanspruchnahme"}]
[null,{"$f":"'BNB-System'!E17","v":" 1.2.1"},{"$f":"'BNB-System'!F17","v":"Primärenergiebedarf"},{"$f":"'BNB-System'!G17","v":100},{"$f":"'BNB-System'!J17","v":3.7499999999999999E-2},{"$f":"'Bewertung durch Anwender'!G21","v":0},{"$f":"'Bewertung durch Anwender'!N21","v":0},{"$f":"SUM(H22:H24)","v":0},null,null,null,{"$f":"'BNB-System'!K17","v":300},{"$f":"IF(ISNUMBER(G21*E21/100),G21*E21/100,0)","v":0},{"$f":"IF(ISNUMBER(H21*E21/100),H21*E21/100,0)","v":0}]
[null,null,{"$f":"'BNB-System'!F18","v":"Primärenergiebedarf nicht erneuerbar (PEne)"},{"$f":"'BNB-System'!G18","v":60},null,{"$f":"'Bewertung durch Anwender'!G22","v":0},{"$f":"'Bewertung durch Anwender'!N22","v":0}]
[null,null,{"$f":"'BNB-System'!F19","v":"Gesamtenergiebedarf (PEges)"},{"$f":"'BNB-System'!G19","v":40},null,{"$f":"'Bewertung durch Anwender'!G23","v":0},{"$f":"'Bewertung durch Anwender'!N23","v":0}]
[null,null,{"$f":"'BNB-System'!F20","v":"Anteil erneuerbarer Primärenergie (PEe)"},{"$f":"'BNB-System'!G20","v":20},null,{"$f":"'Bewertung durch Anwender'!G24","v":0},{"$f":"'Bewertung durch Anwender'!N24","v":0}]
[null,{"$f":"'BNB-System'!E21","v":" 1.2.3"},{"$f":"'BNB-System'!F21","v":"Trinkwasserbedarf und Abwasseraufkommen"},{"$f":"'BNB-System'!G21","v":100},{"$f":"'BNB-System'!J21","v":2.4999999999999998E-2},{"$f":"'Bewertung durch Anwender'!G25","v":0},{"$f":"'Bewertung durch Anwender'!N25","v":0},null,null,null,null,{"$f":"'BNB-System'!K21","v":200},{"$f":"IF(ISNUMBER(G25*E25/100),G25*E25/100,0)","v":0},{"$f":"IF(ISNUMBER(H25*E25/100),H25*E25/100,0)","v":0}]
[null,{"$f":"'BNB-System'!E22","v":" 1.2.4"},{"$f":"'BNB-System'!F22","v":"Flächeninanspruchnahme"},{"$f":"'BNB-System'!G22","v":100},{"$f":"'BNB-System'!J22","v":2.4999999999999998E-2},{"$f":"'Bewertung durch Anwender'!G26","v":0},{"$f":"'Bewertung durch Anwender'!N26","v":0},null,null,null,null,{"$f":"'BNB-System'!K22","v":200},{"$f":"IF(ISNUMBER(G26*E26/100),G26*E26/100,0)","v":0},{"$f":"IF(ISNUMBER(H26*E26/100),H26*E26/100,0)","v":0}]
[]
[null,{"$f":"'BNB-System'!E24","v":"Ökonomische Qualität"},null,null,{"$f":"'BNB-System'!J24","v":0.22500000000000001},{"$f":"'Bewertung durch Anwender'!G28","v":0},{"$f":"'Bewertung durch Anwender'!N28","v":0},{"$f":"H31*($E$31/100)+H33*($E$33/100)","v":0},null,null,null,{"$f":"'BNB-System'!K24","v":500}]
[]
[null,null,{"$f":"'BNB-System'!F26","v":"Lebenszykluskosten"}]
[null,{"$f":"'BNB-System'!E27","v":" 2.1.1"},{"$f":"'BNB-System'!F27","v":"Gebäudebezogene Kosten im Lebenszyklus"},{"$f":"'BNB-System'!G27","v":100},{"$f":"'BNB-System'!J27","v":0.13500000000000001},{"$f":"'Bewertung durch Anwender'!G31","v":0},{"$f":"'Bewertung durch Anwender'!N31","v":0},null,null,null,null,{"$f":"'BNB-System'!K27","v":300},{"$f":"IF(ISNUMBER(G31*E31/100),G31*E31/100,0)","v":0},{"$f":"IF(ISNUMBER(H31*E31/100),H31*E31/100,0)","v":0}]
[null,null,{"$f":"'BNB-System'!F28","v":"Wertentwicklung"}]
[null,{"$f":"'BNB-System'!E29","v":" 2.2.2"},{"$f":"'BNB-System'!F29","v":"Anpassungsfähigkeit"},{"$f":"'BNB-System'!G29","v":100},{"$f":"'BNB-System'!J29","v":9.0000000000000011E-2},{"$f":"'Bewertung durch Anwender'!G33","v":0},{"$f":"'Bewertung durch Anwender'!N33","v":0},{"$f":"SUM(H34:H39)","v":0},null,null,null,{"$f":"'BNB-System'!K29","v":200},{"$f":"IF(ISNUMBER(G33*E33/100),G33*E33/100,0)","v":0},{"$f":"IF(ISNUMBER(H33*E33/100),H33*E33/100,0)","v":0}]
[null,null,{"$f":"'BNB-System'!F30","v":"Lichte Raumhöhe"},{"$f":"'BNB-System'!G30","v":15},null,{"$f":"'Bewertung durch Anwender'!G34","v":0},{"$f":"'Bewertung durch Anwender'!N34","v":0}]
[null,null,{"$f":"'BNB-System'!F31","v":"Gebäudetiefe"},{"$f":"'BNB-System'!G31","v":15},null,{"$f":"'Bewertung durch Anwender'!G35","v":0},{"$f":"'Bewertung durch Anwender'!N35","v":0}]
[null,null,{"$f":"'BNB-System'!F32","v":"Vertikale Erschlließung"},{"$f":"'BNB-System'!G32","v":15},null,{"$f":"'Bewertung durch Anwender'!G36","v":0},{"$f":"'Bewertung durch Anwender'!N36","v":0}]
[null,null,{"$f":"'BNB-System'!F33","v":"Grundrisse"},{"$f":"'BNB-System'!G33","v":25},null,{"$f":"'Bewertung durch Anwender'!G37","v":0},{"$f":"'Bewertung durch Anwender'!N37","v":0}]
[null,null,{"$f":"'BNB-System'!F34","v":"Konstruktion"},{"$f":"'BNB-System'!G34","v":20},null,{"$f":"'Bewertung durch Anwender'!G38","v":0},{"$f":"'Bewertung durch Anwender'!N38","v":0}]
[null,null,{"$f":"'BNB-System'!F35","v":"Technische Ausstattung"},{"$f":"'BNB-System'!G35","v":10},null,{"$f":"'Bewertung durch Anwender'!G39","v":0},{"$f":"'Bewertung durch Anwender'!N39","v":0}]
[]
[null,{"$f":"'BNB-System'!E37","v":"Soziokulturelle und funktionale Qualität"},null,null,{"$f":"'BNB-System'!J37","v":0.22500000000000001},{"$f":"'Bewertung durch Anwender'!G41","v":0},{"$f":"'Bewertung durch Anwender'!N41","v":0},{"$f":"H44*($E$44/100)+H55*($E$55/100)+H58*($E$58/100)+H68*($E$68/100)+H76*($E$76/100)+H86*($E$86/100)+H91*($E$91/100)+H98*($E$98/100)+H99*($E$99/100)+H104*($E$104/100)+H109*($E$109/100)+H117*($E$117/100)","v":0},null,null,null,{"$f":"'BNB-System'!K37","v":2700}]
[]
[null,null,{"$f":"'BNB-System'!F39","v":"Gesundheit, Behaglichkeit und Nutzerzufriedenheit"}]
[null,{"$f":"'BNB-System'!E40","v":" 3.1.1"},{"$f":"'BNB-System'!F40","v":"Thermischer Komfort"},{"$f":"'BNB-System'!G40","v":100},{"$f":"'BNB-System'!J40","v":2.4999999999999998E-2},{"$f":"'Bewertung durch Anwender'!G44","v":0},{"$f":"'Bewertung durch Anwender'!N44","v":0},{"$f":"SUM(H45:H54)","v":0},null,null,null,{"$f":"'BNB-System'!K40","v":300},{"$f":"IF(ISNUMBER(G44*E44/100),G44*E44/100,0)","v":0},{"$f":"IF(ISNUMBER(H44*E44/100),H44*E44/100,0)","v":0}]
[null,null,{"$f":"'BNB-System'!F41","v":"Winter"}]
[null,null,{"$f":"'BNB-System'!F42","v":"Operative Temperatur"},{"$f":"'BNB-System'!G42","v":10},null,{"$f":"'Bewertung durch Anwender'!G46","v":0},{"$f":"'Bewertung durch Anwender'!N46","v":0}]
[null,null,{"$f":"'BNB-System'!F43","v":" Zugluft"},{"$f":"'BNB-System'!G43","v":10},null,{"$f":"'Bewertung durch Anwender'!G47","v":0},{"$f":"'Bewertung durch Anwender'!N47","v":0}]
[null,null,{"$f":"'BNB-System'!F44","v":"Stahlungstemperaturasymmetrie und Fußbodentemperatur"},{"$f":"'BNB-System'!G44","v":10},null,{"$f":"'Bewertung durch Anwender'!G48","v":0},{"$f":"'Bewertung durch Anwender'!N48","v":0}]
[null,null,{"$f":"'BNB-System'!F45","v":"Relative Luftfeuchte"},{"$f":"'BNB-System'!G45","v":10},null,{"$f":"'Bewertung durch Anwender'!G49","v":0},{"$f":"'Bewertung durch Anwender'!N49","v":0}]
[null,null,{"$f":"'BNB-System'!F46","v":"Sommer"},null,null,{"$f":"'Bewertung durch Anwender'!G50","v":""}]
[null,null,{"$f":"'BNB-System'!F47","v":"Operative Temperatur"},{"$f":"'BNB-System'!G47","v":30},null,{"$f":"'Bewertung durch Anwender'!G51","v":0},{"$f":"'Bewertung durch Anwender'!N51","v":0}]
[null,null,{"$f":"'BNB-System'!F48","v":" Zugluft"},{"$f":"'BNB-System'!G48","v":10},null,{"$f":"'Bewertung durch Anwender'!G52","v":0},{"$f":"'Bewertung durch Anwender'!N52","v":0}]
[null,null,{"$f":"'BNB-System'!F49","v":"Stahlungstemperaturasymmetrie und Fußbodentemperatur"},{"$f":"'BNB-System'!G49","v":10},null,{"$f":"'Bewertung durch Anwender'!G53","v":0},{"$f":"'Bewertung durch Anwender'!N53","v":0}]
[null,null,{"$f":"'BNB-System'!F50","v":"Relative Luftfeuchte"},{"$f":"'BNB-System'!G50","v":10},null,{"$f":"'Bewertung durch Anwender'!G54","v":0},{"$f":"'Bewertung durch Anwender'!N54","v":0}]
[null,{"$f":"'BNB-System'!E51","v":" 3.1.3"},{"$f":"'BNB-System'!F51","v":"Innenraumlufthygiene"},{"$f":"'BNB-System'!G51","v":100},{"$f":"'BNB-System'!J51","v":2.4999999999999998E-2},{"$f":"'Bewertung durch Anwender'!G55","v":0},{"$f":"'Bewertung durch Anwender'!N55","v":0},{"$f":"SUM(H56:H57)","v":0},null,null,null,{"$f":"'BNB-System'!K51","v":300},{"$f":"IF(ISNUMBER(G55*E55/100),G55*E55/100,0)","v":0},{"$f":"IF(ISNUMBER(H55*E55/100),H55*E55/100,0)","v":0}]
[null,null,{"$f":"'BNB-System'!F52","v":"Flüchtige organische Stoffe (VOC) und Formaldehyd"},{"$f":"'BNB-System'!G52","v":50},null,{"$f":"'Bewertung durch Anwender'!G56","v":0},{"$f":"'Bewertung durch Anwender'!N56","v":0}]
[null,null,{"$f":"'BNB-System'!F53","v":"Außenluftvolumenstrom"},{"$f":"'BNB-System'!G53","v":50},null,{"$f":"'Bewertung durch Anwender'!G57","v":0},{"$f":"'Bewertung durch Anwender'!N57","v":0}]
[null,{"$f":"'BNB-System'!E54","v":" 3.1.4"},{"$f":"'BNB-System'!F54","v":"Akustischer Komfort"},{"$f":"'BNB-System'!G54","v":100},{"$f":"'BNB-System'!J54","v":1.6666666666666666E-2},{"$f":"'Bewertung durch Anwender'!G58","v":0},{"$f":"'Bewertung durch Anwender'!N58","v":0},{"$f":"SUM(H60:H67)","v":0},null,null,null,{"$f":"'BNB-System'!K54","v":200},{"$f":"IF(ISNUMBER(G58*E58/100),G58*E58/100,0)","v":0},{"$f":"IF(ISNUMBER(H58*E58/100),H58*E58/100,0)","v":0}]
[null,null,{"$f":"'BNB-System'!F55","v":"Räume Gruppe A"}]
[null,null,{"$f":"'BNB-System'!F56","v":"Musik"},{"$f":"'BNB-System'!G56","v":100},null,{"$f":"'Bewertung durch Anwender'!G60","v":0},{"$f":"'Bewertung durch Anwender'!N60","v":0}]
[null,null,{"$f":"'BNB-System'!F57","v":"Sprache/ Vortrag"},{"$f":"'BNB-System'!G57","v":100},null,{"$f":"'Bewertung durch Anwender'!G61","v":0},{"$f":"'Bewertung durch Anwender'!N61","v":0}]
[null,null,{"$f":"'BNB-System'!F58","v":"Unterricht/ Kommunikation"},{"$f":"'BNB-System'!G58","v":100},null,{"$f":"'Bewertung durch Anwender'!G62","v":0},{"$f":"'Bewertung durch Anwender'!N62","v":0}]
[null,null,{"$f":"'BNB-System'!F59","v":"Sport"},{"$f":"'BNB-System'!G59","v":100},null,{"$f":"'Bewertung durch Anwender'!G63","v":0},{"$f":"'Bewertung durch Anwender'!N63","v":0}]
[null,null,{"$f":"'BNB-System'!F60","v":"Räume Gruppe B"}]
[null,null,{"$f":"'BNB-System'!F61","v":"Einzel- und Mehrpersonenbüros bis 100 m3"},{"$f":"'BNB-System'!G61","v":100},null,{"$f":"'Bewertung durch Anwender'!G65","v":0},{"$f":"'Bewertung durch Anwender'!N65","v":0}]
[null,null,{"$f":"'BNB-System'!F62","v":"Mehrpersonenbüros über 100 m3"},{"$f":"'BNB-System'!G62","v":100},null,{"$f":"'Bewertung durch Anwender'!G66","v":0},{"$f":"'Bewertung durch Anwender'!N66","v":0}]
[null,null,{"$f":"'BNB-System'!F63","v":"Weitere Räume"},{"$f":"'BNB-System'!G63","v":100},null,{"$f":"'Bewertung durch Anwender'!G67","v":0},{"$f":"'Bewertung durch Anwender'!N67","v":0}]
[null,{"$f":"'BNB-System'!E64","v":" 3.1.5"},{"$f":"'BNB-System'!F64","v":"Visueller Komfort"},{"$f":"'BNB-System'!G64","v":100},{"$f":"'BNB-System'!J64","v":1.6666666666666666E-2},{"$f":"'Bewertung durch Anwender'!G68","v":0},{"$f":"'Bewertung durch Anwender'!N68","v":0},{"$f":"SUM(H69:H75)","v":0},null,null,null,{"$f":"'BNB-System'!K64","v":200},{"$f":"IF(ISNUMBER(G68*E68/100),G68*E68/100,0)","v":0},{"$f":"IF(ISNUMBER(#REF!*E68/100),#REF!*E68/100,0)","v":0}]
[null,null,{"$f":"'BNB-System'!F65","v":"Tageslichtverfügbarkeit Gesamtgebäude"},{"$f":"'BNB-System'!G65","v":15},null,{"$f":"'Bewertung durch Anwender'!G69","v":0},{"$f":"'Bewertung durch Anwender'!N69","v":0}]
[null,null,{"$f":"'BNB-System'!F66","v":"Tageslichtverfügbarkeit Unterrichtsräume und weitere ständige Arbeitsplätze"},{"$f":"'BNB-System'!G66","v":15},null,{"$f":"'Bewertung durch Anwender'!G70","v":0},{"$f":"'Bewertung durch Anwender'!N70","v":0}]
[null,null,{"$f":"'BNB-System'!F67","v":"Nachweis der Sichtverbindung nach außen"},{"$f":"'BNB-System'!G67","v":35},null,{"$f":"'Bewertung durch Anwender'!G71","v":0},{"$f":"'Bewertung durch Anwender'!N71","v":0}]
[null,null,{"$f":"'BNB-System'!F68","v":"Blendfreiheit Tageslicht"},{"$f":"'BNB-System'!G68","v":10},null,{"$f":"'Bewertung durch Anwender'!G72","v":0},{"$f":"'Bewertung durch Anwender'!N72","v":0}]
[null,null,{"$f":"'BNB-System'!F69","v":"Blendfreiheit  Kunstlicht"},{"$f":"'BNB-System'!G69","v":5},null,{"$f":"'Bewertung durch Anwender'!G73","v":0},{"$f":"'Bewertung durch Anwender'!N73","v":0}]
[null,null,{"$f":"'BNB-System'!F70","v":"Lichtverteilung"},{"$f":"'BNB-System'!G70","v":20},null,{"$f":"'Bewertung durch Anwender'!G74","v":0},{"$f":"'Bewertung durch Anwender'!N74","v":0}]
[null,null,{"$f":"'BNB-System'!F71","v":"Farbwiedergabe"},{"$f":"'BNB-System'!G71","v":10},null,{"$f":"'Bewertung durch Anwender'!G75","v":0},{"$f":"'Bewertung durch Anwender'!N75","v":0}]
[null,{"$f":"'BNB-System'!E72","v":" 3.1.6"},{"$f":"'BNB-System'!F72","v":"Einflussnahmemöglichkeiten durch Nutzer"},{"$f":"'BNB-System'!G72","v":100},{"$f":"'BNB-System'!J72","v":1.6666666666666666E-2},{"$f":"'Bewertung durch Anwender'!G76","v":0},{"$f":"'Bewertung durch Anwender'!N76","v":0},{"$f":"SUM(H77:H85)","v":0},null,null,null,{"$f":"'BNB-System'!K72","v":200},{"$f":"IF(ISNUMBER(G76*E76/100),G76*E76/100,0)","v":0},{"$f":"IF(ISNUMBER(H76*E76/100),H76*E76/100,0)","v":0}]
[null,null,{"$f":"'BNB-System'!F73","v":"Lüftung"},{"$f":"'BNB-System'!G73","v":10},null,{"$f":"'Bewertung durch Anwender'!G77","v":0},{"$f":"'Bewertung durch Anwender'!N77","v":0}]
[null,null,{"$f":"'BNB-System'!F74","v":"Sonnenschutz"},{"$f":"'BNB-System'!G74","v":10},null,{"$f":"'Bewertung durch Anwender'!G78","v":0},{"$f":"'Bewertung durch Anwender'!N78","v":0}]
[null,null,{"$f":"'BNB-System'!F75","v":"Blendschutz"},{"$f":"'BNB-System'!G75","v":10},null,{"$f":"'Bewertung durch Anwender'!G79","v":0},{"$f":"'Bewertung durch Anwender'!N79","v":0}]
[null,null,{"$f":"'BNB-System'!F76","v":"Temperaturen während der Heizperiode"},{"$f":"'BNB-System'!G76","v":10},null,{"$f":"'Bewertung durch Anwender'!G80","v":0},{"$f":"'Bewertung durch Anwender'!N80","v":0}]
[null,null,{"$f":"'BNB-System'!F77","v":"Temperaturen außerhalb der Heizperiode"},{"$f":"'BNB-System'!G77","v":15},null,{"$f":"'Bewertung durch Anwender'!G81","v":0},{"$f":"'Bewertung durch Anwender'!N81","v":0}]
[null,null,{"$f":"'BNB-System'!F78","v":"Steuerung von Tageslicht"},{"$f":"'BNB-System'!G78","v":10},null,{"$f":"'Bewertung durch Anwender'!G82","v":0},{"$f":"'Bewertung durch Anwender'!N82","v":0}]
[null,null,{"$f":"'BNB-System'!F79","v":"Steuerung von  Kunstlicht"},{"$f":"'BNB-System'!G79","v":10},null,{"$f":"'Bewertung durch Anwender'!G83","v":0},{"$f":"'Bewertung durch Anwender'!N83","v":0}]
[null,null,{"$f":"'BNB-System'!F80","v":"Bedienfreundlichkeit"},{"$f":"'BNB-System'!G80","v":10},null,{"$f":"'Bewertung durch Anwender'!G84","v":0},{"$f":"'Bewertung durch Anwender'!N84","v":0}]
[null,null,{"$f":"'BNB-System'!F81","v":"Funktionskonzept der Haustechnik"},{"$f":"'BNB-System'!G81","v":15},null,{"$f":"'Bewertung durch Anwender'!G85","v":0},{"$f":"'Bewertung durch Anwender'!N85","v":0}]
[null,{"$f":"'BNB-System'!E82","v":" 3.1.7"},{"$f":"'BNB-System'!F82","v":"Aufenthaltsmerkmale im Außenraum"},{"$f":"'BNB-System'!G82","v":100},{"$f":"'BNB-System'!J82","v":1.6666666666666666E-2},{"$f":"'Bewertung durch Anwender'!G86","v":0},{"$f":"'Bewertung durch Anwender'!N86","v":0},{"$f":"SUM(H87:H90)","v":0},null,null,null,{"$f":"'BNB-System'!K82","v":200},{"$f":"IF(ISNUMBER(G86*E86/100),G86*E86/100,0)","v":0},{"$f":"IF(ISNUMBER(H86*E86/100),H86*E86/100,0)","v":0}]
[null,null,{"$f":"'BNB-System'!F83","v":"Anzahl und Vielfalt Sitzgelegenheiten"},{"$f":"'BNB-System'!G83","v":30},null,{"$f":"'Bewertung durch Anwender'!G87","v":0},{"$f":"'Bewertung durch Anwender'!N87","v":0}]
[null,null,{"$f":"'BNB-System'!F84","v":"Anzahlund Vielfalt der Spiel- und Sportmöglichkeiten"},{"$f":"'BNB-System'!G84","v":15},null,{"$f":"'Bewertung durch Anwender'!G88","v":0},{"$f":"'Bewertung durch Anwender'!N88","v":0}]
[null,null,{"$f":"'BNB-System'!F85","v":"Zuordnung von Freibereichen zu Innenräumen"},{"$f":"'BNB-System'!G85","v":20},null,{"$f":"'Bewertung durch Anwender'!G89","v":0},{"$f":"'Bewertung durch Anwender'!N89","v":0}]
[null,null,{"$f":"'BNB-System'!F86","v":"Ausstattungsmerkmale"},{"$f":"'BNB-System'!G86","v":39},null,{"$f":"'Bewertung durch Anwender'!G90","v":0},{"$f":"'Bewertung durch Anwender'!N90","v":0}]
[null,{"$f":"'BNB-System'!E87","v":" 3.1.8"},{"$f":"'BNB-System'!F87","v":"Sicherheit"},{"$f":"'BNB-System'!G87","v":100},{"$f":"'BNB-System'!J87","v":8.3333333333333332E-3},{"$f":"'Bewertung durch Anwender'!G91","v":0},{"$f":"'Bewertung durch Anwender'!N91","v":0},null,null,null,null,{"$f":"'BNB-System'!K87","v":100},{"$f":"IF(ISNUMBER(G91*E91/100),G91*E91/100,0)","v":0},{"$f":"IF(ISNUMBER(H91*E91/100),H91*E91/100,0)","v":0}]
[null,{"$f":"'BNB-System'!E88","v":" 3.1.9"},{"$f":"'BNB-System'!F88","v":"Innenraumqualität"},{"$f":"'BNB-System'!G88","v":100},null,{"$f":"'Bewertung durch Anwender'!G92","v":0},{"$f":"'Bewertung durch Anwender'!N92","v":0},{"$f":"SUM(H93:H96)","v":0},null,null,null,{"$f":"'BNB-System'!K88","v":300},{"$f":"IF(ISNUMBER(G92*E92/100),G92*E92/100,0)","v":0},{"$f":"IF(ISNUMBER(H92*E92/100),H92*E92/100,0)","v":0}]
[null,null,{"$f":"'BNB-System'!F89","v":"Aufenthaltsqualitäten der Erschließungsflächen"},{"$f":"'BNB-System'!G89","v":45},null,{"$f":"'Bewertung durch Anwender'!G93","v":0},{"$f":"'Bewertung durch Anwender'!N93","v":0}]
[null,null,{"$f":"'BNB-System'!F90","v":"Innere Sitzbeziehung"},{"$f":"'BNB-System'!G90","v":15},null,{"$f":"'Bewertung durch Anwender'!G94","v":0},{"$f":"'Bewertung durch Anwender'!N94","v":0}]
[null,null,{"$f":"'BNB-System'!F91","v":"Flexibilität der Raumnutzung"},{"$f":"'BNB-System'!G91","v":30},null,{"$f":"'Bewertung durch Anwender'!G95","v":0},{"$f":"'Bewertung durch Anwender'!N95","v":0}]
[null,null,{"$f":"'BNB-System'!F92","v":"Aufbewahrungsmöglichkeiten"},{"$f":"'BNB-System'!G92","v":40},null,{"$f":"'Bewertung durch Anwender'!G96","v":0},{"$f":"'Bewertung durch Anwender'!N96","v":0}]
[null,null,{"$f":"'BNB-System'!F93","v":"Funktionalität"}]
[null,{"$f":"'BNB-System'!E94","v":" 3.2.1"},{"$f":"'BNB-System'!F94","v":"Barrierefreiheit"},{"$f":"'BNB-System'!G94","v":100},{"$f":"'BNB-System'!J94","v":1.6666666666666666E-2},{"$f":"'Bewertung durch Anwender'!G98","v":0},{"$f":"'Bewertung durch Anwender'!N98","v":0},null,null,null,null,{"$f":"'BNB-System'!K94","v":200},{"$f":"IF(ISNUMBER(G98*E98/100),G98*E98/100,0)","v":0},0]
[null,{"$f":"'BNB-System'!E95","v":" 3.2.4"},{"$f":"'BNB-System'!F95","v":"Zugänglichkeit"},{"$f":"'BNB-System'!G95","v":100},{"$f":"'BNB-System'!J95","v":1.6666666666666666E-2},{"$f":"'Bewertung durch Anwender'!G99","v":0},{"$f":"'Bewertung durch Anwender'!N99","v":0},{"$f":"SUM(H100:H103)","v":0},null,null,null,{"$f":"'BNB-System'!K95","v":200},{"$f":"IF(ISNUMBER(G99*E99/100),G99*E99/100,0)","v":0},{"$f":"IF(ISNUMBER(H99*E99/100),H99*E99/100,0)","v":0}]
[null,null,{"$f":"'BNB-System'!F96","v":"Grundsätzliche öffentliche Zugänglichkeit des Gebäudes"},{"$f":"'BNB-System'!G96","v":20},null,{"$f":"'Bewertung durch Anwender'!G100","v":0},{"$f":"'Bewertung durch Anwender'!N100","v":0}]
[null,null,{"$f":"'BNB-System'!F97","v":"Qualitative Merkmale der öffentlichen Zugänglichkeit des Gebäudes"},{"$f":"'BNB-System'!G97","v":50},null,{"$f":"'Bewertung durch Anwender'!G101","v":0},{"$f":"'Bewertung durch Anwender'!N101","v":0}]
[null,null,{"$f":"'BNB-System'!F98","v":"Nutzungsmerkmale der Zugänglichkeit"},{"$f":"'BNB-System'!G98","v":50},null,{"$f":"'Bewertung durch Anwender'!G102","v":0},{"$f":"'Bewertung durch Anwender'!N102","v":0}]
[null,null,{"$f":"'BNB-System'!F99","v":"Qualitative Aspekte der öffentlichen Zugänglichkeit der Freiflächen"},{"$f":"'BNB-System'!G99","v":20},null,{"$f":"'Bewertung durch Anwender'!G103","v":0},{"$f":"'Bewertung durch Anwender'!N103","v":0}]
[null,{"$f":"'BNB-System'!E100","v":" 3.2.5"},{"$f":"'BNB-System'!F100","v":"Mobilitätsinfrastruktur"},{"$f":"'BNB-System'!G100","v":100},{"$f":"'BNB-System'!J100","v":8.3333333333333332E-3},{"$f":"'Bewertung durch Anwender'!G104","v":0},{"$f":"'Bewertung durch Anwender'!N104","v":0},{"$f":"SUM(H105:H107)","v":0},null,null,null,{"$f":"'BNB-System'!K100","v":100},{"$f":"IF(ISNUMBER(G104*E104/100),G104*E104/100,0)","v":0},{"$f":"IF(ISNUMBER(H104*E104/100),H104*E104/100,0)","v":0}]
[null,null,{"$f":"'BNB-System'!F101","v":"Anzahl der Fahrradstellplätze"},null,null,{"$f":"'Bewertung durch Anwender'!G105","v":0},{"$f":"'Bewertung durch Anwender'!N105","v":0}]
[null,null,{"$f":"'BNB-System'!F102","v":"Anzahl der Lademöglichkeiten und Carsharing-Stellplätze"},null,null,{"$f":"'Bewertung durch Anwender'!G106","v":0},{"$f":"'Bewertung durch Anwender'!N106","v":0}]
[null,null,{"$f":"'BNB-System'!F103","v":"Qualitative Anforderungen an Fahrradstellplätze"},null,null,{"$f":"'Bewertung durch Anwender'!G107","v":0},{"$f":"'Bewertung durch Anwender'!N107","v":0}]
[null,null,{"$f":"'BNB-System'!F104","v":"Sicherung der Gestaltungsqualität"}]
[null,{"$f":"'BNB-System'!E105","v":" 3.3.1"},{"$f":"'BNB-System'!F105","v":"Gestalterische und städtebauliche Qualität"},{"$f":"'BNB-System'!G105","v":100},{"$f":"'BNB-System'!J105","v":2.4999999999999998E-2},{"$f":"'Bewertung durch Anwender'!G109","v":0},{"$f":"'Bewertung durch Anwender'!N109","v":0},{"$f":"SUM(H110:H116)","v":0},null,null,null,{"$f":"'BNB-System'!K105","v":300},{"$f":"IF(ISNUMBER(G109*E109/100),G109*E109/100,0)","v":0},{"$f":"IF(ISNUMBER(H109*E109/100),H109*E109/100,0)","v":0}]
[null,null,{"$f":"'BNB-System'!F106","v":"Durchführung von Planungswettbewerben"},{"$f":"'BNB-System'!G106","v":20},null,{"$f":"'Bewertung durch Anwender'!G110","v":0},{"$f":"'Bewertung durch Anwender'!N110","v":0}]
[null,null,{"$f":"'BNB-System'!F107","v":"Wettbewerbsverfahren"},{"$f":"'BNB-System'!G107","v":40},null,{"$f":"'Bewertung durch Anwender'!G111","v":0},{"$f":"'Bewertung durch Anwender'!N111","v":0}]
[null,null,{"$f":"'BNB-System'!F108","v":"Ausführung des Entwurfs eines der Preisträger"},{"$f":"'BNB-System'!G108","v":30},null,{"$f":"'Bewertung durch Anwender'!G112","v":0},{"$f":"'Bewertung durch Anwender'!N112","v":0}]
[null,null,{"$f":"'BNB-System'!F109","v":"Beauftragung des Planungsteams"},{"$f":"'BNB-System'!G109","v":10},null,{"$f":"'Bewertung durch Anwender'!G113","v":0},{"$f":"'Bewertung durch Anwender'!N113","v":0}]
[null,null,{"$f":"'BNB-System'!F110","v":"Auszeichnung mit einem Architekturpreis"},{"$f":"'BNB-System'!G110","v":60},null,{"$f":"'Bewertung durch Anwender'!G114","v":0},{"$f":"'Bewertung durch Anwender'!N114","v":0}]
[null,null,{"$f":"'BNB-System'!F111","v":"Unabhängiges Expertengremium"},{"$f":"'BNB-System'!G111","v":40},null,{"$f":"'Bewertung durch Anwender'!G115","v":0},{"$f":"'Bewertung durch Anwender'!N115","v":0}]
[null,null,{"$f":"'BNB-System'!F112","v":"Sonderfall Mindestanforderung"},{"$f":"'BNB-System'!G112","v":10},null,{"$f":"'Bewertung durch Anwender'!G116","v":0},{"$f":"'Bewertung durch Anwender'!N116","v":0}]
[null,{"$f":"'BNB-System'!E113","v":" 3.3.2"},{"$f":"'BNB-System'!F113","v":"Kunst am Bau "},{"$f":"'BNB-System'!G113","v":100},{"$f":"'BNB-System'!J113","v":8.3333333333333332E-3},{"$f":"'Bewertung durch Anwender'!G117","v":0},{"$f":"'Bewertung durch Anwender'!N117","v":0},{"$f":"SUM(H118:H121)","v":0},null,null,null,{"$f":"'BNB-System'!K113","v":100},{"$f":"IF(ISNUMBER(G117*E117/100),G117*E117/100,0)","v":0},{"$f":"IF(ISNUMBER(H117*E117/100),H117*E117/100,0)","v":0}]
[null,null,{"$f":"'BNB-System'!F114","v":"Mindestanforderung"},{"$f":"'BNB-System'!G114","v":10},null,{"$f":"'Bewertung durch Anwender'!G118","v":0},{"$f":"'Bewertung durch Anwender'!N118","v":0}]
[null,null,{"$f":"'BNB-System'!F115","v":"Bereitstellung von Mitteln im Rahmen der Bauaufgabe"},{"$f":"'BNB-System'!G115","v":30},null,{"$f":"'Bewertung durch Anwender'!G119","v":0},{"$f":"'Bewertung durch Anwender'!N119","v":0}]
[null,null,{"$f":"'BNB-System'!F116","v":"Umsetzung des Leitfadens Kunst am Bau"},{"$f":"'BNB-System'!G116","v":40},null,{"$f":"'Bewertung durch Anwender'!G120","v":0},{"$f":"'Bewertung durch Anwender'!N120","v":0}]
[null,null,{"$f":"'BNB-System'!F117","v":"Öffentlichkeitsarbeit, Rezeption  der Kunst am Bau"},{"$f":"'BNB-System'!G117","v":20},null,{"$f":"'Bewertung durch Anwender'!G121","v":0},{"$f":"'Bewertung durch Anwender'!N121","v":0}]
[]
[null,{"$f":"'BNB-System'!E119","v":"Technische Qualität"},null,null,{"$f":"'BNB-System'!J119","v":0.22500000000000001},{"$f":"'Bewertung durch Anwender'!G123","v":0},{"$f":"'Bewertung durch Anwender'!N123","v":0},{"$f":"H126*($E$126/100)+H131*($E$131/100)+H138*($E$138/100)+H149*($E$149/100)+H150*($E$150/100)+H151*($E$151/100)","v":0},null,null,null,{"$f":"'BNB-System'!K119","v":1000}]
[]
[null,null,{"$f":"'BNB-System'!F121","v":"technische Ausführung"}]
[null,{"$f":"'BNB-System'!E122","v":" 4.1.1"},{"$f":"'BNB-System'!F122","v":"Schallschutz "},{"$f":"'BNB-System'!G122","v":100},{"$f":"'BNB-System'!J122","v":4.5000000000000005E-2},{"$f":"'Bewertung durch Anwender'!G126","v":0},{"$f":"'Bewertung durch Anwender'!N126","v":0},{"$f":"SUM(H127:H130)","v":0},null,null,null,{"$f":"'BNB-System'!K122","v":200},{"$f":"IF(ISNUMBER(G126*E126/100),G126*E126/100,0)","v":0},{"$f":"IF(ISNUMBER(H126*E126/100),H126*E126/100,0)","v":0}]
[null,null,{"$f":"'BNB-System'!F123","v":"Luftschallschutz gegenüber Außenlärm"},{"$f":"'BNB-System'!G123","v":20},null,{"$f":"'Bewertung durch Anwender'!G127","v":0},{"$f":"'Bewertung durch Anwender'!N127","v":0}]
[null,null,{"$f":"'BNB-System'!F124","v":"Luftschallschutz "},{"$f":"'BNB-System'!G124","v":30},null,{"$f":"'Bewertung durch Anwender'!G128","v":0},{"$f":"'Bewertung durch Anwender'!N128","v":0}]
[null,null,{"$f":"'BNB-System'!F125","v":"Trittschallschutz "},{"$f":"'BNB-System'!G125","v":30},null,{"$f":"'Bewertung durch Anwender'!G129","v":0},{"$f":"'Bewertung durch Anwender'!N129","v":0}]
[null,null,{"$f":"'BNB-System'!F126","v":"Schallschutz gegenüber haustechnischen Anlagen"},{"$f":"'BNB-System'!G126","v":20},null,{"$f":"'Bewertung durch Anwender'!G130","v":0},{"$f":"'Bewertung durch Anwender'!N130","v":0}]
[null,{"$f":"'BNB-System'!E127","v":" 4.1.2"},{"$f":"'BNB-System'!F127","v":"Wärme- und Tauwasserschutz "},{"$f":"'BNB-System'!G127","v":100},{"$f":"'BNB-System'!J127","v":4.5000000000000005E-2},{"$f":"'Bewertung durch Anwender'!G131","v":0},{"$f":"'Bewertung durch Anwender'!N131","v":0},{"$f":"SUM(H132:H137)","v":0},null,null,null,{"$f":"'BNB-System'!K127","v":200},{"$f":"IF(ISNUMBER(G131*E131/100),G131*E131/100,0)","v":0},{"$f":"IF(ISNUMBER(H131*E131/100),H131*E131/100,0)","v":0}]
[null,null,{"$f":"'BNB-System'!F128","v":"Mittlere Wärmeduchgangskoeffizienten"},{"$f":"'BNB-System'!G128","v":30},null,{"$f":"'Bewertung durch Anwender'!G132","v":0},{"$f":"'Bewertung durch Anwender'!N132","v":0}]
[null,null,{"$f":"'BNB-System'!F129","v":"Wärmebrückenzuschlag"},{"$f":"'BNB-System'!G129","v":15},null,{"$f":"'Bewertung durch Anwender'!G133","v":0},{"$f":"'Bewertung durch Anwender'!N133","v":0}]
[null,null,{"$f":"'BNB-System'!F130","v":"Klassen der Luftdurchlässigkeit (Fugendurchlässigkeit)"},{"$f":"'BNB-System'!G130","v":15},null,{"$f":"'Bewertung durch Anwender'!G134","v":0},{"$f":"'Bewertung durch Anwender'!N134","v":0}]
[null,null,{"$f":"'BNB-System'!F131","v":"Tauwasserbildung"},{"$f":"'BNB-System'!G131","v":10},null,{"$f":"'Bewertung durch Anwender'!G135","v":0},{"$f":"'Bewertung durch Anwender'!N135","v":0}]
[null,null,{"$f":"'BNB-System'!F132","v":"Luftwechsel"},{"$f":"'BNB-System'!G132","v":15},null,{"$f":"'Bewertung durch Anwender'!G136","v":0},{"$f":"'Bewertung durch Anwender'!N136","v":0}]
[null,null,{"$f":"'BNB-System'!F133","v":"Sonneneintragswert"},{"$f":"'BNB-System'!G133","v":15},null,{"$f":"'Bewertung durch Anwender'!G137","v":0},{"$f":"'Bewertung durch Anwender'!N137","v":0}]
[null,{"$f":"'BNB-System'!E134","v":" 4.1.3"},{"$f":"'BNB-System'!F134","v":"Reinigungs- und Instandhaltungsfreundlichkeit"},{"$f":"'BNB-System'!G134","v":100},{"$f":"'BNB-System'!J134","v":4.5000000000000005E-2},{"$f":"'Bewertung durch Anwender'!G138","v":0},{"$f":"'Bewertung durch Anwender'!N138","v":0},{"$f":"SUM(H139:H148)","v":0},null,null,null,{"$f":"'BNB-System'!K134","v":200},{"$f":"IF(ISNUMBER(G138*E138/100),G138*E138/100,0)","v":0},{"$f":"IF(ISNUMBER(#REF!*E138/100),#REF!*E138/100,0)","v":0}]
[null,null,{"$f":"'BNB-System'!F135","v":"Tragkonstruktion"},{"$f":"'BNB-System'!G135","v":15},null,{"$f":"'Bewertung durch Anwender'!G139","v":0},{"$f":"'Bewertung durch Anwender'!N139","v":0}]
[null,null,{"$f":"'BNB-System'!F136","v":"Zugänglichkeit der Außenanlagen"},{"$f":"'BNB-System'!G136","v":12},null,{"$f":"'Bewertung durch Anwender'!G140","v":0},{"$f":"'Bewertung durch Anwender'!N140","v":0}]
[null,null,{"$f":"'BNB-System'!F137","v":"Außenbauteile"},{"$f":"'BNB-System'!G137","v":9},null,{"$f":"'Bewertung durch Anwender'!G141","v":0},{"$f":"'Bewertung durch Anwender'!N141","v":0}]
[null,null,{"$f":"'BNB-System'!F138","v":"Bodenbelag"},{"$f":"'BNB-System'!G138","v":9},null,{"$f":"'Bewertung durch Anwender'!G142","v":0},{"$f":"'Bewertung durch Anwender'!N142","v":0}]
[null,null,{"$f":"'BNB-System'!F139","v":"Schmutzfangzone"},{"$f":"'BNB-System'!G139","v":9},null,{"$f":"'Bewertung durch Anwender'!G143","v":0},{"$f":"'Bewertung durch Anwender'!N143","v":0}]
[null,null,{"$f":"'BNB-System'!F140","v":"Fußbodenleisten"},{"$f":"'BNB-System'!G140","v":9},null,{"$f":"'Bewertung durch Anwender'!G144","v":0},{"$f":"'Bewertung durch Anwender'!N144","v":0}]
[null,null,{"$f":"'BNB-System'!F141","v":"Hindernisfreie Grundrissgestaltung"},{"$f":"'BNB-System'!G141","v":9},null,{"$f":"'Bewertung durch Anwender'!G145","v":0},{"$f":"'Bewertung durch Anwender'!N145","v":0}]
[null,null,{"$f":"'BNB-System'!F142","v":"Einbauten"},{"$f":"'BNB-System'!G142","v":10},null,{"$f":"'Bewertung durch Anwender'!G146","v":0},{"$f":"'Bewertung durch Anwender'!N146","v":0}]
[null,null,{"$f":"'BNB-System'!F143","v":"Zugänglichkeit der Innenglasflächen "},{"$f":"'BNB-System'!G143","v":9},null,{"$f":"'Bewertung durch Anwender'!G148","v":0},{"$f":"'Bewertung durch Anwender'!N148","v":0}]
[null,null,{"$f":"'BNB-System'!F144","v":"Wände"},{"$f":"'BNB-System'!G144","v":9},null,{"$f":"'Bewertung durch Anwender'!G148","v":0},{"$f":"'Bewertung durch Anwender'!N148","v":0}]
[null,{"$f":"'BNB-System'!E145","v":" 4.1.4"},{"$f":"'BNB-System'!F145","v":"Rückbau, Trennung und Verwertung"},{"$f":"'BNB-System'!G145","v":100},{"$f":"'BNB-System'!J145","v":4.5000000000000005E-2},{"$f":"'Bewertung durch Anwender'!G149","v":0},{"$f":"'Bewertung durch Anwender'!N149","v":0},null,null,null,null,{"$f":"'BNB-System'!K145","v":200},{"$f":"IF(ISNUMBER(G149*E149/100),G149*E149/100,0)","v":0},{"$f":"IF(ISNUMBER(H149*E149/100),H149*E149/100,0)","v":0}]
[null,{"$f":"'BNB-System'!E146","v":" 4.1.5"},{"$f":"'BNB-System'!F146","v":"Widerstandsfähigkeit gegen Naturgefahren"},{"$f":"'BNB-System'!G146","v":100},{"$f":"'BNB-System'!J146","v":2.2500000000000003E-2},{"$f":"'Bewertung durch Anwender'!G150","v":0},{"$f":"'Bewertung durch Anwender'!N150","v":0},null,null,null,null,{"$f":"'BNB-System'!K146","v":100},{"$f":"IF(ISNUMBER(G150*E150/100),G150*E150/100,0)","v":0},{"$f":"IF(ISNUMBER(H150*E150/100),H150*E150/100,0)","v":0}]
[null,{"$f":"'BNB-System'!E147","v":" 4.1.6"},{"$f":"'BNB-System'!F147","v":"Bedienungs- und Instandhaltungsfreundlichkeit der TGA"},{"$f":"'BNB-System'!G147","v":100},{"$f":"'BNB-System'!J147","v":2.2500000000000003E-2},{"$f":"'Bewertung durch Anwender'!G151","v":0},{"$f":"'Bewertung durch Anwender'!N151","v":0},{"$f":"SUM(H152:H158)","v":0},null,null,null,{"$f":"'BNB-System'!K147","v":100},{"$f":"IF(ISNUMBER(G151*E151/100),G151*E151/100,0)","v":0},{"$f":"IF(ISNUMBER(H151*E151/100),H151*E151/100,0)","v":0}]
[null,null,{"$f":"'BNB-System'!F148","v":"KG 410 Abwasser-, Wasser-, Gasanlagen"},{"$f":"'BNB-System'!G148","v":12},null,{"$f":"'Bewertung durch Anwender'!G159","v":0},{"$f":"'Bewertung durch Anwender'!N159","v":0}]
[null,null,{"$f":"'BNB-System'!F149","v":"KG 420 Wärmeversorgungsanlagen"},{"$f":"'BNB-System'!G149","v":15},null,{"$f":"'Bewertung durch Anwender'!G160","v":0},{"$f":"'Bewertung durch Anwender'!N160","v":0}]
[null,null,{"$f":"'BNB-System'!F150","v":"KG 430 Lufttechnische Anlagen"},{"$f":"'BNB-System'!G150","v":18},null,{"$f":"'Bewertung durch Anwender'!G161","v":0},{"$f":"'Bewertung durch Anwender'!N161","v":0}]
[null,null,{"$f":"'BNB-System'!F151","v":"KG 435 Kälteversorgungsanlagen"},{"$f":"'BNB-System'!G151","v":15},null,{"$f":"'Bewertung durch Anwender'!G162","v":0},{"$f":"'Bewertung durch Anwender'!N162","v":0}]
[null,null,{"$f":"'BNB-System'!F152","v":"KG 440 Starkstromanlagen"},{"$f":"'BNB-System'!G152","v":24},null,{"$f":"'Bewertung durch Anwender'!G163","v":0},{"$f":"'Bewertung durch Anwender'!N163","v":0}]
[null,null,{"$f":"'BNB-System'!F153","v":"KG 460 Förderanlagen"},{"$f":"'BNB-System'!G153","v":4},null,{"$f":"'Bewertung durch Anwender'!G164","v":0},{"$f":"'Bewertung durch Anwender'!N164","v":0}]
[null,null,{"$f":"'BNB-System'!F154","v":"KG 480 Gebäudeautomation"},{"$f":"'BNB-System'!G154","v":25},null,{"$f":"'Bewertung durch Anwender'!G165","v":0},{"$f":"'Bewertung durch Anwender'!N165","v":0}]
[]
[null,{"$f":"'BNB-System'!E156","v":"Prozessqualität"},null,null,{"$f":"'BNB-System'!J156","v":0.1},{"$f":"'Bewertung durch Anwender'!G160","v":0},{"$f":"'Bewertung durch Anwender'!N160","v":0},{"$f":"H163*($E$163/100)+H167*($E$167/100)+H173*($E$173/100)+H189*($E$189/100)+H190*($E$190/100)+H196*($E$196/100)+H201*($E$201/100)+H204*($E$204/100)","v":0},null,null,null,{"$f":"'BNB-System'!K156","v":2100}]
[]
[null,null,{"$f":"'BNB-System'!F158","v":"Planung"}]
[null,{"$f":"'BNB-System'!E159","v":" 5.1.1"},{"$f":"'BNB-System'!F159","v":"Projektvorbereitung"},{"$f":"'BNB-System'!G159","v":100},{"$f":"'BNB-System'!J159","v":1.4285714285714285E-2},{"$f":"'Bewertung durch Anwender'!G163","v":0},{"$f":"'Bewertung durch Anwender'!N163","v":0},{"$f":"SUM(H164:H166)","v":0},null,null,null,{"$f":"'BNB-System'!K159","v":300},{"$f":"IF(ISNUMBER(G163*E163/100),G163*E163/100,0)","v":0},{"$f":"IF(ISNUMBER(H163*E163/100),H163*E163/100,0)","v":0}]
[null,null,{"$f":"'BNB-System'!F160","v":"Bedarfsplanung oder vergleichbare Planung"},{"$f":"'BNB-System'!G160","v":35},null,{"$f":"'Bewertung durch Anwender'!G164","v":0},{"$f":"'Bewertung durch Anwender'!N164","v":0}]
[null,null,{"$f":"'BNB-System'!F161","v":"Zielvereinbarung"},{"$f":"'BNB-System'!G161","v":35},null,{"$f":"'Bewertung durch Anwender'!G165","v":0},{"$f":"'Bewertung durch Anwender'!N165","v":0}]
[null,null,{"$f":"'BNB-System'!F162","v":"Architektenwettbewerb"},{"$f":"'BNB-System'!G162","v":30},null,{"$f":"'Bewertung durch Anwender'!G166","v":0},{"$f":"'Bewertung durch Anwender'!N166","v":0}]
[null,{"$f":"'BNB-System'!E163","v":" 5.1.2"},{"$f":"'BNB-System'!F163","v":"Integrale Planung"},{"$f":"'BNB-System'!G163","v":100},{"$f":"'BNB-System'!J163","v":1.4285714285714285E-2},{"$f":"'Bewertung durch Anwender'!G167","v":0},{"$f":"'Bewertung durch Anwender'!N167","v":0},{"$f":"SUM(H168:H172)","v":0},null,null,null,{"$f":"'BNB-System'!K163","v":300},{"$f":"IF(ISNUMBER(G167*E167/100),G167*E167/100,0)","v":0},{"$f":"IF(ISNUMBER(H167*E167/100),H167*E167/100,0)","v":0}]
[null,null,{"$f":"'BNB-System'!F164","v":"Interdisziplinäres Planungsteam "},{"$f":"'BNB-System'!G164","v":20},null,{"$f":"'Bewertung durch Anwender'!G168","v":0},{"$f":"'Bewertung durch Anwender'!N168","v":0}]
[null,null,{"$f":"'BNB-System'!F165","v":"Qualifikation des Planungsteams"},{"$f":"'BNB-System'!G165","v":20},null,{"$f":"'Bewertung durch Anwender'!G169","v":0},{"$f":"'Bewertung durch Anwender'!N169","v":0}]
[null,null,{"$f":"'BNB-System'!F166","v":"Integraler Planungsprozess"},{"$f":"'BNB-System'!G166","v":20},null,{"$f":"'Bewertung durch Anwender'!G170","v":0},{"$f":"'Bewertung durch Anwender'!N170","v":0}]
[null,null,{"$f":"'BNB-System'!F167","v":"Nutzerbeteiligung"},{"$f":"'BNB-System'!G167","v":30},null,{"$f":"'Bewertung durch Anwender'!G171","v":0},{"$f":"'Bewertung durch Anwender'!N171","v":0}]
[null,null,{"$f":"'BNB-System'!F168","v":"Öffentlichkeitsbeteiligung"},{"$f":"'BNB-System'!G168","v":10},null,{"$f":"'Bewertung durch Anwender'!G172","v":0},{"$f":"'Bewertung durch Anwender'!N172","v":0}]
[null,{"$f":"'BNB-System'!E169","v":" 5.1.3"},{"$f":"'BNB-System'!F169","v":"Komplexität und Optimierung der Planung"},{"$f":"'BNB-System'!G169","v":100},{"$f":"'BNB-System'!J169","v":1.4285714285714285E-2},{"$f":"'Bewertung durch Anwender'!G173","v":0},{"$f":"'Bewertung durch Anwender'!N173","v":0},{"$f":"IF(SUM(H174:H188)>100,100,SUM(H174:H188))","v":0},null,null,null,{"$f":"'BNB-System'!K169","v":300},{"$f":"IF(ISNUMBER(G173*E173/100),G173*E173/100,0)","v":0},{"$f":"IF(ISNUMBER(H173*E173/100),H173*E173/100,0)","v":0}]
[null,null,{"$f":"'BNB-System'!F170","v":"SiGe-Plan"},{"$f":"'BNB-System'!G170","v":10},null,{"$f":"'Bewertung durch Anwender'!G174","v":0},{"$f":"'Bewertung durch Anwender'!N174","v":0}]
[null,null,{"$f":"'BNB-System'!F171","v":"Ver- und Entsiegelungskonzept"},{"$f":"'BNB-System'!G171","v":10},null,{"$f":"'Bewertung durch Anwender'!G175","v":0},{"$f":"'Bewertung durch Anwender'!N175","v":0}]
[null,null,{"$f":"'BNB-System'!F172","v":"Energiekonzept"},{"$f":"'BNB-System'!G172","v":15},null,{"$f":"'Bewertung durch Anwender'!G176","v":0},{"$f":"'Bewertung durch Anwender'!N176","v":0}]
[null,null,{"$f":"'BNB-System'!F173","v":"Mess- und Monitoringkonzept"},{"$f":"'BNB-System'!G173","v":15},null,{"$f":"'Bewertung durch Anwender'!G177","v":0},{"$f":"'Bewertung durch Anwender'!N177","v":0}]
[null,null,{"$f":"'BNB-System'!F174","v":"Wasserkonzept"},{"$f":"'BNB-System'!G174","v":10},null,{"$f":"'Bewertung durch Anwender'!G178","v":0},{"$f":"'Bewertung durch Anwender'!N178","v":0}]
[null,null,{"$f":"'BNB-System'!F175","v":"Konzept zur Vermeidung von Umwelt- und Gesundheitsrisiken aus Bauprodukten"},{"$f":"'BNB-System'!G175","v":10},null,{"$f":"'Bewertung durch Anwender'!G179","v":0},{"$f":"'Bewertung durch Anwender'!N179","v":0}]
[null,null,{"$f":"'BNB-System'!F176","v":"Lüftungskonzept"},{"$f":"'BNB-System'!G176","v":10},null,{"$f":"'Bewertung durch Anwender'!G180","v":0},{"$f":"'Bewertung durch Anwender'!N180","v":0}]
[null,null,{"$f":"'BNB-System'!F177","v":"Abfallkonzept / Wertstoffkonzept"},{"$f":"'BNB-System'!G177","v":5},null,{"$f":"'Bewertung durch Anwender'!G181","v":0},{"$f":"'Bewertung durch Anwender'!N181","v":0}]
[null,null,{"$f":"'BNB-System'!F178","v":"Tages- / Kunstlichtoptimierung"},{"$f":"'BNB-System'!G178","v":10},null,{"$f":"'Bewertung durch Anwender'!G182","v":0},{"$f":"'Bewertung durch Anwender'!N182","v":0}]
[null,null,{"$f":"'BNB-System'!F179","v":"Konzept zur Sicherung der Reinigungs- und Instandhaltungsfreundlichkeit"},{"$f":"'BNB-System'!G179","v":10},null,{"$f":"'Bewertung durch Anwender'!G183","v":0},{"$f":"'Bewertung durch Anwender'!N183","v":0}]
[null,null,{"$f":"'BNB-System'!F180","v":"Anpassbarkeits-, Rückbau- und Recyclingkonzept"},{"$f":"'BNB-System'!G180","v":10},null,{"$f":"'Bewertung durch Anwender'!G184","v":0},{"$f":"'Bewertung durch Anwender'!N184","v":0}]
[null,null,{"$f":"'BNB-System'!F181","v":"Konzept zur Vermeidung und Beherrschung von Risiken"},{"$f":"'BNB-System'!G181","v":10},null,{"$f":"'Bewertung durch Anwender'!G185","v":0},{"$f":"'Bewertung durch Anwender'!N185","v":0}]
[null,null,{"$f":"'BNB-System'!F182","v":"Sonstige Konzepte zum Nachhaltigen Bauen"},{"$f":"'BNB-System'!G182","v":10},null,{"$f":"'Bewertung durch Anwender'!G186","v":0},{"$f":"'Bewertung durch Anwender'!N186","v":0}]
[null,null,{"$f":"'BNB-System'!F183","v":"Prüfung der Planungsunterlagen durch unabhängige Dritte"},{"$f":"'BNB-System'!G183","v":5},null,{"$f":"'Bewertung durch Anwender'!G187","v":0},{"$f":"'Bewertung durch Anwender'!N187","v":0}]
[null,null,{"$f":"'BNB-System'!F184","v":"Durchführung von Variantenvergleichen"},{"$f":"'BNB-System'!G184","v":10},null,{"$f":"'Bewertung durch Anwender'!G188","v":0},{"$f":"'Bewertung durch Anwender'!N188","v":0}]
[null,{"$f":"'BNB-System'!E185","v":" 5.1.4"},{"$f":"'BNB-System'!F185","v":"Ausschreibung und Vergabe"},{"$f":"'BNB-System'!G185","v":100},{"$f":"'BNB-System'!J185","v":9.5238095238095247E-3},{"$f":"'Bewertung durch Anwender'!G189","v":0},{"$f":"'Bewertung durch Anwender'!N189","v":0},null,null,null,null,{"$f":"'BNB-System'!K185","v":200},{"$f":"IF(ISNUMBER(G189*E189/100),G189*E189/100,0)","v":0},{"$f":"IF(ISNUMBER(H189*E189/100),H189*E189/100,0)","v":0}]
[null,{"$f":"'BNB-System'!E186","v":" 5.1.5"},{"$f":"'BNB-System'!F186","v":"Voraussetzungen für eine optimale Bewirtschaftung"},{"$f":"'BNB-System'!G186","v":100},{"$f":"'BNB-System'!J186","v":9.5238095238095247E-3},{"$f":"'Bewertung durch Anwender'!G190","v":0},{"$f":"'Bewertung durch Anwender'!N190","v":0},{"$f":"SUM(H191:H194)","v":0},null,null,null,{"$f":"'BNB-System'!K186","v":200},{"$f":"IF(ISNUMBER(G190*E190/100),G190*E190/100,0)","v":0},{"$f":"IF(ISNUMBER(H190*E190/100),H190*E190/100,0)","v":0}]
[null,null,{"$f":"'BNB-System'!F187","v":"Erstellung einer Gebäudeakte / Objektdokumentation"},{"$f":"'BNB-System'!G187","v":25},null,{"$f":"'Bewertung durch Anwender'!G191","v":0},{"$f":"'Bewertung durch Anwender'!N191","v":0}]
[null,null,{"$f":"'BNB-System'!F188","v":"Erstellung von Wartungs-, Inspektions-, Betriebs-, und Pflegeanleitungen"},{"$f":"'BNB-System'!G188","v":25},null,{"$f":"'Bewertung durch Anwender'!G192","v":0},{"$f":"'Bewertung durch Anwender'!N192","v":0}]
[null,null,{"$f":"'BNB-System'!F189","v":"Anpassung der Pläne und Berechnungen an das realisierte Gebäude"},{"$f":"'BNB-System'!G189","v":25},null,{"$f":"'Bewertung durch Anwender'!G193","v":0},{"$f":"'Bewertung durch Anwender'!N193","v":0}]
[null,null,{"$f":"'BNB-System'!F190","v":"Erstellung eines Nutzerhandbuches"},{"$f":"'BNB-System'!G190","v":25},null,{"$f":"'Bewertung durch Anwender'!G194","v":0},{"$f":"'Bewertung durch Anwender'!N194","v":0}]
[null,null,{"$f":"'BNB-System'!F191","v":"Bauausführung"}]
[null,{"$f":"'BNB-System'!E192","v":" 5.2.1"},{"$f":"'BNB-System'!F192","v":"Baustelle / Bauprozess"},{"$f":"'BNB-System'!G192","v":100},{"$f":"'BNB-System'!J192","v":9.5238095238095247E-3},{"$f":"'Bewertung durch Anwender'!G196","v":0},{"$f":"'Bewertung durch Anwender'!N196","v":0},{"$f":"SUM(H197:H200)","v":0},null,null,null,{"$f":"'BNB-System'!K192","v":200},{"$f":"IF(ISNUMBER(G196*E196/100),G196*E196/100,0)","v":0},{"$f":"IF(ISNUMBER(H196*E196/100),H196*E196/100,0)","v":0}]
[null,null,{"$f":"'BNB-System'!F193","v":"Wertstoffoptimierte Baustelle"},{"$f":"'BNB-System'!G193","v":25},null,{"$f":"'Bewertung durch Anwender'!G197","v":0},{"$f":"'Bewertung durch Anwender'!N197","v":0}]
[null,null,{"$f":"'BNB-System'!F194","v":"Lärmarme Baustelle"},{"$f":"'BNB-System'!G194","v":25},null,{"$f":"'Bewertung durch Anwender'!G198","v":0},{"$f":"'Bewertung durch Anwender'!N198","v":0}]
[null,null,{"$f":"'BNB-System'!F195","v":"Staubarme Baustelle"},{"$f":"'BNB-System'!G195","v":25},null,{"$f":"'Bewertung durch Anwender'!G199","v":0},{"$f":"'Bewertung durch Anwender'!N199","v":0}]
[null,null,{"$f":"'BNB-System'!F196","v":"Bodenschutz auf der Baustelle"},{"$f":"'BNB-System'!G196","v":25},null,{"$f":"'Bewertung durch Anwender'!G200","v":0},{"$f":"'Bewertung durch Anwender'!N200","v":0}]
[null,{"$f":"'BNB-System'!E197","v":" 5.2.2"},{"$f":"'BNB-System'!F197","v":"Qualitätssicherung der Bauausführung"},{"$f":"'BNB-System'!G197","v":100},{"$f":"'BNB-System'!J197","v":1.4285714285714285E-2},{"$f":"'Bewertung durch Anwender'!G201","v":0},{"$f":"'Bewertung durch Anwender'!N201","v":0},{"$f":"SUM(H202:H203)","v":0},null,null,null,{"$f":"'BNB-System'!K197","v":300},{"$f":"IF(ISNUMBER(G201*E201/100),G201*E201/100,0)","v":0},{"$f":"IF(ISNUMBER(H201*E201/100),H201*E201/100,0)","v":0}]
[null,null,{"$f":"'BNB-System'!F198","v":"Dokumentation"},{"$f":"'BNB-System'!G198","v":50},null,{"$f":"'Bewertung durch Anwender'!G202","v":0},{"$f":"'Bewertung durch Anwender'!N202","v":0}]
[null,null,{"$f":"'BNB-System'!F199","v":"Messungen zur Qualitätskontrolle"},{"$f":"'BNB-System'!G199","v":50},null,{"$f":"'Bewertung durch Anwender'!G203","v":0},{"$f":"'Bewertung durch Anwender'!N203","v":0}]
[null,{"$f":"'BNB-System'!E200","v":" 5.2.3"},{"$f":"'BNB-System'!F200","v":"Systematische Inbetriebnahme"},{"$f":"'BNB-System'!G200","v":100},{"$f":"'BNB-System'!J200","v":1.4285714285714285E-2},{"$f":"'Bewertung durch Anwender'!G204","v":0},{"$f":"'Bewertung durch Anwender'!N204","v":0},null,null,null,null,{"$f":"'BNB-System'!K200","v":300},{"$f":"IF(ISNUMBER(G204*E204/100),G204*E204/100,0)","v":0},{"$f":"IF(ISNUMBER(H204*E204/100),H204*E204/100,0)","v":0}]
[]
[]
[null,{"$f":"'BNB-System'!E203","v":"Standortmerkmale"},null,null,{"$f":"'BNB-System'!J203","v":1},{"$f":"Zielvereinbarung!G207","v":0},{"$f":"'Bewertung durch Anwender'!N207","v":0},{"$f":"H210*($E$210/100)+H216*($E$216/100)+H223*($E$223/100)+H228*($E$228/100)+H233*($E$233/100)+H244*($E$244/100)","v":0},null,null,null,{"$f":"'BNB-System'!K203","v":1300}]
[]
[null,null,{"$f":"'BNB-System'!F205","v":"Standortmerkmale"}]
[null,{"$f":"'BNB-System'!E206","v":" 6.1.1"},{"$f":"'BNB-System'!F206","v":"Risiken am Mikrostandort"},{"$f":"'BNB-System'!G206","v":100},{"$f":"'BNB-System'!J206","v":0.15384615384615385},{"$f":"'Bewertung durch Anwender'!G210","v":0},{"$f":"'Bewertung durch Anwender'!N210","v":0},{"$f":"SUM(H211:H215)","v":0},null,null,null,{"$f":"'BNB-System'!K206","v":200},{"$f":"IF(ISNUMBER(G210*E210/100),G210*E210/100,0)","v":0},{"$f":"IF(ISNUMBER(H210*E210/100),H210*E210/100,0)","v":0}]
[null,null,{"$f":"'BNB-System'!F207","v":"Risiken aus Man-Made-Hazards (Unfälle)"},{"$f":"'BNB-System'!G207","v":20},null,{"$f":"'Bewertung durch Anwender'!G211","v":0},{"$f":"'Bewertung durch Anwender'!N211","v":0}]
[null,null,{"$f":"'BNB-System'!F208","v":"Risiken aus Erdbeben"},{"$f":"'BNB-System'!G208","v":20},null,{"$f":"'Bewertung durch Anwender'!G212","v":0},{"$f":"'Bewertung durch Anwender'!N212","v":0}]
[null,null,{"$f":"'BNB-System'!F209","v":"Risiken aus Lawinen"},{"$f":"'BNB-System'!G209","v":20},null,{"$f":"'Bewertung durch Anwender'!G213","v":0},{"$f":"'Bewertung durch Anwender'!N213","v":0}]
[null,null,{"$f":"'BNB-System'!F210","v":"Risiken aus Sturm"},{"$f":"'BNB-System'!G210","v":20},null,{"$f":"'Bewertung durch Anwender'!G214","v":0},{"$f":"'Bewertung durch Anwender'!N214","v":0}]
[null,null,{"$f":"'BNB-System'!F211","v":"Risiken aus Hochwasser"},{"$f":"'BNB-System'!G211","v":20},null,{"$f":"'Bewertung durch Anwender'!G215","v":0},{"$f":"'Bewertung durch Anwender'!N215","v":0}]
[null,{"$f":"'BNB-System'!E212","v":" 6.1.2"},{"$f":"'BNB-System'!F212","v":"Verhältnisse am Mikrostandort"},{"$f":"'BNB-System'!G212","v":100},{"$f":"'BNB-System'!J212","v":0.15384615384615385},{"$f":"'Bewertung durch Anwender'!G216","v":0},{"$f":"'Bewertung durch Anwender'!N216","v":0},{"$f":"SUM(H217:H222)","v":0},null,null,null,{"$f":"'BNB-System'!K212","v":200},{"$f":"IF(ISNUMBER(G216*E216/100),G216*E216/100,0)","v":0},{"$f":"IF(ISNUMBER(H216*E216/100),H216*E216/100,0)","v":0}]
[null,null,{"$f":"'BNB-System'!F213","v":"Außenluftqualität"},{"$f":"'BNB-System'!G213","v":16},null,{"$f":"'Bewertung durch Anwender'!G217","v":0},{"$f":"'Bewertung durch Anwender'!N217","v":0}]
[null,null,{"$f":"'BNB-System'!F214","v":"Außenlärmpegel"},{"$f":"'BNB-System'!G214","v":20},null,{"$f":"'Bewertung durch Anwender'!G218","v":0},{"$f":"'Bewertung durch Anwender'!N218","v":0}]
[null,null,{"$f":"'BNB-System'!F215","v":"Baugrundverhältnisse, Bodenbelastungen"},{"$f":"'BNB-System'!G215","v":16},null,{"$f":"'Bewertung durch Anwender'!G219","v":0},{"$f":"'Bewertung durch Anwender'!N219","v":0}]
[null,null,{"$f":"'BNB-System'!F216","v":"Elektromagnetische Felder"},{"$f":"'BNB-System'!G216","v":16},null,{"$f":"'Bewertung durch Anwender'!G220","v":0},{"$f":"'Bewertung durch Anwender'!N220","v":0}]
[null,null,{"$f":"'BNB-System'!F217","v":"Vorkommen von Radon"},{"$f":"'BNB-System'!G217","v":16},null,{"$f":"'Bewertung durch Anwender'!G221","v":0},{"$f":"'Bewertung durch Anwender'!N221","v":0}]
[null,null,{"$f":"'BNB-System'!F218","v":"Stadt- und Landschaftsbild / Sichtbeziehungen"},{"$f":"'BNB-System'!G218","v":16},null,{"$f":"'Bewertung durch Anwender'!G222","v":0},{"$f":"'Bewertung durch Anwender'!N222","v":0}]
[null,{"$f":"'BNB-System'!E219","v":" 6.1.3"},{"$f":"'BNB-System'!F219","v":"Quartiersmerkmale"},{"$f":"'BNB-System'!G219","v":100},{"$f":"'BNB-System'!J219","v":0.15384615384615385},{"$f":"'Bewertung durch Anwender'!G223","v":0},{"$f":"'Bewertung durch Anwender'!N223","v":0},{"$f":"SUM(H224:H227)","v":0},null,null,null,{"$f":"'BNB-System'!K219","v":200},{"$f":"IF(ISNUMBER(G223*E223/100),G223*E223/100,0)","v":0},{"$f":"IF(ISNUMBER(H223*E223/100),H223*E223/100,0)","v":0}]
[null,null,{"$f":"'BNB-System'!F220","v":"Image, Attraktivität"},{"$f":"'BNB-System'!G220","v":25},null,{"$f":"'Bewertung durch Anwender'!G224","v":0},{"$f":"'Bewertung durch Anwender'!N224","v":0}]
[null,null,{"$f":"'BNB-System'!F221","v":"Synergie- und Konfliktpotenziale"},{"$f":"'BNB-System'!G221","v":25},null,{"$f":"'Bewertung durch Anwender'!G225","v":0},{"$f":"'Bewertung durch Anwender'!N225","v":0}]
[null,null,{"$f":"'BNB-System'!F222","v":"Kriminalität"},{"$f":"'BNB-System'!G222","v":25},null,{"$f":"'Bewertung durch Anwender'!G226","v":0},{"$f":"'Bewertung durch Anwender'!N226","v":0}]
[null,null,{"$f":"'BNB-System'!F223","v":"Pflege und Erhaltungszustand"},{"$f":"'BNB-System'!G223","v":25},null,{"$f":"'Bewertung durch Anwender'!G227","v":0},{"$f":"'Bewertung durch Anwender'!N227","v":0}]
[null,{"$f":"'BNB-System'!E224","v":" 6.1.4"},{"$f":"'BNB-System'!F224","v":"Verkehrsanbindung"},{"$f":"'BNB-System'!G224","v":100},{"$f":"'BNB-System'!J224","v":0.23076923076923078},{"$f":"'Bewertung durch Anwender'!G228","v":0},{"$f":"'Bewertung durch Anwender'!N228","v":0},{"$f":"SUM(H229:H232)","v":0},null,null,null,{"$f":"'BNB-System'!K224","v":300},{"$f":"IF(ISNUMBER(G228*E228/100),G228*E228/100,0)","v":0},{"$f":"IF(ISNUMBER(H228*E228/100),H228*E228/100,0)","v":0}]
[null,null,{"$f":"'BNB-System'!F225","v":"Verkehrssicherung des Zugangs zur Liegenschaft"},{"$f":"'BNB-System'!G225","v":30},null,{"$f":"'Bewertung durch Anwender'!G229","v":0},{"$f":"'Bewertung durch Anwender'!N229","v":0}]
[null,null,{"$f":"'BNB-System'!F226","v":"Erreichbarkeit des nächstgelegenen Haupt-/ Fernbahnhofs"},{"$f":"'BNB-System'!G226","v":30},null,{"$f":"'Bewertung durch Anwender'!G230","v":0},{"$f":"'Bewertung durch Anwender'!N230","v":0}]
[null,null,{"$f":"'BNB-System'!F227","v":"Ereichbarkeit der nächstgelegenen Haltestelle des ÖPNV"},{"$f":"'BNB-System'!G227","v":30},null,{"$f":"'Bewertung durch Anwender'!G231","v":0},{"$f":"'Bewertung durch Anwender'!N231","v":0}]
[null,null,{"$f":"'BNB-System'!F228","v":"Erschließung der Liegenschaft durch Fuß- und Radweg"},{"$f":"'BNB-System'!G228","v":40},null,{"$f":"'Bewertung durch Anwender'!G232","v":0},{"$f":"'Bewertung durch Anwender'!N232","v":0}]
[null,{"$f":"'BNB-System'!E229","v":" 6.1.5"},{"$f":"'BNB-System'!F229","v":"Nähe zu nutzungsrelevanten Einrichtungen"},{"$f":"'BNB-System'!G229","v":100},{"$f":"'BNB-System'!J229","v":0.15384615384615385},{"$f":"'Bewertung durch Anwender'!G233","v":0},{"$f":"'Bewertung durch Anwender'!N233","v":0},{"$f":"SUM(H234:H243)","v":0},null,null,null,{"$f":"'BNB-System'!K229","v":200},{"$f":"IF(ISNUMBER(G233*E233/100),G233*E233/100,0)","v":0},{"$f":"IF(ISNUMBER(H233*E233/100),H233*E233/100,0)","v":0}]
[null,null,{"$f":"'BNB-System'!F230","v":"Gastronomie"},{"$f":"'BNB-System'!G230","v":10},null,{"$f":"'Bewertung durch Anwender'!G234","v":0},{"$f":"'Bewertung durch Anwender'!N234","v":0}]
[null,null,{"$f":"'BNB-System'!F231","v":"Nahversorgung"},{"$f":"'BNB-System'!G231","v":10},null,{"$f":"'Bewertung durch Anwender'!G235","v":0},{"$f":"'Bewertung durch Anwender'!N235","v":0}]
[null,null,{"$f":"'BNB-System'!F232","v":"Parkanlagen und Freiräume"},{"$f":"'BNB-System'!G232","v":10},null,{"$f":"'Bewertung durch Anwender'!G236","v":0},{"$f":"'Bewertung durch Anwender'!N236","v":0}]
[null,null,{"$f":"'BNB-System'!F233","v":"Bildung"},{"$f":"'BNB-System'!G233","v":10},null,{"$f":"'Bewertung durch Anwender'!G237","v":0},{"$f":"'Bewertung durch Anwender'!N237","v":0}]
[null,null,{"$f":"'BNB-System'!F234","v":"Öffentliche Verwaltung"},{"$f":"'BNB-System'!G234","v":10},null,{"$f":"'Bewertung durch Anwender'!G238","v":0},{"$f":"'Bewertung durch Anwender'!N238","v":0}]
[null,null,{"$f":"'BNB-System'!F235","v":"Medizinische Versorgung"},{"$f":"'BNB-System'!G235","v":10},null,{"$f":"'Bewertung durch Anwender'!G239","v":0},{"$f":"'Bewertung durch Anwender'!N239","v":0}]
[null,null,{"$f":"'BNB-System'!F236","v":"Sportstätten"},{"$f":"'BNB-System'!G236","v":10},null,{"$f":"'Bewertung durch Anwender'!G240","v":0},{"$f":"'Bewertung durch Anwender'!N240","v":0}]
[null,null,{"$f":"'BNB-System'!F237","v":"Freizeit"},{"$f":"'BNB-System'!G237","v":10},null,{"$f":"'Bewertung durch Anwender'!G241","v":0},{"$f":"'Bewertung durch Anwender'!N241","v":0}]
[null,null,{"$f":"'BNB-System'!F238","v":"Synergie- und Konfliktpotenziale"},{"$f":"'BNB-System'!G238","v":10},null,{"$f":"'Bewertung durch Anwender'!G242","v":0},{"$f":"'Bewertung durch Anwender'!N242","v":0}]
[null,null,{"$f":"'BNB-System'!F239","v":"Dienstleister"},{"$f":"'BNB-System'!G239","v":10},null,{"$f":"'Bewertung durch Anwender'!G243","v":0},{"$f":"'Bewertung durch Anwender'!N243","v":0}]
[null,{"$f":"'BNB-System'!E240","v":" 6.1.6"},{"$f":"'BNB-System'!F240","v":"Anliegende Medien / Erschließung"},{"$f":"'BNB-System'!G240","v":100},{"$f":"'BNB-System'!J240","v":0.15384615384615385},{"$f":"'Bewertung durch Anwender'!G244","v":0},{"$f":"'Bewertung durch Anwender'!N244","v":0},{"$f":"SUM(H245:H248)","v":0},null,null,null,{"$f":"'BNB-System'!K240","v":200},{"$f":"IF(ISNUMBER(G244*E244/100),G244*E244/100,0)","v":0},{"$f":"IF(ISNUMBER(H244*E244/100),H244*E244/100,0)","v":0}]
[null,null,{"$f":"'BNB-System'!F241","v":"Leitungsgebundene Energie"},{"$f":"'BNB-System'!G241","v":25},null,{"$f":"'Bewertung durch Anwender'!G245","v":0},{"$f":"'Bewertung durch Anwender'!N245","v":0}]
[null,null,{"$f":"'BNB-System'!F242","v":"Solarenergie"},{"$f":"'BNB-System'!G242","v":25},null,{"$f":"'Bewertung durch Anwender'!G246","v":0},{"$f":"'Bewertung durch Anwender'!N246","v":0}]
[null,null,{"$f":"'BNB-System'!F243","v":"Breitband-Anschluss"},{"$f":"'BNB-System'!G243","v":25},null,{"$f":"'Bewertung durch Anwender'!G247","v":0},{"$f":"'Bewertung durch Anwender'!N247","v":0}]
[null,null,{"$f":"'BNB-System'!F244","v":"Regenwasserversickerung"},{"$f":"'BNB-System'!G244","v":50},null,{"$f":"'Bewertung durch Anwender'!G248","v":0},{"$f":"'Bewertung durch Anwender'!N248","v":0}]

{"sheet":"Gültigkeitsliste","index":4,"n_rows":3,"n_cols":1,"rows_kept":3,"cut":false,"hidden":true,"merged":[]}
["Erfüllt / nicht erfüllt"]
["o"]
["x"]

{"sheet":"BNB-System","index":5,"n_rows":245,"n_cols":11,"rows_kept":245,"cut":false,"hidden":true,"merged":[[3,4,3,5],[244,1,244,11],[3,1,3,3],[0,1,0,4],[1,1,1,5],[2,1,2,5]]}
[null,"Projekt:"]
[null,"Bewertungssystem Nachhaltiges Bauen (BNB)"]
[null,"Systemvariante Unterrichtsgebäude, Modul Neubau (BNB_UN) - Version 2017"]
[null,"identische Inhalte *",null,null,"Nachhaltigkeitskriterien",null,"Zielwert\nmax. Punktzahl","Punktzahl","Bedeutungs-faktor","Gewichtung\nGesamt-bewertung","Zielwert"]
[]
[null,null,null,null,"Ökologische Qualität",null,null,null,null,0.22500000000000001,{"$f":"SUM(K9:K22)","v":1800}]
[]
[null,null,null,null,null,"Wirkungen auf die globale und lokale  Umwelt"]
[null,null,null,null," 1.1.1","Treibhauspotenzial (GWP)",100,null,3,{"$f":"K9/$K6*J6","v":3.7499999999999999E-2},{"$f":"G9*I9","v":300}]
[null,null,null,null," 1.1.2","Ozonschichtabbaupotenzial (ODP)",100,null,1,{"$f":"K10/K6*J6","v":1.2499999999999999E-2},100]
[null,null,null,null," 1.1.3","Ozonbildungspotenzial (POCP)",100,null,1,{"$f":"K11/K6*J6","v":1.2499999999999999E-2},100]
[null,null,null,null," 1.1.4","Versauerungspotenzial (AP)",100,null,1,{"$f":"K12/K6*J6","v":1.2499999999999999E-2},100]
[null,null,null,null," 1.1.5","Überdüngungspotenzial (EP)",100,null,1,{"$f":"K13/K6*J6","v":1.2499999999999999E-2},100]
[null,"BN ",null,null," 1.1.6","Risiken für die lokale Umwelt",100,null,3,{"$f":"K14/K6*J6","v":3.7499999999999999E-2},300]
[null,"BN ",null,null," 1.1.7","Nachhaltige Materialgewinnung / Biodiversität",100,null,1,{"$f":"K15/K6*J6","v":1.2499999999999999E-2},100]
[null,null,null,null,null,"Ressourceninanspruchnahme"]
[null,null,null,null," 1.2.1","Primärenergiebedarf",100,{"$f":"IF(SUM(H18:H20)>100,100,SUM(H18:H20))","v":0},3,{"$f":"K17/$K6*J6","v":3.7499999999999999E-2},{"$f":"G17*I17","v":300}]
[null,null,null,null,null,"Primärenergiebedarf nicht erneuerbar (PEne)",60]
[null,null,null,null,null,"Gesamtenergiebedarf (PEges)",40]
[null,null,null,null,null,"Anteil erneuerbarer Primärenergie (PEe)",20]
[null,null,null,"UK"," 1.2.3","Trinkwasserbedarf und Abwasseraufkommen",100,null,2,{"$f":"K21/$K$6*$J$6","v":2.4999999999999998E-2},{"$f":"G21*I21","v":200}]
[null,"BN ",null,null," 1.2.4","Flächeninanspruchnahme",100,null,2,{"$f":"K22/$K$6*$J$6","v":2.4999999999999998E-2},{"$f":"G22*I22","v":200}]
[]
[null,null,null,null,"Ökonomische Qualität",null,null,null,null,0.22500000000000001,{"$f":"SUM(K27:K29)","v":500}]
[]
[null,null,null,null,null,"Lebenszykluskosten"]
[null,null,null,null," 2.1.1","Gebäudebezogene Kosten im Lebenszyklus",100,null,3,{"$f":"K27/$K24*J24","v":0.13500000000000001},{"$f":"G27*I27","v":300}]
[null,null,null,null,null,"Wertentwicklung"]
[null,null,null,null," 2.2.2","Anpassungsfähigkeit",100,{"$f":"IF(SUM(H30:H35)>100,100,SUM(H30:H35))","v":0},2,{"$f":"K29/$K$24*$J$24","v":9.0000000000000011E-2},{"$f":"G29*I29","v":200}]
[null,null,null,null,null,"Lichte Raumhöhe",15]
[null,null,null,null,null,"Gebäudetiefe",15]
[null,null,null,null,null,"Vertikale Erschlließung",15]
[null,null,null,null,null,"Grundrisse",25]
[null,null,null,null,null,"Konstruktion",20]
[null,null,null,null,null,"Technische Ausstattung",10]
[]
[null,null,null,null,"Soziokulturelle und funktionale Qualität",null,null,null,null,0.22500000000000001,{"$f":"SUM(K40:K117)","v":2700}]
[]
[null,null,null,null,null,"Gesundheit, Behaglichkeit und Nutzerzufriedenheit"]
[null,"BN ","BK","UK"," 3.1.1","Thermischer Komfort",100,{"$f":"IF(SUM(H42:H50)>100,100,SUM(H42:H50))","v":0},3,{"$f":"K40/$K$37*$J$37","v":2.4999999999999998E-2},{"$f":"G40*I40","v":300}]
[null,"BN ",null,null,null,"Winter"]
[null,"BN ",null,null,null,"Operative Temperatur",10]
[null,"BN ",null,null,null," Zugluft",10]
[null,"BN ",null,null,null,"Stahlungstemperaturasymmetrie und Fußbodentemperatur",10]
[null,"BN ",null,null,null,"Relative Luftfeuchte",10]
[null,"BN ",null,null,null,"Sommer"]
[null,"BN ",null,null,null,"Operative Temperatur",30]
[null,"BN ",null,null,null," Zugluft",10]
[null,"BN ",null,null,null,"Stahlungstemperaturasymmetrie und Fußbodentemperatur",10]
[null,"BN ",null,null,null,"Relative Luftfeuchte",10]
[null,"BN ","BK","UK"," 3.1.3","Innenraumlufthygiene",100,{"$f":"IF(SUM(H52:H53)>100,100,SUM(H52:H53))","v":0},3,{"$f":"K51/$K$37*$J$37","v":2.4999999999999998E-2},{"$f":"G51*I51","v":300}]
[null,"BN ","BK","UK",null,"Flüchtige organische Stoffe (VOC) und Formaldehyd",50]
[null,"BN ","BK","UK",null,"Außenluftvolumenstrom",50]
[null,"BN ","BK","UK"," 3.1.4","Akustischer Komfort",100,{"$f":"IF(SUM(H56:H63)>100,100,SUM(H56:H63))","v":0},2,{"$f":"K54/$K$37*$J$37","v":1.6666666666666666E-2},{"$f":"G54*I54","v":200}]
[null,null,null,null,null,"Räume Gruppe A"]
[null,null,null,null,null,"Musik",100]
[null,null,null,null,null,"Sprache/ Vortrag",100]
[null,null,null,null,null,"Unterricht/ Kommunikation",100]
[null,null,null,null,null,"Sport",100]
[null,null,null,null,null,"Räume Gruppe B"]
[null,null,null,null,null,"Einzel- und Mehrpersonenbüros bis 100 m3",100]
[null,null,null,null,null,"Mehrpersonenbüros über 100 m3",100]
[null,null,null,null,null,"Weitere Räume",100]
[null,null,null,"UK"," 3.1.5","Visueller Komfort",100,{"$f":"IF(SUM(H65:H71)>100,100,SUM(H65:H71))","v":0},2,{"$f":"K64/$K$37*$J$37","v":1.6666666666666666E-2},{"$f":"G64*I64","v":200}]
[null,null,null,"UK",null,"Tageslichtverfügbarkeit Gesamtgebäude",15]
[null,null,null,"UK",null,"Tageslichtverfügbarkeit Unterrichtsräume und weitere ständige Arbeitsplätze",15]
[null,null,null,"UK",null,"Nachweis der Sichtverbindung nach außen",35]
[null,null,null,"UK",null,"Blendfreiheit Tageslicht",10]
[null,null,null,"UK",null,"Blendfreiheit  Kunstlicht",5]
[null,null,null,"UK",null,"Lichtverteilung",20]
[null,null,null,"UK",null,"Farbwiedergabe",10]
[null,null,null,"UK"," 3.1.6","Einflussnahmemöglichkeiten durch Nutzer",100,{"$f":"IF(SUM(H73:H81)>100,100,SUM(H73:H81))","v":0},2,{"$f":"K72/$K$37*$J$37","v":1.6666666666666666E-2},{"$f":"G72*I72","v":200}]
[null,null,null,"UK",null,"Lüftung",10]
[null,null,null,"UK",null,"Sonnenschutz",10]
[null,null,null,"UK",null,"Blendschutz",10]
[null,null,null,"UK",null,"Temperaturen während der Heizperiode",10]
[null,null,null,"UK",null,"Temperaturen außerhalb der Heizperiode",15]
[null,null,null,"UK",null,"Steuerung von Tageslicht",10]
[null,null,null,"UK",null,"Steuerung von  Kunstlicht",10]
[null,null,null,"UK",null,"Bedienfreundlichkeit",10]
[null,null,null,"UK",null,"Funktionskonzept der Haustechnik",15]
[null,null,null,"UK"," 3.1.7","Aufenthaltsmerkmale im Außenraum",100,{"$f":"IF(SUM(H83:H86)>100,100,SUM(H83:H86))","v":0},2,{"$f":"K82/$K$37*$J$37","v":1.6666666666666666E-2},{"$f":"G82*I82","v":200}]
[null,null,null,null,null,"Anzahl und Vielfalt Sitzgelegenheiten",30]
[null,null,null,null,null,"Anzahlund Vielfalt der Spiel- und Sportmöglichkeiten",15]
[null,null,null,null,null,"Zuordnung von Freibereichen zu Innenräumen",20]
[null,null,null,null,null,"Ausstattungsmerkmale",39]
[null,"BN ","BK","UK"," 3.1.8","Sicherheit",100,null,1,{"$f":"K87/$K$37*$J$37","v":8.3333333333333332E-3},{"$f":"G87*I87","v":100}]
[null,null,null,"UK"," 3.1.9","Innenraumqualität",100,null,3,{"$f":"K88/$K$37*$J$37","v":2.4999999999999998E-2},{"$f":"G88*I88","v":300}]
[null,null,null,null,null,"Aufenthaltsqualitäten der Erschließungsflächen",45]
[null,null,null,null,null,"Innere Sitzbeziehung",15]
[null,null,null,null,null,"Flexibilität der Raumnutzung",30]
[null,null,null,null,null,"Aufbewahrungsmöglichkeiten",40]
[null,null,null,null,null,"Funktionalität"]
[null,null,null,"UK"," 3.2.1","Barrierefreiheit",100,null,2,{"$f":"K94/$K$37*$J$37","v":1.6666666666666666E-2},{"$f":"G94*I94","v":200}]
[null,null,null,"UK"," 3.2.4","Zugänglichkeit",{"$f":"IF(SUM(G96:G99)>100,100,SUM(G96:G99))","v":100},{"$f":"IF(SUM(H96:H99)>100,100,SUM(H96:H99))","v":0},2,{"$f":"K95/$K$37*$J$37","v":1.6666666666666666E-2},{"$f":"G95*I95","v":200}]
[null,null,null,null,null,"Grundsätzliche öffentliche Zugänglichkeit des Gebäudes",20]
[null,null,null,null,null,"Qualitative Merkmale der öffentlichen Zugänglichkeit des Gebäudes",50]
[null,null,null,null,null,"Nutzungsmerkmale der Zugänglichkeit",50]
[null,null,null,null,null,"Qualitative Aspekte der öffentlichen Zugänglichkeit der Freiflächen",20]
[null,"BN ","BK","UK"," 3.2.5","Mobilitätsinfrastruktur",{"$f":"IF(SUM(G101:G103)>100,100,SUM(G101:G103))","v":100},{"$f":"IF(SUM(H101:H103)>100,100,SUM(H101:H103))","v":0},1,{"$f":"K100/$K$37*$J$37","v":8.3333333333333332E-3},{"$f":"G100*I100","v":100}]
[null,null,null,null,null,"Anzahl der Fahrradstellplätze",40]
[null,null,null,null,null,"Anzahl der Lademöglichkeiten und Carsharing-Stellplätze",20]
[null,null,null,null,null,"Qualitative Anforderungen an Fahrradstellplätze",60]
[null,null,null,null,null,"Sicherung der Gestaltungsqualität"]
[null,"BN ",null,null," 3.3.1","Gestalterische und städtebauliche Qualität",{"$f":"IF(SUM(G106:G112)>100,100,SUM(G106:G112))","v":100},{"$f":"IF(AND(H106>0,H110<=H111),SUM(H106:H109),IF(AND(H106>0,H111<=H110),SUM(H106:H109),IF(H110>0,H110,IF(H111>0,H111,H112))))","v":0},3,{"$f":"K105/$K$37*$J$37","v":2.4999999999999998E-2},{"$f":"G105*I105","v":300}]
[null,"BN ",null,null,null,"Durchführung von Planungswettbewerben",20]
[null,"BN ",null,null,null,"Wettbewerbsverfahren",40]
[null,"BN ",null,null,null,"Ausführung des Entwurfs eines der Preisträger",30]
[null,"BN ",null,null,null,"Beauftragung des Planungsteams",10]
[null,"BN ",null,null,null,"Auszeichnung mit einem Architekturpreis",60]
[null,"BN ",null,null,null,"Unabhängiges Expertengremium",40]
[null,"BN ",null,null,null,"Sonderfall Mindestanforderung",10]
[null,"BN ",null,null," 3.3.2","Kunst am Bau ",{"$f":"IF(SUM(G114:G117)>100,100,SUM(G114:G117))","v":100},{"$f":"IF(SUM(H114:H117)>100,100,SUM(H114:H117))","v":0},1,{"$f":"K113/$K$37*$J$37","v":8.3333333333333332E-3},{"$f":"G113*I113","v":100}]
[null,null,null,null,null,"Mindestanforderung",10]
[null,null,null,null,null,"Bereitstellung von Mitteln im Rahmen der Bauaufgabe",30]
[null,null,null,null,null,"Umsetzung des Leitfadens Kunst am Bau",40]
[null,null,null,null,null,"Öffentlichkeitsarbeit, Rezeption  der Kunst am Bau",20]
[]
[null,null,null,null,"Technische Qualität",null,null,null,null,0.22500000000000001,{"$f":"SUM(K122:K147)","v":1000}]
[]
[null,null,null,null,null,"technische Ausführung"]
[null,null,null,"UK"," 4.1.1","Schallschutz ",{"$f":"IF(SUM(G123:G126)>100,100,SUM(G123:G126))","v":100},{"$f":"IF(SUM(H123:H126)>100,100,SUM(H123:H126))","v":0},2,{"$f":"K122/$K$119*$J$119","v":4.5000000000000005E-2},{"$f":"G122*I122","v":200}]
[null,null,null,null,null,"Luftschallschutz gegenüber Außenlärm",20]
[null,null,null,null,null,"Luftschallschutz ",30]
[null,null,null,null,null,"Trittschallschutz ",30]
[null,null,null,null,null,"Schallschutz gegenüber haustechnischen Anlagen",20]
[null,"BN ",null,null," 4.1.2","Wärme- und Tauwasserschutz ",{"$f":"IF(SUM(G128:G133)>100,100,SUM(G128:G133))","v":100},{"$f":"IF(SUM(H128:H129)>100,100,SUM(H128:H129))","v":0},2,{"$f":"K127/$K$119*$J$119","v":4.5000000000000005E-2},{"$f":"G127*I127","v":200}]
[null,null,null,null,null,"Mittlere Wärmeduchgangskoeffizienten",30]
[null,null,null,null,null,"Wärmebrückenzuschlag",15]
[null,null,null,null,null,"Klassen der Luftdurchlässigkeit (Fugendurchlässigkeit)",15]
[null,null,null,null,null,"Tauwasserbildung",10]
[null,null,null,null,null,"Luftwechsel",15]
[null,null,null,null,null,"Sonneneintragswert",15]
[null,null,null,"UK"," 4.1.3","Reinigungs- und Instandhaltungsfreundlichkeit",{"$f":"IF(SUM(G135:G144)>100,100,SUM(G135:G144))","v":100},{"$f":"IF(SUM(H135:H144)>100,100,SUM(H135:H144))","v":0},2,{"$f":"K134/$K$119*$J$119","v":4.5000000000000005E-2},{"$f":"G134*I134","v":200}]
[null,null,null,null,null,"Tragkonstruktion",15]
[null,null,null,null,null,"Zugänglichkeit der Außenanlagen",12]
[null,null,null,null,null,"Außenbauteile",9]
[null,null,null,null,null,"Bodenbelag",9]
[null,null,null,null,null,"Schmutzfangzone",9]
[null,null,null,null,null,"Fußbodenleisten",9]
[null,null,null,null,null,"Hindernisfreie Grundrissgestaltung",9]
[null,null,null,null,null,"Einbauten",10]
[null,null,null,null,null,"Zugänglichkeit der Innenglasflächen ",9]
[null,null,null,null,null,"Wände",9]
[null,"BN ","BK","UK"," 4.1.4","Rückbau, Trennung und Verwertung",100,null,2,{"$f":"K145/$K$119*$J$119","v":4.5000000000000005E-2},{"$f":"G145*I145","v":200}]
[null,"BN ","BK","UK"," 4.1.5","Widerstandsfähigkeit gegen Naturgefahren",100,null,1,{"$f":"K146/$K$119*$J$119","v":2.2500000000000003E-2},{"$f":"G146*I146","v":100}]
[null,"BN ","BK","UK"," 4.1.6","Bedienungs- und Instandhaltungsfreundlichkeit der TGA",{"$f":"IF(SUM(G148:G154)>100,100,SUM(G148:G157))","v":100},{"$f":"IF(SUM(H148:H154)>100,100,SUM(H148:H154))","v":0},1,{"$f":"K147/$K$119*$J$119","v":2.2500000000000003E-2},{"$f":"G147*I147","v":100}]
[null,null,null,null,null,"KG 410 Abwasser-, Wasser-, Gasanlagen",12]
[null,null,null,null,null,"KG 420 Wärmeversorgungsanlagen",15]
[null,null,null,null,null,"KG 430 Lufttechnische Anlagen",18]
[null,null,null,null,null,"KG 435 Kälteversorgungsanlagen",15]
[null,null,null,null,null,"KG 440 Starkstromanlagen",24]
[null,null,null,null,null,"KG 460 Förderanlagen",4]
[null,null,null,null,null,"KG 480 Gebäudeautomation",25]
[]
[null,null,null,null,"Prozessqualität",null,null,null,null,0.1,{"$f":"SUM(K159:K200)","v":2100}]
[]
[null,null,null,null,null,"Planung"]
[null,null,null,"UK"," 5.1.1","Projektvorbereitung",{"$f":"IF(SUM(G160:G162)>100,100,SUM(G160:G162))","v":100},{"$f":"IF(SUM(H160:H162)>100,100,SUM(H160:H162))","v":0},3,{"$f":"K159/$K$156*$J$156","v":1.4285714285714285E-2},{"$f":"G159*I159","v":300}]
[null,null,null,"UK",null,"Bedarfsplanung oder vergleichbare Planung",35]
[null,null,null,"UK",null,"Zielvereinbarung",35]
[null,null,null,"UK",null,"Architektenwettbewerb",30]
[null,null,null,"UK"," 5.1.2","Integrale Planung",{"$f":"IF(SUM(G164:G168)>100,100,SUM(G164:G168))","v":100},{"$f":"IF(SUM(H164:H168)>100,100,SUM(H164:H168))","v":0},3,{"$f":"K163/$K$156*$J$156","v":1.4285714285714285E-2},{"$f":"G163*I163","v":300}]
[null,null,null,null,null,"Interdisziplinäres Planungsteam ",20]
[null,null,null,null,null,"Qualifikation des Planungsteams",20]
[null,null,null,null,null,"Integraler Planungsprozess",20]
[null,null,null,null,null,"Nutzerbeteiligung",30]
[null,null,null,null,null,"Öffentlichkeitsbeteiligung",10]
[null,"BN ","BK","UK"," 5.1.3","Komplexität und Optimierung der Planung",{"$f":"IF(SUM(G170:G184)>100,100,SUM(G170:G184))","v":100},{"$f":"IF(SUM(H170:H184)>100,100,SUM(H170:H184))","v":0},3,{"$f":"K169/$K$156*$J$156","v":1.4285714285714285E-2},{"$f":"G169*I169","v":300}]
[null,"BN ","BK","UK",null,"SiGe-Plan",10]
[null,"BN ","BK","UK",null,"Ver- und Entsiegelungskonzept",10]
[null,"BN ","BK","UK",null,"Energiekonzept",15]
[null,"BN ","BK","UK",null,"Mess- und Monitoringkonzept",15]
[null,"BN ","BK","UK",null,"Wasserkonzept",10]
[null,"BN ","BK","UK",null,"Konzept zur Vermeidung von Umwelt- und Gesundheitsrisiken aus Bauprodukten",10]
[null,"BN ","BK","UK",null,"Lüftungskonzept",10]
[null,"BN ","BK","UK",null,"Abfallkonzept / Wertstoffkonzept",5]
[null,"BN ","BK","UK",null,"Tages- / Kunstlichtoptimierung",10]
[null,"BN ","BK","UK",null,"Konzept zur Sicherung der Reinigungs- und Instandhaltungsfreundlichkeit",10]
[null,"BN ","BK","UK",null,"Anpassbarkeits-, Rückbau- und Recyclingkonzept",10]
[null,"BN ","BK","UK",null,"Konzept zur Vermeidung und Beherrschung von Risiken",10]
[null,"BN ","BK","UK",null,"Sonstige Konzepte zum Nachhaltigen Bauen",10]
[null,"BN ","BK","UK",null,"Prüfung der Planungsunterlagen durch unabhängige Dritte",5]
[null,"BN ","BK","UK",null,"Durchführung von Variantenvergleichen",10]
[null,"BN ","BK","UK"," 5.1.4","Ausschreibung und Vergabe",100,null,2,{"$f":"K185/$K$156*$J$156","v":9.5238095238095247E-3},{"$f":"G185*I185","v":200}]
[null,"BN ","BK","UK"," 5.1.5","Voraussetzungen für eine optimale Bewirtschaftung",{"$f":"IF(SUM(G187:G190)>100,100,SUM(G187:G190))","v":100},{"$f":"IF(SUM(H187:H190)>100,100,SUM(H187:H190))","v":0},2,{"$f":"K186/$K$156*$J$156","v":9.5238095238095247E-3},{"$f":"G186*I186","v":200}]
[null,null,null,null,null,"Erstellung einer Gebäudeakte / Objektdokumentation",25]
[null,null,null,null,null,"Erstellung von Wartungs-, Inspektions-, Betriebs-, und Pflegeanleitungen",25]
[null,null,null,null,null,"Anpassung der Pläne und Berechnungen an das realisierte Gebäude",25]
[null,null,null,null,null,"Erstellung eines Nutzerhandbuches",25]
[null,null,null,null,null,"Bauausführung"]
[null,"BN ","BK","UK"," 5.2.1","Baustelle / Bauprozess",{"$f":"IF(SUM(G193:G196)>100,100,SUM(G193:G196))","v":100},{"$f":"IF(SUM(H193:H196)>100,100,SUM(H193:H196))","v":0},2,{"$f":"K192/$K$156*$J$156","v":9.5238095238095247E-3},{"$f":"G192*I192","v":200}]
[null,"BN ","BK","UK",null,"Wertstoffoptimierte Baustelle",25]
[null,"BN ","BK","UK",null,"Lärmarme Baustelle",25]
[null,"BN ","BK","UK",null,"Staubarme Baustelle",25]
[null,"BN ","BK","UK",null,"Bodenschutz auf der Baustelle",25]
[null,"BN ","BK","UK"," 5.2.2","Qualitätssicherung der Bauausführung",{"$f":"IF(SUM(G198:G200)>100,100,SUM(G198:G200))","v":100},{"$f":"IF(SUM(H198:H199)>100,100,SUM(H198:H199))","v":0},3,{"$f":"K197/$K$156*$J$156","v":1.4285714285714285E-2},{"$f":"G197*I197","v":300}]
[null,"BN ","BK","UK",null,"Dokumentation",50]
[null,"BN ","BK","UK",null,"Messungen zur Qualitätskontrolle",50]
[null,"BN ","BK","UK"," 5.2.3","Systematische Inbetriebnahme",100,null,3,{"$f":"K200/$K$156*$J$156","v":1.4285714285714285E-2},{"$f":"G200*I200","v":300}]
[]
[]
[null,null,null,null,"Standortmerkmale",null,null,null,null,1,{"$f":"SUM(K206:K240)","v":1300}]
[]
[null,null,null,null,null,"Standortmerkmale"]
[null,"BN ","BK","UK"," 6.1.1","Risiken am Mikrostandort",100,{"$f":"IF(SUM(H207:H211)>100,100,SUM(H207:H211))","v":0},2,{"$f":"K206/$K$203*$J$203","v":0.15384615384615385},{"$f":"G206*I206","v":200}]
[null,"BN ","BK","UK",null,"Risiken aus Man-Made-Hazards (Unfälle)",20]
[null,"BN ","BK","UK",null,"Risiken aus Erdbeben",20]
[null,"BN ","BK","UK",null,"Risiken aus Lawinen",20]
[null,"BN ","BK","UK",null,"Risiken aus Sturm",20]
[null,"BN ","BK","UK",null,"Risiken aus Hochwasser",20]
[null,"BN ","BK","UK"," 6.1.2","Verhältnisse am Mikrostandort",100,{"$f":"IF(SUM(H213:H218)>100,100,SUM(H213:H218))","v":0},2,0.15384615384615385,200]
[null,"BN ","BK","UK",null,"Außenluftqualität",16]
[null,"BN ","BK","UK",null,"Außenlärmpegel",20]
[null,"BN ","BK","UK",null,"Baugrundverhältnisse, Bodenbelastungen",16]
[null,"BN ","BK","UK",null,"Elektromagnetische Felder",16]
[null,"BN ","BK","UK",null,"Vorkommen von Radon",16]
[null,"BN ","BK","UK",null,"Stadt- und Landschaftsbild / Sichtbeziehungen",16]
[null,"BN ","BK","UK"," 6.1.3","Quartiersmerkmale",100,{"$f":"IF(SUM(H220:H223)>100,100,SUM(H220:H223))","v":0},2,0.15384615384615385,200]
[null,null,null,null,null,"Image, Attraktivität",25]
[null,null,null,null,null,"Synergie- und Konfliktpotenziale",25]
[null,null,null,null,null,"Kriminalität",25]
[null,null,null,null,null,"Pflege und Erhaltungszustand",25]
[null,null,null,"UK"," 6.1.4","Verkehrsanbindung",100,{"$f":"IF(SUM(H225:H228)>100,100,SUM(H225:H228))","v":0},3,0.23076923076923078,300]
[null,null,null,null,null,"Verkehrssicherung des Zugangs zur Liegenschaft",30]
[null,null,null,null,null,"Erreichbarkeit des nächstgelegenen Haupt-/ Fernbahnhofs",30]
[null,null,null,null,null,"Ereichbarkeit der nächstgelegenen Haltestelle des ÖPNV",30]
[null,null,null,null,null,"Erschließung der Liegenschaft durch Fuß- und Radweg",40]
[null,"BN ","BK","UK"," 6.1.5","Nähe zu nutzungsrelevanten Einrichtungen",100,{"$f":"IF(SUM(H230:H239)>100,100,SUM(H230:H239))","v":0},2,0.15384615384615385,200]
[null,"BN ","BK","UK",null,"Gastronomie",10]
[null,"BN ","BK","UK",null,"Nahversorgung",10]
[null,"BN ","BK","UK",null,"Parkanlagen und Freiräume",10]
[null,"BN ","BK","UK",null,"Bildung",10]
[null,"BN ","BK","UK",null,"Öffentliche Verwaltung",10]
[null,"BN ","BK","UK",null,"Medizinische Versorgung",10]
[null,"BN ","BK","UK",null,"Sportstätten",10]
[null,"BN ","BK","UK",null,"Freizeit",10]
[null,"BN ","BK","UK",null,"Synergie- und Konfliktpotenziale",10]
[null,"BN ","BK","UK",null,"Dienstleister",10]
[null,"BN ","BK","UK"," 6.1.6","Anliegende Medien / Erschließung",100,{"$f":"IF(SUM(H241:H244)>100,100,SUM(H241:H244))","v":0},2,0.15384615384615385,200]
[null,null,null,null,null,"Leitungsgebundene Energie",25]
[null,null,null,null,null,"Solarenergie",25]
[null,null,null,null,null,"Breitband-Anschluss",25]
[null,null,null,null,null,"Regenwasserversickerung",50]
[null,"* Diese Kriteriensteckbriefe sind inhaltich identisch mit den angegebenen Systemvarianten in folgenden Versionen: BN 2015, BK 2017 und UK 2017"]

{"sheet":"Hilfstabelle","index":6,"n_rows":247,"n_cols":4,"rows_kept":247,"cut":false,"hidden":true,"merged":[[3,0,3,1],[3,3,4,3]]}
[]
[]
[]
["Eingereichte \nEndbewertung",null,"Bemerkung Konformitätsprüfung \n\nPrüfung vom:","Bearbeiter"]
["Anwender","Konformitätsprüfung",{"$f":"TODAY()","v":"2019-10-23"}]
[]
[{"$f":"Konformitätsprüfung!$G7","v":0},{"$f":"B10+B28+B41+B123+B159","v":0}]
[]
[]
[{"$f":"Konformitätsprüfung!$G10","v":0},{"$f":"B13*($E$13/100)+B14*($E$14/100)+B15*($E$15/100)+B16*($E$16/100)+B17*($E$17/100)+B18*($E$18/100)+B19*($E$19/100)+B21*($E$21/100)+B25*($E$25/100)+B26*($E$26/100)","v":0}]
[]
[]
[{"$f":"Konformitätsprüfung!$G13","v":0},{"$f":"Konformitätsprüfung!$H13","v":0}]
[{"$f":"Konformitätsprüfung!$G14","v":0},{"$f":"Konformitätsprüfung!$H14","v":0}]
[{"$f":"Konformitätsprüfung!$G15","v":0},{"$f":"Konformitätsprüfung!$H15","v":0}]
[{"$f":"Konformitätsprüfung!$G16","v":0},{"$f":"Konformitätsprüfung!$H16","v":0}]
[{"$f":"Konformitätsprüfung!$G17","v":0},{"$f":"Konformitätsprüfung!$H17","v":0}]
[{"$f":"Konformitätsprüfung!$G18","v":0},{"$f":"Konformitätsprüfung!$H18","v":0}]
[{"$f":"Konformitätsprüfung!$G19","v":0},{"$f":"Konformitätsprüfung!$H19","v":0}]
[]
[{"$f":"Konformitätsprüfung!$G21","v":0},{"$f":"SUM(B22:B24)","v":0}]
[{"$f":"Konformitätsprüfung!$G22","v":0},{"$f":"Konformitätsprüfung!$H22","v":0}]
[{"$f":"Konformitätsprüfung!$G23","v":0},{"$f":"Konformitätsprüfung!$H23","v":0}]
[{"$f":"Konformitätsprüfung!$G24","v":0},{"$f":"Konformitätsprüfung!$H24","v":0}]
[{"$f":"Konformitätsprüfung!$G25","v":0},{"$f":"Konformitätsprüfung!$H25","v":0}]
[{"$f":"Konformitätsprüfung!$G26","v":0},{"$f":"Konformitätsprüfung!$H26","v":0}]
[]
[{"$f":"Konformitätsprüfung!$G28","v":0},{"$f":"B31*($E$31/100)+B33*($E$33/100)+B34*($E$34/100)","v":0}]
[]
[]
[{"$f":"Konformitätsprüfung!$G31","v":0},{"$f":"Konformitätsprüfung!$H31","v":0}]
[]
[{"$f":"Konformitätsprüfung!$G33","v":0},{"$f":"SUM(B34:B39)","v":0}]
[{"$f":"Konformitätsprüfung!$G34","v":0},{"$f":"Konformitätsprüfung!$H34","v":0}]
[{"$f":"Konformitätsprüfung!$G35","v":0},{"$f":"Konformitätsprüfung!$H35","v":0}]
[{"$f":"Konformitätsprüfung!$G36","v":0},{"$f":"Konformitätsprüfung!$H36","v":0}]
[{"$f":"Konformitätsprüfung!$G37","v":0},{"$f":"Konformitätsprüfung!$H37","v":0}]
[{"$f":"Konformitätsprüfung!$G38","v":0},{"$f":"Konformitätsprüfung!$H38","v":0}]
[{"$f":"Konformitätsprüfung!$G39","v":0},{"$f":"Konformitätsprüfung!$H39","v":0}]
[]
[{"$f":"Konformitätsprüfung!$G41","v":0},{"$f":"B44*($E$44/100)+B55*($E$55/100)+B58*($E$58/100)+B68*($E$68/100)+B76*($E$76/100)+B86*($E$86/100)+B91*($E$91/100)+B98*($E$98/100)+B99*($E$99/100)+B104*($E$104/100)+B109*($E$109/100)+B117*($E$117/100)","v":0}]
[]
[]
[{"$f":"Konformitätsprüfung!$G44","v":0},{"$f":"SUM(B46:B54)","v":0}]
[]
[{"$f":"Konformitätsprüfung!$G46","v":0},{"$f":"Konformitätsprüfung!$H46","v":0}]
[{"$f":"Konformitätsprüfung!$G47","v":0},{"$f":"Konformitätsprüfung!$H47","v":0}]
[{"$f":"Konformitätsprüfung!$G48","v":0},{"$f":"Konformitätsprüfung!$H48","v":0}]
[{"$f":"Konformitätsprüfung!$G49","v":0},{"$f":"Konformitätsprüfung!$H49","v":0}]
[]
[{"$f":"Konformitätsprüfung!$G51","v":0},{"$f":"Konformitätsprüfung!$H51","v":0}]
[{"$f":"Konformitätsprüfung!$G52","v":0},{"$f":"Konformitätsprüfung!$H52","v":0}]
[{"$f":"Konformitätsprüfung!$G53","v":0},{"$f":"Konformitätsprüfung!$H53","v":0}]
[{"$f":"Konformitätsprüfung!$G54","v":0},{"$f":"Konformitätsprüfung!$H54","v":0}]
[{"$f":"Konformitätsprüfung!$G55","v":0},{"$f":"SUM(B56:B57)","v":0}]
[{"$f":"Konformitätsprüfung!$G56","v":0},{"$f":"Konformitätsprüfung!$H56","v":0}]
[{"$f":"Konformitätsprüfung!$G57","v":0},{"$f":"Konformitätsprüfung!$H57","v":0}]
[{"$f":"Konformitätsprüfung!$G58","v":0},{"$f":"SUM(B60:B67)","v":0}]
[]
[{"$f":"Konformitätsprüfung!$G60","v":0},{"$f":"Konformitätsprüfung!$H60","v":0}]
[{"$f":"Konformitätsprüfung!$G61","v":0},{"$f":"Konformitätsprüfung!$H61","v":0}]
[{"$f":"Konformitätsprüfung!$G62","v":0},{"$f":"Konformitätsprüfung!$H62","v":0}]
[{"$f":"Konformitätsprüfung!$G63","v":0},{"$f":"Konformitätsprüfung!$H63","v":0}]
[]
[{"$f":"Konformitätsprüfung!$G65","v":0},{"$f":"Konformitätsprüfung!$H65","v":0}]
[{"$f":"Konformitätsprüfung!$G66","v":0},{"$f":"Konformitätsprüfung!$H66","v":0}]
[{"$f":"Konformitätsprüfung!$G67","v":0},{"$f":"Konformitätsprüfung!$H67","v":0}]
[{"$f":"Konformitätsprüfung!$G68","v":0},{"$f":"SUM(B69:B75)","v":0}]
[{"$f":"Konformitätsprüfung!$G69","v":0},{"$f":"Konformitätsprüfung!$H69","v":0}]
[{"$f":"Konformitätsprüfung!$G70","v":0},{"$f":"Konformitätsprüfung!$H70","v":0}]
[{"$f":"Konformitätsprüfung!$G71","v":0},{"$f":"Konformitätsprüfung!$H71","v":0}]
[{"$f":"Konformitätsprüfung!$G72","v":0},{"$f":"Konformitätsprüfung!$H72","v":0}]
[{"$f":"Konformitätsprüfung!$G73","v":0},{"$f":"Konformitätsprüfung!$H73","v":0}]
[{"$f":"Konformitätsprüfung!$G74","v":0},{"$f":"Konformitätsprüfung!$H74","v":0}]
[{"$f":"Konformitätsprüfung!$G75","v":0},{"$f":"Konformitätsprüfung!$H75","v":0}]
[{"$f":"Konformitätsprüfung!$G76","v":0},{"$f":"SUM(B77:B85)","v":0}]
[{"$f":"Konformitätsprüfung!$G77","v":0},{"$f":"Konformitätsprüfung!$H77","v":0}]
[{"$f":"Konformitätsprüfung!$G78","v":0},{"$f":"Konformitätsprüfung!$H78","v":0}]
[{"$f":"Konformitätsprüfung!$G79","v":0},{"$f":"Konformitätsprüfung!$H79","v":0}]
[{"$f":"Konformitätsprüfung!$G80","v":0},{"$f":"Konformitätsprüfung!$H80","v":0}]
[{"$f":"Konformitätsprüfung!$G81","v":0},{"$f":"Konformitätsprüfung!$H81","v":0}]
[{"$f":"Konformitätsprüfung!$G82","v":0},{"$f":"Konformitätsprüfung!$H82","v":0}]
[{"$f":"Konformitätsprüfung!$G83","v":0},{"$f":"Konformitätsprüfung!$H83","v":0}]
[{"$f":"Konformitätsprüfung!$G84","v":0},{"$f":"Konformitätsprüfung!$H84","v":0}]
[{"$f":"Konformitätsprüfung!$G85","v":0},{"$f":"Konformitätsprüfung!$H85","v":0}]
[{"$f":"Konformitätsprüfung!$G86","v":0},{"$f":"SUM(B87:B90)","v":0}]
[{"$f":"Konformitätsprüfung!$G87","v":0},{"$f":"Konformitätsprüfung!$H87","v":0}]
[{"$f":"Konformitätsprüfung!$G88","v":0},{"$f":"Konformitätsprüfung!$H88","v":0}]
[{"$f":"Konformitätsprüfung!$G89","v":0},{"$f":"Konformitätsprüfung!$H89","v":0}]
[{"$f":"Konformitätsprüfung!$G90","v":0},{"$f":"Konformitätsprüfung!$H90","v":0}]
[{"$f":"Konformitätsprüfung!$G91","v":0},{"$f":"Konformitätsprüfung!$H91","v":0}]
[{"$f":"Konformitätsprüfung!$G92","v":0},{"$f":"SUM(B93:B96)","v":0}]
[{"$f":"Konformitätsprüfung!$G93","v":0},{"$f":"Konformitätsprüfung!$H93","v":0}]
[{"$f":"Konformitätsprüfung!$G94","v":0},{"$f":"Konformitätsprüfung!$H94","v":0}]
[{"$f":"Konformitätsprüfung!$G95","v":0},{"$f":"Konformitätsprüfung!$H95","v":0}]
[{"$f":"Konformitätsprüfung!$G96","v":0},{"$f":"Konformitätsprüfung!$H96","v":0}]
[]
[{"$f":"Konformitätsprüfung!$G98","v":0}]
[{"$f":"Konformitätsprüfung!$G99","v":0},{"$f":"SUM(B100:B103)","v":0}]
[{"$f":"Konformitätsprüfung!$G100","v":0},{"$f":"Konformitätsprüfung!$H100","v":0}]
[{"$f":"Konformitätsprüfung!$G101","v":0},{"$f":"Konformitätsprüfung!$H101","v":0}]
[{"$f":"Konformitätsprüfung!$G102","v":0},{"$f":"Konformitätsprüfung!$H102","v":0}]
[{"$f":"Konformitätsprüfung!$G103","v":0},{"$f":"Konformitätsprüfung!$H103","v":0}]
[{"$f":"Konformitätsprüfung!$G104","v":0},{"$f":"SUM(B105:B107)","v":0}]
[{"$f":"Konformitätsprüfung!$G105","v":0},{"$f":"Konformitätsprüfung!$H105","v":0}]
[{"$f":"Konformitätsprüfung!$G106","v":0},{"$f":"Konformitätsprüfung!$H106","v":0}]
[{"$f":"Konformitätsprüfung!$G107","v":0},{"$f":"Konformitätsprüfung!$H107","v":0}]
[]
[{"$f":"Konformitätsprüfung!$G109","v":0},{"$f":"IF(AND(B110>0,B114<=B115),SUM(B110:B113),IF(AND(B110>0,B115<=B114),SUM(B110:B113),IF(B114>0,B114,IF(B115>0,B115,B116))))","v":0}]
[{"$f":"Konformitätsprüfung!$G110","v":0},{"$f":"Konformitätsprüfung!$H110","v":0}]
[{"$f":"Konformitätsprüfung!$G111","v":0},{"$f":"Konformitätsprüfung!$H111","v":0}]
[{"$f":"Konformitätsprüfung!$G112","v":0},{"$f":"Konformitätsprüfung!$H112","v":0}]
[{"$f":"Konformitätsprüfung!$G113","v":0},{"$f":"Konformitätsprüfung!$H113","v":0}]
[{"$f":"Konformitätsprüfung!$G114","v":0},{"$f":"Konformitätsprüfung!$H114","v":0}]
[{"$f":"Konformitätsprüfung!$G115","v":0},{"$f":"Konformitätsprüfung!$H115","v":0}]
[{"$f":"Konformitätsprüfung!$G116","v":0},{"$f":"Konformitätsprüfung!$H116","v":0}]
[{"$f":"Konformitätsprüfung!$G117","v":0},{"$f":"SUM(B118:B121)","v":0}]
[{"$f":"Konformitätsprüfung!$G118","v":0},{"$f":"Konformitätsprüfung!$H118","v":0}]
[{"$f":"Konformitätsprüfung!$G119","v":0},{"$f":"Konformitätsprüfung!$H119","v":0}]
[{"$f":"Konformitätsprüfung!$G120","v":0},{"$f":"Konformitätsprüfung!$H120","v":0}]
[{"$f":"Konformitätsprüfung!$G121","v":0},{"$f":"Konformitätsprüfung!$H121","v":0}]
[]
[{"$f":"Konformitätsprüfung!$G123","v":0},{"$f":"Konformitätsprüfung!$H123","v":0}]
[]
[]
[{"$f":"Konformitätsprüfung!$G126","v":0},{"$f":"SUM(B127:B130)","v":0}]
[{"$f":"Konformitätsprüfung!$G127","v":0},{"$f":"Konformitätsprüfung!$H127","v":0}]
[{"$f":"Konformitätsprüfung!$G128","v":0},{"$f":"Konformitätsprüfung!$H128","v":0}]
[{"$f":"Konformitätsprüfung!$G129","v":0},{"$f":"Konformitätsprüfung!$H129","v":0}]
[{"$f":"Konformitätsprüfung!$G130","v":0},{"$f":"Konformitätsprüfung!$H130","v":0}]
[{"$f":"Konformitätsprüfung!$G131","v":0},{"$f":"SUM(B132:B137)","v":0}]
[{"$f":"Konformitätsprüfung!$G132","v":0},{"$f":"Konformitätsprüfung!$H132","v":0}]
[{"$f":"Konformitätsprüfung!$G133","v":0},{"$f":"Konformitätsprüfung!$H133","v":0}]
[{"$f":"Konformitätsprüfung!$G134","v":0},{"$f":"Konformitätsprüfung!$H134","v":0}]
[{"$f":"Konformitätsprüfung!$G135","v":0},{"$f":"Konformitätsprüfung!$H135","v":0}]
[{"$f":"Konformitätsprüfung!$G136","v":0},{"$f":"Konformitätsprüfung!$H136","v":0}]
[{"$f":"Konformitätsprüfung!$G137","v":0},{"$f":"Konformitätsprüfung!$H137","v":0}]
[{"$f":"Konformitätsprüfung!$G138","v":0},{"$f":"SUM(B139:B147)","v":0}]
[{"$f":"Konformitätsprüfung!$G139","v":0},{"$f":"Konformitätsprüfung!$H139","v":0}]
[{"$f":"Konformitätsprüfung!$G140","v":0},{"$f":"Konformitätsprüfung!$H140","v":0}]
[{"$f":"Konformitätsprüfung!$G141","v":0},{"$f":"Konformitätsprüfung!$H141","v":0}]
[{"$f":"Konformitätsprüfung!$G142","v":0},{"$f":"Konformitätsprüfung!$H142","v":0}]
[{"$f":"Konformitätsprüfung!$G143","v":0},{"$f":"Konformitätsprüfung!$H143","v":0}]
[{"$f":"Konformitätsprüfung!$G144","v":0},{"$f":"Konformitätsprüfung!$H144","v":0}]
[{"$f":"Konformitätsprüfung!$G145","v":0},{"$f":"Konformitätsprüfung!$H145","v":0}]
[{"$f":"Konformitätsprüfung!$G146","v":0},{"$f":"Konformitätsprüfung!$H146","v":0}]
[{"$f":"Konformitätsprüfung!$G148","v":0},{"$f":"Konformitätsprüfung!$H148","v":0}]
[{"$f":"Konformitätsprüfung!$G149","v":0},{"$f":"Konformitätsprüfung!$H149","v":0}]
[{"$f":"Konformitätsprüfung!$G150","v":0},{"$f":"Konformitätsprüfung!$H150","v":0}]
[{"$f":"Konformitätsprüfung!$G151","v":0},{"$f":"SUM(B151:B157)","v":0}]
[{"$f":"Konformitätsprüfung!$G152","v":0},{"$f":"Konformitätsprüfung!$H152","v":0}]
[{"$f":"Konformitätsprüfung!$G153","v":0},{"$f":"Konformitätsprüfung!$H153","v":0}]
[{"$f":"Konformitätsprüfung!$G154","v":0},{"$f":"Konformitätsprüfung!$H154","v":0}]
[{"$f":"Konformitätsprüfung!$G155","v":0},{"$f":"Konformitätsprüfung!$H155","v":0}]
[{"$f":"Konformitätsprüfung!$G156","v":0},{"$f":"Konformitätsprüfung!$H156","v":0}]
[{"$f":"Konformitätsprüfung!$G157","v":0},{"$f":"Konformitätsprüfung!$H157","v":0}]
[{"$f":"Konformitätsprüfung!$G158","v":0},{"$f":"Konformitätsprüfung!$H158","v":0}]
[]
[{"$f":"Konformitätsprüfung!$G160","v":0},{"$f":"Konformitätsprüfung!$H160","v":0}]
[]
[]
[{"$f":"Konformitätsprüfung!$G163","v":0},{"$f":"SUM(B163:B165)","v":0}]
[{"$f":"Konformitätsprüfung!$G164","v":0},{"$f":"Konformitätsprüfung!$H164","v":0}]
[{"$f":"Konformitätsprüfung!$G165","v":0},{"$f":"Konformitätsprüfung!$H165","v":0}]
[{"$f":"Konformitätsprüfung!$G166","v":0},{"$f":"Konformitätsprüfung!$H166","v":0}]
[{"$f":"Konformitätsprüfung!$G167","v":0},{"$f":"SUM(B167:B171)","v":0}]
[{"$f":"Konformitätsprüfung!$G168","v":0},{"$f":"Konformitätsprüfung!$H168","v":0}]
[{"$f":"Konformitätsprüfung!$G169","v":0},{"$f":"Konformitätsprüfung!$H169","v":0}]
[{"$f":"Konformitätsprüfung!$G170","v":0},{"$f":"Konformitätsprüfung!$H170","v":0}]
[{"$f":"Konformitätsprüfung!$G171","v":0},{"$f":"Konformitätsprüfung!$H171","v":0}]
[{"$f":"Konformitätsprüfung!$G172","v":0},{"$f":"Konformitätsprüfung!$H172","v":0}]
[{"$f":"Konformitätsprüfung!$G173","v":0},{"$f":"SUM(B173:B187)","v":0}]
[{"$f":"Konformitätsprüfung!$G174","v":0},{"$f":"Konformitätsprüfung!$H174","v":0}]
[{"$f":"Konformitätsprüfung!$G175","v":0},{"$f":"Konformitätsprüfung!$H175","v":0}]
[{"$f":"Konformitätsprüfung!$G176","v":0},{"$f":"Konformitätsprüfung!$H176","v":0}]
[{"$f":"Konformitätsprüfung!$G177","v":0},{"$f":"Konformitätsprüfung!$H177","v":0}]
[{"$f":"Konformitätsprüfung!$G178","v":0},{"$f":"Konformitätsprüfung!$H178","v":0}]
[{"$f":"Konformitätsprüfung!$G179","v":0},{"$f":"Konformitätsprüfung!$H179","v":0}]
[{"$f":"Konformitätsprüfung!$G180","v":0},{"$f":"Konformitätsprüfung!$H180","v":0}]
[{"$f":"Konformitätsprüfung!$G181","v":0},{"$f":"Konformitätsprüfung!$H181","v":0}]
[{"$f":"Konformitätsprüfung!$G182","v":0},{"$f":"Konformitätsprüfung!$H182","v":0}]
[{"$f":"Konformitätsprüfung!$G183","v":0},{"$f":"Konformitätsprüfung!$H183","v":0}]
[{"$f":"Konformitätsprüfung!$G184","v":0},{"$f":"Konformitätsprüfung!$H184","v":0}]
[{"$f":"Konformitätsprüfung!$G185","v":0},{"$f":"Konformitätsprüfung!$H185","v":0}]
[{"$f":"Konformitätsprüfung!$G186","v":0},{"$f":"Konformitätsprüfung!$H186","v":0}]
[{"$f":"Konformitätsprüfung!$G187","v":0},{"$f":"Konformitätsprüfung!$H187","v":0}]
[{"$f":"Konformitätsprüfung!$G188","v":0},{"$f":"Konformitätsprüfung!$H188","v":0}]
[{"$f":"Konformitätsprüfung!$G189","v":0},{"$f":"Konformitätsprüfung!$H189","v":0}]
[{"$f":"Konformitätsprüfung!$G190","v":0},{"$f":"SUM(B190:B193)","v":0}]
[{"$f":"Konformitätsprüfung!$G191","v":0},{"$f":"Konformitätsprüfung!$H191","v":0}]
[{"$f":"Konformitätsprüfung!$G192","v":0},{"$f":"Konformitätsprüfung!$H192","v":0}]
[{"$f":"Konformitätsprüfung!$G193","v":0},{"$f":"Konformitätsprüfung!$H193","v":0}]
[{"$f":"Konformitätsprüfung!$G194","v":0},{"$f":"Konformitätsprüfung!$H194","v":0}]
[]
[{"$f":"Konformitätsprüfung!$G196","v":0},{"$f":"SUM(B196:B199)","v":0}]
[{"$f":"Konformitätsprüfung!$G197","v":0},{"$f":"Konformitätsprüfung!$H197","v":0}]
[{"$f":"Konformitätsprüfung!$G198","v":0},{"$f":"Konformitätsprüfung!$H198","v":0}]
[{"$f":"Konformitätsprüfung!$G199","v":0},{"$f":"Konformitätsprüfung!$H199","v":0}]
[{"$f":"Konformitätsprüfung!$G200","v":0},{"$f":"Konformitätsprüfung!$H200","v":0}]
[{"$f":"Konformitätsprüfung!$G201","v":0},{"$f":"SUM(B201:B202)","v":0}]
[{"$f":"Konformitätsprüfung!$G202","v":0},{"$f":"Konformitätsprüfung!$H202","v":0}]
[{"$f":"Konformitätsprüfung!$G203","v":0},{"$f":"Konformitätsprüfung!$H203","v":0}]
[{"$f":"Konformitätsprüfung!$G204","v":0},{"$f":"Konformitätsprüfung!$H204","v":0}]
[]
[]
[{"$f":"Konformitätsprüfung!$G207","v":0},{"$f":"Konformitätsprüfung!$H207","v":0}]
[]
[]
[{"$f":"Konformitätsprüfung!$G210","v":0},{"$f":"SUM(B210:B214)","v":0}]
[{"$f":"Konformitätsprüfung!$G211","v":0},{"$f":"Konformitätsprüfung!$H211","v":0}]
[{"$f":"Konformitätsprüfung!$G212","v":0},{"$f":"Konformitätsprüfung!$H212","v":0}]
[{"$f":"Konformitätsprüfung!$G213","v":0},{"$f":"Konformitätsprüfung!$H213","v":0}]
[{"$f":"Konformitätsprüfung!$G214","v":0},{"$f":"Konformitätsprüfung!$H214","v":0}]
[{"$f":"Konformitätsprüfung!$G215","v":0},{"$f":"Konformitätsprüfung!$H215","v":0}]
[{"$f":"Konformitätsprüfung!$G216","v":0},{"$f":"SUM(B216:B221)","v":0}]
[{"$f":"Konformitätsprüfung!$G217","v":0},{"$f":"Konformitätsprüfung!$H217","v":0}]
[{"$f":"Konformitätsprüfung!$G218","v":0},{"$f":"Konformitätsprüfung!$H218","v":0}]
[{"$f":"Konformitätsprüfung!$G219","v":0},{"$f":"Konformitätsprüfung!$H219","v":0}]
[{"$f":"Konformitätsprüfung!$G220","v":0},{"$f":"Konformitätsprüfung!$H220","v":0}]
[{"$f":"Konformitätsprüfung!$G221","v":0},{"$f":"Konformitätsprüfung!$H221","v":0}]
[{"$f":"Konformitätsprüfung!$G222","v":0},{"$f":"Konformitätsprüfung!$H222","v":0}]
[{"$f":"Konformitätsprüfung!$G223","v":0},{"$f":"SUM(B223:B226)","v":0}]
[{"$f":"Konformitätsprüfung!$G224","v":0},{"$f":"Konformitätsprüfung!$H224","v":0}]
[{"$f":"Konformitätsprüfung!$G225","v":0},{"$f":"Konformitätsprüfung!$H225","v":0}]
[{"$f":"Konformitätsprüfung!$G226","v":0},{"$f":"Konformitätsprüfung!$H226","v":0}]
[{"$f":"Konformitätsprüfung!$G227","v":0},{"$f":"Konformitätsprüfung!$H227","v":0}]
[{"$f":"Konformitätsprüfung!$G228","v":0},{"$f":"SUM(B228:B231)","v":0}]
[{"$f":"Konformitätsprüfung!$G229","v":0},{"$f":"Konformitätsprüfung!$H229","v":0}]
[{"$f":"Konformitätsprüfung!$G230","v":0},{"$f":"Konformitätsprüfung!$H230","v":0}]
[{"$f":"Konformitätsprüfung!$G231","v":0},{"$f":"Konformitätsprüfung!$H231","v":0}]
[{"$f":"Konformitätsprüfung!$G232","v":0},{"$f":"Konformitätsprüfung!$H232","v":0}]
[{"$f":"Konformitätsprüfung!$G233","v":0},{"$f":"SUM(B233:B242)","v":0}]
[{"$f":"Konformitätsprüfung!$G234","v":0},{"$f":"Konformitätsprüfung!$H234","v":0}]
[{"$f":"Konformitätsprüfung!$G235","v":0},{"$f":"Konformitätsprüfung!$H235","v":0}]
[{"$f":"Konformitätsprüfung!$G236","v":0},{"$f":"Konformitätsprüfung!$H236","v":0}]
[{"$f":"Konformitätsprüfung!$G237","v":0},{"$f":"Konformitätsprüfung!$H237","v":0}]
[{"$f":"Konformitätsprüfung!$G238","v":0},{"$f":"Konformitätsprüfung!$H238","v":0}]
[{"$f":"Konformitätsprüfung!$G239","v":0},{"$f":"Konformitätsprüfung!$H239","v":0}]
[{"$f":"Konformitätsprüfung!$G240","v":0},{"$f":"Konformitätsprüfung!$H240","v":0}]
[{"$f":"Konformitätsprüfung!$G241","v":0},{"$f":"Konformitätsprüfung!$H241","v":0}]
[{"$f":"Konformitätsprüfung!$G242","v":0},{"$f":"Konformitätsprüfung!$H242","v":0}]
[{"$f":"Konformitätsprüfung!$G243","v":0},{"$f":"Konformitätsprüfung!$H243","v":0}]
[{"$f":"Konformitätsprüfung!$G244","v":0},{"$f":"SUM(B244:B247)","v":0}]
[{"$f":"Konformitätsprüfung!$G245","v":0},{"$f":"Konformitätsprüfung!$H245","v":0}]
[{"$f":"Konformitätsprüfung!$G246","v":0},{"$f":"Konformitätsprüfung!$H246","v":0}]
[{"$f":"Konformitätsprüfung!$G247","v":0},{"$f":"Konformitätsprüfung!$H247","v":0}]
[{"$f":"Konformitätsprüfung!$G248","v":0},{"$f":"Konformitätsprüfung!$H248","v":0}]